Workbook

Sheet Databáze (hidden)
A5: 1 | B5: 0 | C5: 6968607 | D5: 28013800 | E5: 24668868 | F5: 0 | G5: 0 | H5: 0 | I5: 0 | J5: 0 | K5: 0 | L5: 0 | M5: 0 | N5: 0 | O5: 0 | P5: 116139 | Q5: 433198 | R5: 116139 | S5: 433198 | T5: 0 | U5: 0 | V5: 0 | W5: 0 | X5: 0 | Y5: 0 | Z5: 0 | AA5: 0 | AB5: 0 | AC5: 0 | AD5: 0 | AE5: 0 | AF5: 0 | AG5: 0 | AH5: 0 | AI5: 0 | AJ5: 0 | AK5: 0 | AL5: 0 | AM5: 0 | AN5: 0 | AO5: 0 | AP5: 0 | AQ5: 0 | AR5: 0 | AS5: 0 | AT5: 0 | AU5: 0 | AV5: 0 | AW5: 0 | AX5: 0 | AY5: 0 | AZ5: 0 | BA5: 0 | BB5: 0 | BC5: 0 | BD5: 0 | BE5: 0 | BF5: 0 | BG5: 0 | BH5: 0 | BI5: 0 | BJ5: 0 | BK5: 0 | BL5: 0 | BM5: 0 | BN5: 70000 | BO5: 2940000 | BP5: 0 | BQ5: 0 | BR5: 0 | BS5: 0 | BT5: 0 | BU5: 0 | BV5: 0 | BW5: 0 | BX5: 0 | BY5: 0 | BZ5: 0 | CA5: 0 | CB5: 0 | CC5: 0 | CD5: 0 | CE5: 0 | CF5: 0 | CG5: 0 | CH5: 0 | CI5: 0 | CJ5: 0 | CK5: 0 | CL5: 0 | CM5: 0 | CN5: 0 | CO5: 0 | CP5: 0 | CQ5: 0 | CR5: 0 | CS5: 0 | CT5: 1394000 | CU5: 21414500 | CV5: 0 | CW5: 0 | CX5: 0 | CY5: 0 | CZ5: 0 | DA5: 0 | DB5: 0 | DC5: 81000 | DD5: 1539000 | DE5: 0 | DF5: 0 | DG5: 0 | DH5: 0 | DI5: 1313000 | DJ5: 19875500 | DK5: 0 | DL5: 0 | DM5: 0 | DN5: 0 | DO5: 0 | DP5: 0 | DQ5: 0 | DR5: 0 | DS5: 0 | DT5: 0 | DU5: 0 | DV5: 0 | DW5: 0 | DX5: 0 | DY5: 0 | DZ5: 0 | EA5: 0 | EB5: 0 | EC5: 0 | ED5: 0 | EE5: 0 | EF5: 0
A6: 1 | B6: 0 | C6: 24905140 | D6: 97650980 | E6: 85922733 | F6: 0 | G6: 0 | H6: 0 | I6: 0 | J6: 0 | K6: 0 | L6: 0 | M6: 0 | N6: 0 | O6: 0 | P6: 0 | Q6: 0 | R6: 0 | S6: 0 | T6: 0 | U6: 0 | V6: 0 | W6: 0 | X6: 300111 | Y6: 11988098 | Z6: 300111 | AA6: 11988098 | AB6: 0 | AC6: 0 | AD6: 0 | AE6: 0 | AF6: 0 | AG6: 0 | AH6: 0 | AI6: 0 | AJ6: 0 | AK6: 0 | AL6: 0 | AM6: 0 | AN6: 0 | AO6: 0 | AP6: 0 | AQ6: 0 | AR6: 0 | AS6: 0 | AT6: 0 | AU6: 0 | AV6: 0 | AW6: 0 | AX6: 0 | AY6: 0 | AZ6: 0 | BA6: 0 | BB6: 0 | BC6: 0 | BD6: 0 | BE6: 0 | BF6: 0 | BG6: 0 | BH6: 0 | BI6: 0 | BJ6: 0 | BK6: 0 | BL6: 0 | BM6: 0 | BN6: 0 | BO6: 0 | BP6: 0 | BQ6: 0 | BR6: 0 | BS6: 0 | BT6: 0 | BU6: 0 | BV6: 0 | BW6: 0 | BX6: 0 | BY6: 0 | BZ6: 0 | CA6: 0 | CB6: 0 | CC6: 0 | CD6: 0 | CE6: 0 | CF6: 855594 | CG6: 71869896 | CH6: 0 | CI6: 0 | CJ6: 0 | CK6: 0 | CL6: 0 | CM6: 0 | CN6: 0 | CO6: 0 | CP6: 490200 | CQ6: 15196200 | CR6: 2787928 | CS6: 20274362 | CT6: 1573692 | CU6: 20599164 | CV6: 0 | CW6: 0 | CX6: 0 | CY6: 0 | CZ6: 0 | DA6: 0 | DB6: 0 | DC6: 565750 | DD6: 11315000 | DE6: 0 | DF6: 0 | DG6: 0 | DH6: 0 | DI6: 1007942 | DJ6: 9284164 | DK6: 0 | DL6: 0 | DM6: 0 | DN6: 0 | DO6: 0 | DP6: 0 | DQ6: 0 | DR6: 0 | DS6: 0 | DT6: 0 | DU6: 0 | DV6: 0 | DW6: 0 | DX6: 0 | DY6: 0 | DZ6: 0 | EA6: 0 | EB6: 0 | EC6: 0 | ED6: 0 | EE6: 15639402 | EF6: 14194654
A7: 2 | B7: 0 | C7: 2387000 | D7: 8904660 | E7: 8031270 | F7: 0 | G7: 0 | H7: 0 | I7: 0 | J7: 0 | K7: 0 | L7: 0 | M7: 0 | N7: 0 | O7: 0 | P7: 0 | Q7: 0 | R7: 0 | S7: 0 | T7: 0 | U7: 0 | V7: 0 | W7: 0 | X7: 0 | Y7: 0 | Z7: 0 | AA7: 0 | AB7: 0 | AC7: 0 | AD7: 0 | AE7: 0 | AF7: 0 | AG7: 0 | AH7: 0 | AI7: 0 | AJ7: 0 | AK7: 0 | AL7: 0 | AM7: 0 | AN7: 0 | AO7: 0 | AP7: 0 | AQ7: 0 | AR7: 0 | AS7: 0 | AT7: 0 | AU7: 0 | AV7: 0 | AW7: 0 | AX7: 0 | AY7: 0 | AZ7: 0 | BA7: 0 | BB7: 0 | BC7: 0 | BD7: 0 | BE7: 0 | BF7: 0 | BG7: 0 | BH7: 59000 | BI7: 220070 | BJ7: 26300 | BK7: 98099 | BL7: 0 | BM7: 0 | BN7: 0 | BO7: 0 | BP7: 0 | BQ7: 0 | BR7: 0 | BS7: 0 | BT7: 0 | BU7: 0 | BV7: 0 | BW7: 0 | BX7: 0 | BY7: 0 | BZ7: 0 | CA7: 0 | CB7: 0 | CC7: 0 | CD7: 0 | CE7: 0 | CF7: 0 | CG7: 0 | CH7: 0 | CI7: 0 | CJ7: 0 | CK7: 0 | CL7: 0 | CM7: 0 | CN7: 0 | CO7: 0 | CP7: 0 | CQ7: 0 | CR7: 0 | CS7: 0 | CT7: 133100 | CU7: 496463 | CV7: 0 | CW7: 0 | CX7: 0 | CY7: 0 | CZ7: 0 | DA7: 0 | DB7: 0 | DC7: 0 | DD7: 0 | DE7: 0 | DF7: 0 | DG7: 0 | DH7: 0 | DI7: 133100 | DJ7: 496463 | DK7: 0 | DL7: 0 | DM7: 0 | DN7: 0 | DO7: 0 | DP7: 0 | DQ7: 0 | DR7: 0 | DS7: 0 | DT7: 0 | DU7: 0 | DV7: 0 | DW7: 0 | DX7: 0 | DY7: 0 | DZ7: 0 | EA7: 0 | EB7: 0 | EC7: 0 | ED7: 0 | EE7: 0 | EF7: 0
A8: 3 | B8: 0 | C8: 11301000 | D8: 38423400 | E8: 36389220 | F8: 0 | G8: 0 | H8: 0 | I8: 0 | J8: 0 | K8: 0 | L8: 0 | M8: 0 | N8: 0 | O8: 0 | P8: 0 | Q8: 0 | R8: 0 | S8: 0 | T8: 0 | U8: 0 | V8: 0 | W8: 0 | X8: 0 | Y8: 0 | Z8: 0 | AA8: 0 | AB8: 0 | AC8: 0 | AD8: 0 | AE8: 0 | AF8: 0 | AG8: 0 | AH8: 0 | AI8: 0 | AJ8: 0 | AK8: 0 | AL8: 0 | AM8: 0 | AN8: 0 | AO8: 0 | AP8: 0 | AQ8: 0 | AR8: 0 | AS8: 0 | AT8: 0 | AU8: 0 | AV8: 0 | AW8: 0 | AX8: 0 | AY8: 0 | AZ8: 0 | BA8: 0 | BB8: 0 | BC8: 0 | BD8: 0 | BE8: 0 | BF8: 0 | BG8: 0 | BH8: 0 | BI8: 0 | BJ8: 0 | BK8: 0 | BL8: 0 | BM8: 0 | BN8: 0 | BO8: 0 | BP8: 0 | BQ8: 0 | BR8: 0 | BS8: 0 | BT8: 0 | BU8: 0 | BV8: 0 | BW8: 0 | BX8: 0 | BY8: 0 | BZ8: 0 | CA8: 0 | CB8: 0 | CC8: 0 | CD8: 0 | CE8: 0 | CF8: 0 | CG8: 0 | CH8: 0 | CI8: 0 | CJ8: 0 | CK8: 0 | CL8: 0 | CM8: 0 | CN8: 0 | CO8: 0 | CP8: 0 | CQ8: 0 | CR8: 0 | CS8: 0 | CT8: 2027460 | CU8: 36494280 | CV8: 0 | CW8: 0 | CX8: 0 | CY8: 2027460 | CZ8: 36494280 | DA8: 0 | DB8: 0 | DC8: 0 | DD8: 0 | DE8: 0 | DF8: 0 | DG8: 0 | DH8: 0 | DI8: 0 | DJ8: 0 | DK8: 0 | DL8: 0 | DM8: 0 | DN8: 0 | DO8: 0 | DP8: 0 | DQ8: 0 | DR8: 0 | DS8: 0 | DT8: 0 | DU8: 0 | DV8: 0 | DW8: 0 | DX8: 0 | DY8: 0 | DZ8: 0 | EA8: 0 | EB8: 0 | EC8: 0 | ED8: 0 | EE8: 0 | EF8: 0
A9: 4 | B9: 0 | C9: 12686930 | D9: 48083464 | E9: 41613130 | F9: 0 | G9: 0 | H9: 0 | I9: 0 | J9: 0 | K9: 0 | L9: 0 | M9: 0 | N9: 0 | O9: 0 | P9: 377804 | Q9: 1579220 | R9: 377804 | S9: 1579220 | T9: 965032 | U9: 48252 | V9: 965032 | W9: 48252 | X9: 31318 | Y9: 1216704 | Z9: 31318 | AA9: 1216704 | AB9: 0 | AC9: 0 | AD9: 0 | AE9: 0 | AF9: 433944 | AG9: 1548690 | AH9: 0 | AI9: 0 | AJ9: 0 | AK9: 0 | AL9: 474548 | AM9: 721547 | AN9: 0 | AO9: 0 | AP9: 0 | AQ9: 0 | AR9: 0 | AS9: 0 | AT9: 0 | AU9: 0 | AV9: 0 | AW9: 0 | AX9: 68226 | AY9: 49718 | AZ9: 120770 | BA9: 1931612 | BB9: 460513 | BC9: 15822528 | BD9: 0 | BE9: 0 | BF9: 43459 | BG9: 90287 | BH9: 822049 | BI9: 4806032 | BJ9: 237817 | BK9: 771043 | BL9: 350 | BM9: 533 | BN9: 1950 | BO9: 49250 | BP9: 0 | BQ9: 0 | BR9: 0 | BS9: 0 | BT9: 0 | BU9: 0 | BV9: 0 | BW9: 0 | BX9: 0 | BY9: 0 | BZ9: 37650 | CA9: 20427 | CB9: 0 | CC9: 0 | CD9: 0 | CE9: 0 | CF9: 302413 | CG9: 25404064 | CH9: 0 | CI9: 0 | CJ9: 0 | CK9: 0 | CL9: 0 | CM9: 0 | CN9: 0 | CO9: 0 | CP9: 0 | CQ9: 0 | CR9: 0 | CS9: 0 | CT9: 2111188 | CU9: 1627781 | CV9: 0 | CW9: 0 | CX9: 0 | CY9: 0 | CZ9: 0 | DA9: 0 | DB9: 0 | DC9: 0 | DD9: 0 | DE9: 0 | DF9: 0 | DG9: 0 | DH9: 0 | DI9: 2111188 | DJ9: 1627781 | DK9: 18839 | DL9: 0 | DM9: 0 | DN9: 0 | DO9: 0 | DP9: 0 | DQ9: 0 | DR9: 0 | DS9: 0 | DT9: 0 | DU9: 25573 | DV9: 16522 | DW9: 24500 | DX9: 1215 | DY9: 24500 | DZ9: 1215 | EA9: 0 | EB9: 0 | EC9: 0 | ED9: 0 | EE9: 1145254 | EF9: 901289
A10: 5 | B10: 0 | C10: 0 | D10: 0 | E10: 0 | F10: 0 | G10: 0 | H10: 0 | I10: 0 | J10: 0 | K10: 0 | L10: 0 | M10: 0 | N10: 0 | O10: 0 | P10: 0 | Q10: 0 | R10: 0 | S10: 0 | T10: 0 | U10: 0 | V10: 0 | W10: 0 | X10: 0 | Y10: 0 | Z10: 0 | AA10: 0 | AB10: 2024333 | AC10: 2024333 | AD10: 0 | AE10: 0 | AF10: 0 | AG10: 0 | AH10: 0 | AI10: 0 | AJ10: 0 | AK10: 0 | AL10: 0 | AM10: 0 | AN10: 0 | AO10: 0 | AP10: 0 | AQ10: 0 | AR10: 0 | AS10: 0 | AT10: 0 | AU10: 0 | AV10: 0 | AW10: 0 | AX10: 0 | AY10: 0 | AZ10: 0 | BA10: 0 | BB10: 0 | BC10: 0 | BD10: 0 | BE10: 0 | BF10: 0 | BG10: 0 | BH10: 0 | BI10: 0 | BJ10: 0 | BK10: 0 | BL10: 0 | BM10: 0 | BN10: 0 | BO10: 0 | BP10: 0 | BQ10: 0 | BR10: 0 | BS10: 0 | BT10: 0 | BU10: 0 | BV10: 0 | BW10: 0 | BX10: 0 | BY10: 0 | BZ10: 0 | CA10: 0 | CB10: 0 | CC10: 0 | CD10: 0 | CE10: 0 | CF10: 0 | CG10: 0 | CH10: 0 | CI10: 0 | CJ10: 0 | CK10: 0 | CL10: 0 | CM10: 0 | CN10: 0 | CO10: 0 | CP10: 0 | CQ10: 0 | CR10: 0 | CS10: 0 | CT10: 0 | CU10: 0 | CV10: 0 | CW10: 0 | CX10: 0 | CY10: 2045795 | CZ10: 511448 | DA10: 0 | DB10: 0 | DC10: 0 | DD10: 0 | DE10: 0 | DF10: 0 | DG10: 0 | DH10: 0 | DI10: 0 | DJ10: 0 | DK10: 0 | DL10: 0 | DM10: 0 | DN10: 0 | DO10: 0 | DP10: 0 | DQ10: 0 | DR10: 0 | DS10: 0 | DT10: 0 | DU10: 0 | DV10: 0 | DW10: 0 | DX10: 0 | DY10: 0 | DZ10: 0 | EA10: 0 | EB10: 0 | EC10: 0 | ED10: 0 | EE10: 0 | EF10: 0
A11: 6 | B11: 0 | C11: 18567000 | D11: 69626250 | E11: 61642440 | F11: 0 | G11: 0 | H11: 0 | I11: 0 | J11: 0 | K11: 0 | L11: 0 | M11: 0 | N11: 0 | O11: 0 | P11: 0 | Q11: 0 | R11: 0 | S11: 0 | T11: 0 | U11: 0 | V11: 0 | W11: 0 | X11: 0 | Y11: 0 | Z11: 0 | AA11: 0 | AB11: 0 | AC11: 0 | AD11: 0 | AE11: 0 | AF11: 0 | AG11: 0 | AH11: 0 | AI11: 0 | AJ11: 0 | AK11: 0 | AL11: 0 | AM11: 0 | AN11: 0 | AO11: 0 | AP11: 147998 | AQ11: 261876 | AR11: 0 | AS11: 0 | AT11: 0 | AU11: 0 | AV11: 0 | AW11: 0 | AX11: 0 | AY11: 0 | AZ11: 2130862 | BA11: 22810729 | BB11: 97767 | BC11: 3242131 | BD11: 0 | BE11: 0 | BF11: 0 | BG11: 0 | BH11: 725903 | BI11: 7203065 | BJ11: 229070 | BK11: 2647723 | BL11: 1325130 | BM11: 2139611 | BN11: 2352240 | BO11: 37419266 | BP11: 102434 | BQ11: 792821 | BR11: 0 | BS11: 0 | BT11: 0 | BU11: 0 | BV11: 0 | BW11: 0 | BX11: 0 | BY11: 0 | BZ11: 0 | CA11: 0 | CB11: 0 | CC11: 0 | CD11: 0 | CE11: 0 | CF11: 0 | CG11: 0 | CH11: 0 | CI11: 0 | CJ11: 0 | CK11: 0 | CL11: 0 | CM11: 0 | CN11: 0 | CO11: 0 | CP11: 0 | CQ11: 0 | CR11: 0 | CS11: 0 | CT11: 2655544 | CU11: 733175 | CV11: 0 | CW11: 0 | CX11: 0 | CY11: 0 | CZ11: 0 | DA11: 0 | DB11: 0 | DC11: 0 | DD11: 0 | DE11: 0 | DF11: 0 | DG11: 0 | DH11: 0 | DI11: 2655544 | DJ11: 733175 | DK11: 0 | DL11: 0 | DM11: 0 | DN11: 15034000 | DO11: 0 | DP11: 0 | DQ11: 0 | DR11: 0 | DS11: 0 | DT11: 0 | DU11: 0 | DV11: 0 | DW11: 0 | DX11: 0 | DY11: 0 | DZ11: 0 | EA11: 0 | EB11: 0 | EC11: 0 | ED11: 0 | EE11: 0 | EF11: 0
A12: 7 | B12: 0 | C12: 11701479 | D12: 48561137 | E12: 41189206 | F12: 0 | G12: 0 | H12: 0 | I12: 0 | J12: 0 | K12: 0 | L12: 0 | M12: 0 | N12: 0 | O12: 0 | P12: 0 | Q12: 0 | R12: 0 | S12: 0 | T12: 0 | U12: 0 | V12: 0 | W12: 0 | X12: 0 | Y12: 0 | Z12: 0 | AA12: 0 | AB12: 0 | AC12: 0 | AD12: 0 | AE12: 0 | AF12: 8065 | AG12: 28228 | AH12: 0 | AI12: 0 | AJ12: 0 | AK12: 0 | AL12: 0 | AM12: 0 | AN12: 0 | AO12: 0 | AP12: 0 | AQ12: 0 | AR12: 0 | AS12: 0 | AT12: 0 | AU12: 0 | AV12: 0 | AW12: 0 | AX12: 0 | AY12: 0 | AZ12: 7989 | BA12: 167769 | BB12: 78723 | BC12: 2737986 | BD12: 0 | BE12: 0 | BF12: 0 | BG12: 0 | BH12: 0 | BI12: 0 | BJ12: 0 | BK12: 0 | BL12: 0 | BM12: 0 | BN12: 0 | BO12: 0 | BP12: 0 | BQ12: 0 | BR12: 0 | BS12: 0 | BT12: 0 | BU12: 0 | BV12: 0 | BW12: 0 | BX12: 0 | BY12: 0 | BZ12: 0 | CA12: 0 | CB12: 0 | CC12: 0 | CD12: 0 | CE12: 0 | CF12: 0 | CG12: 0 | CH12: 0 | CI12: 0 | CJ12: 0 | CK12: 0 | CL12: 0 | CM12: 0 | CN12: 0 | CO12: 0 | CP12: 0 | CQ12: 0 | CR12: 0 | CS12: 0 | CT12: 1435648 | CU12: 45627154 | CV12: 0 | CW12: 0 | CX12: 0 | CY12: 0 | CZ12: 0 | DA12: 0 | DB12: 0 | DC12: 1411200 | DD12: 45525695 | DE12: 0 | DF12: 0 | DG12: 0 | DH12: 0 | DI12: 24448 | DJ12: 101459 | DK12: 0 | DL12: 0 | DM12: 0 | DN12: 9193870 | DP12: 0 | DQ12: 0 | DR12: 0 | DS12: 0 | DT12: 0 | DU12: 0 | DV12: 0 | DW12: 0 | DX12: 0 | DY12: 0 | DZ12: 0 | EA12: 0 | EB12: 0 | EC12: 0 | ED12: 0 | EE12: 0 | EF12: 0
A13: 8 | B13: 0 | C13: 9149111 | D13: 33485746 | E13: 30466539 | F13: 0 | G13: 0 | H13: 0 | I13: 0 | J13: 0 | K13: 0 | L13: 0 | M13: 0 | N13: 0 | O13: 0 | P13: 0 | Q13: 0 | R13: 0 | S13: 0 | T13: 0 | U13: 0 | V13: 0 | W13: 0 | X13: 0 | Y13: 0 | Z13: 0 | AA13: 0 | AB13: 0 | AC13: 0 | AD13: 0 | AE13: 0 | AF13: 0 | AG13: 0 | AH13: 0 | AI13: 0 | AJ13: 0 | AK13: 0 | AL13: 0 | AM13: 0 | AN13: 0 | AO13: 0 | AP13: 0 | AQ13: 0 | AR13: 0 | AS13: 0 | AT13: 0 | AU13: 0 | AV13: 0 | AW13: 0 | AX13: 0 | AY13: 0 | AZ13: 0 | BA13: 0 | BB13: 0 | BC13: 0 | BD13: 0 | BE13: 0 | BF13: 0 | BG13: 0 | BH13: 0 | BI13: 0 | BJ13: 0 | BK13: 0 | BL13: 0 | BM13: 0 | BN13: 0 | BO13: 0 | BP13: 0 | BQ13: 0 | BR13: 0 | BS13: 0 | BT13: 0 | BU13: 0 | BV13: 0 | BW13: 0 | BX13: 0 | BY13: 0 | BZ13: 0 | CA13: 0 | CB13: 0 | CC13: 0 | CD13: 0 | CE13: 0 | CF13: 0 | CG13: 0 | CH13: 0 | CI13: 0 | CJ13: 0 | CK13: 0 | CL13: 0 | CM13: 0 | CN13: 0 | CO13: 0 | CP13: 0 | CQ13: 0 | CR13: 0 | CS13: 0 | CT13: 1283817 | CU13: 25381183 | CV13: 0 | CW13: 0 | CX13: 0 | CY13: 0 | CZ13: 0 | DA13: 0 | DB13: 0 | DC13: 161888 | DD13: 3291101 | DE13: 0 | DF13: 0 | DG13: 0 | DH13: 0 | DI13: 1121929 | DJ13: 22090082 | DK13: 155445 | DL13: 0 | DM13: 0 | DN13: 6087000 | DO13: 0 | DP13: 0 | DQ13: 0 | DR13: 0 | DS13: 0 | DT13: 0 | DU13: 0 | DV13: 0 | DW13: 0 | DX13: 0 | DY13: 0 | DZ13: 0 | EA13: 0 | EB13: 0 | EC13: 0 | ED13: 0 | EE13: 0 | EF13: 0
A14: 9 | B14: 0 | C14: 18567 | D14: 69626 | E14: 61642 | F14: 0 | G14: 0 | H14: 0 | I14: 0 | J14: 0 | K14: 0 | L14: 0 | M14: 0 | N14: 0 | O14: 0 | P14: 0 | Q14: 0 | R14: 0 | S14: 0 | T14: 0 | U14: 0 | V14: 0 | W14: 0 | X14: 0 | Y14: 0 | Z14: 0 | AA14: 0 | AB14: 0 | AC14: 0 | AD14: 0 | AE14: 0 | AF14: 0 | AG14: 0 | AH14: 0 | AI14: 0 | AJ14: 0 | AK14: 0 | AL14: 0 | AM14: 0 | AN14: 0 | AO14: 0 | AP14: 147998 | AQ14: 261876 | AR14: 0 | AS14: 0 | AT14: 0 | AU14: 0 | AV14: 0 | AW14: 0 | AX14: 0 | AY14: 0 | AZ14: 2130862 | BA14: 22810729 | BB14: 97767 | BC14: 3242131 | BD14: 0 | BE14: 0 | BF14: 0 | BG14: 0 | BH14: 725903 | BI14: 7203065 | BJ14: 229070 | BK14: 2647723 | BL14: 1325130 | BM14: 2139611 | BN14: 2352240 | BO14: 37419266 | BP14: 102434 | BQ14: 792821 | BR14: 0 | BS14: 0 | BT14: 0 | BU14: 0 | BV14: 0 | BW14: 0 | BX14: 0 | BY14: 0 | BZ14: 0 | CA14: 0 | CB14: 0 | CC14: 0 | CD14: 0 | CE14: 0 | CF14: 0 | CG14: 0 | CH14: 0 | CI14: 0 | CJ14: 0 | CK14: 0 | CL14: 0 | CM14: 0 | CN14: 0 | CO14: 0 | CP14: 0 | CQ14: 0 | CR14: 0 | CS14: 0 | CT14: 2655544 | CU14: 733175 | CV14: 0 | CW14: 0 | CX14: 0 | CY14: 0 | CZ14: 0 | DA14: 0 | DB14: 0 | DC14: 0 | DD14: 0 | DE14: 0 | DF14: 0 | DG14: 0 | DH14: 0 | DI14: 2655544 | DJ14: 733175 | DK14: 0 | DL14: 0 | DM14: 0 | DN14: 15034000 | DO14: 0 | DP14: 0 | DQ14: 0 | DR14: 0 | DS14: 0 | DT14: 0 | DU14: 0 | DV14: 0 | DW14: 0 | DX14: 0 | DY14: 0 | DZ14: 0 | EA14: 0 | EB14: 0 | EC14: 0 | ED14: 0 | EE14: 0 | EF14: 0
A15: 10 | B15: 0 | C15: 196968390 | D15: 764237353 | E15: 671662209 | F15: 0 | G15: 0 | H15: 0 | I15: 0 | J15: 0 | K15: 0 | L15: 0 | M15: 0 | N15: 0 | O15: 0 | P15: 0 | Q15: 0 | R15: 0 | S15: 0 | T15: 0 | U15: 0 | V15: 0 | W15: 0 | X15: 0 | Y15: 0 | Z15: 0 | AA15: 0 | AB15: 0 | AC15: 0 | AD15: 0 | AE15: 0 | AF15: 8376742 | AG15: 35616557 | AH15: 0 | AI15: 0 | AJ15: 0 | AK15: 0 | AL15: 34355046 | AM15: 53986919 | AN15: 0 | AO15: 0 | AP15: 0 | AQ15: 0 | AR15: 13524 | AS15: 7565 | AT15: 0 | AU15: 0 | AV15: 0 | AW15: 0 | AX15: 0 | AY15: 0 | AZ15: 6603596.5 | BA15: 121474680 | BB15: 1301819.4 | BC15: 46033365 | BD15: 0 | BE15: 0 | BF15: 0 | BG15: 0 | BH15: 24490673.58 | BI15: 163413352 | BJ15: 4760604.52 | BK15: 15793549 | BL15: 0 | BM15: 0 | BN15: 6770783.8 | BO15: 18351506 | BP15: 0 | BQ15: 0 | BR15: 0 | BS15: 0 | BT15: 0 | BU15: 0 | BV15: 14725 | BW15: 407893 | BX15: 0 | BY15: 0 | BZ15: 10079150 | CA15: 5607436 | CB15: 0 | CC15: 0 | CD15: 2977 | CE15: 810 | CF15: 2051445 | CG15: 174253012 | CH15: 0 | CI15: 0 | CJ15: 0 | CK15: 0 | CL15: 0 | CM15: 0 | CN15: 0 | CO15: 0 | CP15: 754027.1 | CQ15: 55555963 | CR15: 4811592.2 | CS15: 62282252 | CT15: 358364.88 | CU15: 1679012 | CV15: 0 | CW15: 0 | CX15: 0 | CY15: 0 | CZ15: 0 | DA15: 0 | DB15: 0 | DC15: 0 | DD15: 0 | DE15: 0 | DF15: 0 | DG15: 0 | DH15: 0 | DI15: 358364.88 | DJ15: 1679012 | DK15: 0 | DL15: 0 | DM15: 0 | DN15: 0 | DO15: 0 | DP15: 0 | DQ15: 0 | DR15: 0 | DS15: 1040940 | DT15: 65866 | DU15: 0 | DV15: 0 | DW15: 0 | DX15: 0 | DY15: 0 | DZ15: 0 | EA15: 0 | EB15: 0 | EC15: 0 | ED15: 0 | EE15: 0 | EF15: 0
A16: 11 | B16: 0 | C16: 63368418 | D16: 233195778 | E16: 214185252 | F16: 0 | G16: 0 | H16: 0 | I16: 0 | J16: 0 | K16: 0 | L16: 0 | M16: 0 | N16: 0 | O16: 0 | P16: 244358 | Q16: 972544 | R16: 244358 | S16: 972544 | T16: 342990 | U16: 144055 | V16: 342990 | W16: 144055 | X16: 0 | Y16: 0 | Z16: 0 | AA16: 0 | AB16: 0 | AC16: 0 | AD16: 0 | AE16: 0 | AF16: 0 | AG16: 0 | AH16: 0 | AI16: 0 | AJ16: 0 | AK16: 0 | AL16: 16342 | AM16: 25330 | AN16: 0 | AO16: 0 | AP16: 0 | AQ16: 0 | AR16: 0 | AS16: 0 | AT16: 0 | AU16: 0 | AV16: 0 | AW16: 0 | AX16: 0 | AY16: 0 | AZ16: 35388.85 | BA16: 602894 | BB16: 525714.5 | BC16: 19262454 | BD16: 0 | BE16: 0 | BF16: 0 | BG16: 0 | BH16: 482440.09 | BI16: 131489 | BJ16: 170854.07 | BK16: 157216 | BL16: 0 | BM16: 0 | BN16: 1428552.38 | BO16: 141763 | BP16: 0 | BQ16: 0 | BR16: 0 | BS16: 0 | BT16: 0 | BU16: 0 | BV16: 60392 | BW16: 1675418 | BX16: 0 | BY16: 0 | BZ16: 77500 | CA16: 39243 | CB16: 0 | CC16: 0 | CD16: 0 | CE16: 0 | CF16: 1291350 | CG16: 108163476 | CH16: 0 | CI16: 0 | CJ16: 0 | CK16: 0 | CL16: 0 | CM16: 0 | CN16: 0 | CO16: 0 | CP16: 0 | CQ16: 0 | CR16: 0 | CS16: 0 | CT16: 15758752.48 | CU16: 59558449 | CV16: 0 | CW16: 0 | CX16: 0 | CY16: 0 | CZ16: 0 | DA16: 0 | DB16: 0 | DC16: 0 | DD16: 0 | DE16: 0 | DF16: 0 | DG16: 0 | DH16: 0 | DI16: 15758752.48 | DJ16: 59558449 | DK16: 26736.68 | DL16: 0 | DM16: 0 | DN16: 36028178 | DO16: 2109550 | DP16: 0 | DQ16: 0 | DR16: 0 | DS16: 0 | DT16: 0 | DU16: 0 | DV16: 0 | DW16: 404597 | DX16: 1569982 | DY16: 404597 | DZ16: 1569982 | EA16: 73830.25 | EB16: 3033010 | EC16: 73830.25 | ED16: 3033010.6 | EE16: 37870 | EF16: 58698
A17: 12 | B17: 0 | C17: 10385957 | D17: 41493757 | E17: 35831551 | F17: 0 | G17: 0 | H17: 0 | I17: 0 | J17: 0 | K17: 0 | L17: 0 | M17: 0 | N17: 0 | O17: 0 | P17: 0 | Q17: 0 | R17: 0 | S17: 0 | T17: 0 | U17: 0 | V17: 0 | W17: 0 | X17: 0 | Y17: 0 | Z17: 0 | AA17: 0 | AB17: 159356 | AC17: 159356 | AD17: 0 | AE17: 0 | AF17: 24683 | AG17: 90153 | AH17: 0 | AI17: 0 | AJ17: 0 | AK17: 0 | AL17: 140026 | AM17: 551071 | AN17: 0 | AO17: 0 | AP17: 0 | AQ17: 0 | AR17: 0 | AS17: 0 | AT17: 0 | AU17: 0 | AV17: 0 | AW17: 0 | AX17: 0 | AY17: 0 | AZ17: 0 | BA17: 0 | BB17: 14284 | BC17: 571466 | BD17: 0 | BE17: 0 | BF17: 0 | BG17: 0 | BH17: 0 | BI17: 0 | BJ17: 0 | BK17: 0 | BL17: 0 | BM17: 0 | BN17: 1415 | BO17: 69200 | BP17: 0 | BQ17: 0 | BR17: 0 | BS17: 0 | BT17: 0 | BU17: 0 | BV17: 0 | BW17: 0 | BX17: 0 | BY17: 0 | BZ17: 0 | CA17: 0 | CB17: 0 | CC17: 0 | CD17: 0 | CE17: 0 | CF17: 0 | CG17: 0 | CH17: 0 | CI17: 0 | CJ17: 0 | CK17: 0 | CL17: 0 | CM17: 0 | CN17: 0 | CO17: 0 | CP17: 3108 | CQ17: 119870 | CR17: 0 | CS17: 0 | CT17: 1501582 | CU17: 37750628 | CV17: 0 | CW17: 0 | CX17: 0 | CY17: 917875 | CZ17: 22720048 | DA17: 0 | DB17: 0 | DC17: 548591 | DD17: 13625940 | DE17: 0 | DF17: 0 | DG17: 0 | DH17: 0 | DI17: 35116 | DJ17: 1404640 | DK17: 0 | DL17: 0 | DM17: 0 | DN17: 4196670 | DO17: 0 | DP17: 0 | DQ17: 0 | DR17: 0 | DS17: 0 | DT17: 0 | DU17: 0 | DV17: 0 | DW17: 0 | DX17: 0 | DY17: 0 | DZ17: 0 | EA17: 0 | EB17: 0 | EC17: 0 | ED17: 0 | EE17: 0 | EF17: 0
A18: 13 | B18: 0 | C18: 29401569 | D18: 113196040 | E18: 99671318 | F18: 0 | G18: 0 | H18: 0 | I18: 0 | J18: 0 | K18: 0 | L18: 0 | M18: 0 | N18: 0 | O18: 0 | P18: 340955 | Q18: 1305857 | R18: 340955 | S18: 1305857 | T18: 0 | U18: 0 | V18: 0 | W18: 0 | X18: 0 | Y18: 0 | Z18: 0 | AA18: 0 | AB18: 18031.16 | AC18: 18031.16 | AD18: 0 | AE18: 0 | AF18: 0 | AG18: 0 | AH18: 0 | AI18: 0 | AJ18: 0 | AK18: 0 | AL18: 2776510 | AM18: 4220000 | AN18: 0 | AO18: 0 | AP18: 0 | AQ18: 0 | AR18: 0 | AS18: 0 | AT18: 0 | AU18: 0 | AV18: 0 | AW18: 0 | AX18: 0 | AY18: 0 | AZ18: 1983330 | BA18: 25457230 | BB18: 0 | BC18: 0 | BD18: 7326730 | BE18: 25574890 | BF18: 18746730 | BG18: 46225820 | BH18: 0 | BI18: 0 | BJ18: 0 | BK18: 0 | BL18: 0 | BM18: 0 | BN18: 0 | BO18: 0 | BP18: 0 | BQ18: 0 | BR18: 0 | BS18: 0 | BT18: 0 | BU18: 0 | BV18: 0 | BW18: 0 | BX18: 0 | BY18: 0 | BZ18: 183700 | CA18: 99700 | CB18: 0 | CC18: 0 | CD18: 0 | CE18: 0 | CF18: 0 | CG18: 0 | CH18: 0 | CI18: 0 | CJ18: 0 | CK18: 0 | CL18: 0 | CM18: 0 | CN18: 0 | CO18: 0 | CP18: 0 | CQ18: 0 | CR18: 0 | CS18: 0 | CT18: 0 | CU18: 0 | CV18: 0 | CW18: 0 | CX18: 0 | CY18: 0 | CZ18: 0 | DA18: 0 | DB18: 0 | DC18: 0 | DD18: 0 | DE18: 0 | DF18: 0 | DG18: 0 | DH18: 0 | DI18: 0 | DJ18: 0 | DK18: 0 | DL18: 0 | DM18: 0 | DN18: 0 | DO18: 0 | DP18: 0 | DQ18: 0 | DR18: 0 | DS18: 0 | DT18: 0 | DU18: 0 | DV18: 0 | DW18: 0 | DX18: 0 | DY18: 0 | DZ18: 0 | EA18: 0 | EB18: 0 | EC18: 0 | ED18: 0 | EE18: 0 | EF18: 0
A19: 14 | B19: 0 | C19: 60160060 | D19: 227405026 | E19: 206950640 | F19: 0 | G19: 0 | H19: 0 | I19: 0 | J19: 0 | K19: 0 | L19: 0 | M19: 0 | N19: 0 | O19: 0 | P19: 0 | Q19: 0 | R19: 0 | S19: 0 | T19: 0 | U19: 0 | V19: 0 | W19: 0 | X19: 554634 | Y19: 22201999 | Z19: 554634 | AA19: 22201999 | AB19: 0 | AC19: 0 | AD19: 0 | AE19: 0 | AF19: 2404471 | AG19: 8627924 | AH19: 0 | AI19: 0 | AJ19: 1041860 | AK19: 3808047 | AL19: 3784389 | AM19: 5857176 | AN19: 0 | AO19: 0 | AP19: 8980514 | AQ19: 13840511 | AR19: 0 | AS19: 0 | AT19: 0 | AU19: 0 | AV19: 85668 | AW19: 9876 | AX19: 0 | AY19: 0 | AZ19: 1366132 | BA19: 22621643 | BB19: 1323398 | BC19: 43543309 | BD19: 0 | BE19: 0 | BF19: 0 | BG19: 0 | BH19: 6566 | BI19: 35413 | BJ19: 1156949 | BK19: 8210128 | BL19: 1161092 | BM19: 1142746 | BN19: 0 | BO19: 0 | BP19: 23265 | BQ19: 208126 | BR19: 673182 | BS19: 5512847 | BT19: 6025 | BU19: 270564 | BV19: 3593480 | BW19: 95382507 | BX19: 148200 | BY19: 2003926 | BZ19: 526428 | CA19: 279260 | CB19: 0 | CC19: 0 | CD19: 511614 | CE19: 15401023 | CF19: 257795 | CG19: 21740675 | CH19: 0 | CI19: 0 | CJ19: 0 | CK19: 0 | CL19: 0 | CM19: 0 | CN19: 0 | CO19: 0 | CP19: 0 | CQ19: 0 | CR19: 157244 | CS19: 2116121 | CT19: 0 | CU19: 0 | CV19: 0 | CW19: 0 | CX19: 0 | CY19: 0 | CZ19: 0 | DA19: 0 | DB19: 0 | DC19: 0 | DD19: 0 | DE19: 0 | DF19: 0 | DG19: 0 | DH19: 0 | DI19: 0 | DJ19: 0 | DK19: 0 | DL19: 0 | DM19: 0 | DN19: 0 | DO19: 0 | DP19: 0 | DQ19: 0 | DR19: 0 | DS19: 0 | DT19: 0 | DU19: 0 | DV19: 0 | DW19: 0 | DX19: 0 | DY19: 0 | DZ19: 0 | EA19: 0 | EB19: 0 | EC19: 0 | ED19: 0 | EE19: 0 | EF19: 0
A20: 15 | B20: 0 | C20: 100090709 | D20: 401189023 | E20: 347238405 | F20: 0 | G20: 0 | H20: 0 | I20: 0 | J20: 0 | K20: 0 | L20: 0 | M20: 0 | N20: 0 | O20: 0 | P20: 0 | Q20: 0 | R20: 0 | S20: 0 | T20: 0 | U20: 0 | V20: 0 | W20: 0 | X20: 2083062 | Y20: 81417292 | Z20: 0 | AA20: 0 | AB20: 0 | AC20: 0 | AD20: 0 | AE20: 0 | AF20: 260884 | AG20: 1020693 | AH20: 0 | AI20: 0 | AJ20: 2355307 | AK20: 8528926 | AL20: 2383779 | AM20: 3752435 | AN20: 0 | AO20: 0 | AP20: 50774629 | AQ20: 79223090 | AR20: 0 | AS20: 0 | AT20: 0 | AU20: 0 | AV20: 538708 | AW20: 200556 | AX20: 259000 | AY20: 288566 | AZ20: 9343574 | BA20: 123969388 | BB20: 8715865 | BC20: 275771161 | BD20: 0 | BE20: 0 | BF20: 0 | BG20: 0 | BH20: 3928855 | BI20: 22554554 | BJ20: 6958163 | BK20: 25575520 | BL20: 1544579 | BM20: 4438042 | BN20: 12770962 | BO20: 44539030 | BP20: 0 | BQ20: 0 | BR20: 0 | BS20: 0 | BT20: 0 | BU20: 0 | BV20: 0 | BW20: 0 | BX20: 0 | BY20: 0 | BZ20: 0 | CA20: 0 | CB20: 0 | CC20: 0 | CD20: 0 | CE20: 0 | CF20: 0 | CG20: 0 | CH20: 0 | CI20: 0 | CJ20: 0 | CK20: 0 | CL20: 0 | CM20: 0 | CN20: 0 | CO20: 0 | CP20: 0 | CQ20: 0 | CR20: 0 | CS20: 0 | CT20: 0 | CU20: 0 | CV20: 0 | CW20: 0 | CX20: 0 | CY20: 0 | CZ20: 0 | DA20: 0 | DB20: 0 | DC20: 0 | DD20: 0 | DE20: 0 | DF20: 0 | DG20: 0 | DH20: 0 | DI20: 0 | DJ20: 0 | DK20: 0 | DL20: 0 | DM20: 0 | DN20: 6649506 | DO20: 0 | DP20: 0 | DQ20: 0 | DR20: 0 | DS20: 0 | DT20: 0 | DU20: 0 | DV20: 0 | DW20: 5367026 | DX20: 7615958 | DY20: 5367026 | DZ20: 7615958 | EA20: 0 | EB20: 0 | EC20: 0 | ED20: 0 | EE20: 0 | EF20: 0
A21: 16 | B21: 0 | C21: 0 | D21: 0 | E21: 0 | F21: 0 | G21: 0 | H21: 0 | I21: 0 | J21: 0 | K21: 0 | L21: 0 | M21: 0 | N21: 0 | O21: 0 | P21: 0 | Q21: 0 | R21: 0 | S21: 0 | T21: 13208964 | U21: 1320896 | V21: 13208964 | W21: 1320896 | X21: 0 | Y21: 0 | Z21: 0 | AA21: 0 | AB21: 0 | AC21: 0 | AD21: 0 | AE21: 0 | AF21: 0 | AG21: 0 | AH21: 0 | AI21: 0 | AJ21: 0 | AK21: 0 | AL21: 0 | AM21: 0 | AN21: 0 | AO21: 0 | AP21: 0 | AQ21: 0 | AR21: 0 | AS21: 0 | AT21: 0 | AU21: 0 | AV21: 0 | AW21: 0 | AX21: 0 | AY21: 0 | AZ21: 0 | BA21: 0 | BB21: 0 | BC21: 0 | BD21: 0 | BE21: 0 | BF21: 0 | BG21: 0 | BH21: 0 | BI21: 0 | BJ21: 0 | BK21: 0 | BL21: 0 | BM21: 0 | BN21: 0 | BO21: 0 | BP21: 0 | BQ21: 0 | BR21: 0 | BS21: 0 | BT21: 0 | BU21: 0 | BV21: 0 | BW21: 0 | BX21: 0 | BY21: 0 | BZ21: 3122625 | CA21: 46839 | CB21: 148625 | CC21: 5945 | CD21: 51950 | CE21: 780 | CF21: 0 | CG21: 0 | CH21: 0 | CI21: 0 | CJ21: 0 | CK21: 0 | CL21: 0 | CM21: 0 | CN21: 0 | CO21: 0 | CP21: 0 | CQ21: 0 | CR21: 0 | CS21: 0 | CT21: 0 | CU21: 0 | CV21: 0 | CW21: 0 | CX21: 0 | CY21: 0 | CZ21: 0 | DA21: 0 | DB21: 0 | DC21: 0 | DD21: 0 | DE21: 0 | DF21: 0 | DG21: 0 | DH21: 0 | DI21: 0 | DJ21: 0 | DK21: 0 | DL21: 0 | DM21: 0 | DN21: 0 | DO21: 0 | DP21: 12847400 | DQ21: 0 | DR21: 0 | DS21: 0 | DT21: 0 | DU21: 0 | DV21: 0 | DW21: 0 | DX21: 0 | DY21: 0 | DZ21: 0 | EA21: 0 | EB21: 0 | EC21: 0 | ED21: 0 | EE21: 0 | EF21: 0
A22: 17 | B22: 0 | C22: 0 | D22: 0 | E22: 0 | F22: 0 | G22: 0 | H22: 0 | I22: 0 | J22: 0 | K22: 0 | L22: 0 | M22: 0 | N22: 0 | O22: 0 | P22: 0 | Q22: 0 | R22: 0 | S22: 0 | T22: 0 | U22: 0 | V22: 0 | W22: 0 | X22: 0 | Y22: 0 | Z22: 0 | AA22: 0 | AB22: 0 | AC22: 0 | AD22: 0 | AE22: 0 | AF22: 0 | AG22: 0 | AH22: 0 | AI22: 0 | AJ22: 0 | AK22: 0 | AL22: 0 | AM22: 0 | AN22: 0 | AO22: 0 | AP22: 0 | AQ22: 0 | AR22: 0 | AS22: 0 | AT22: 0 | AU22: 0 | AV22: 0 | AW22: 0 | AX22: 0 | AY22: 0 | AZ22: 0 | BA22: 0 | BB22: 0 | BC22: 0 | BD22: 0 | BE22: 0 | BF22: 0 | BG22: 0 | BH22: 0 | BI22: 0 | BJ22: 0 | BK22: 0 | BL22: 0 | BM22: 0 | BN22: 0 | BO22: 0 | BP22: 0 | BQ22: 0 | BR22: 0 | BS22: 0 | BT22: 0 | BU22: 0 | BV22: 0 | BW22: 0 | BX22: 0 | BY22: 0 | BZ22: 0 | CA22: 0 | CB22: 0 | CC22: 0 | CD22: 0 | CE22: 0 | CF22: 0 | CG22: 0 | CH22: 0 | CI22: 0 | CJ22: 0 | CK22: 0 | CL22: 0 | CM22: 0 | CN22: 0 | CO22: 0 | CP22: 0 | CQ22: 0 | CR22: 0 | CS22: 0 | CT22: 0 | CU22: 0 | CV22: 0 | CW22: 0 | CX22: 0 | CY22: 0 | CZ22: 0 | DA22: 0 | DB22: 0 | DC22: 0 | DD22: 0 | DE22: 0 | DF22: 0 | DG22: 0 | DH22: 0 | DI22: 0 | DJ22: 0 | DK22: 2075852.87 | DL22: 0 | DM22: 0 | DN22: 0 | DO22: 0 | DP22: 0 | DQ22: 0 | DR22: 0 | DS22: 0 | DT22: 0 | DU22: 0 | DV22: 0 | DW22: 0 | DX22: 0 | DY22: 0 | DZ22: 0 | EA22: 0 | EB22: 0 | EC22: 0 | ED22: 0 | EE22: 0 | EF22: 0
A23: 18 | B23: 0 | C23: 0 | D23: 0 | E23: 0 | F23: 0 | G23: 0 | H23: 0 | I23: 0 | J23: 0 | K23: 0 | L23: 0 | M23: 0 | N23: 0 | O23: 0 | P23: 0 | Q23: 0 | R23: 0 | S23: 0 | T23: 0 | U23: 0 | V23: 0 | W23: 0 | X23: 0 | Y23: 0 | Z23: 0 | AA23: 0 | AB23: 101278500 | AC23: 101278500 | AD23: 0 | AE23: 0 | AF23: 0 | AG23: 0 | AH23: 0 | AI23: 0 | AJ23: 0 | AK23: 0 | AL23: 0 | AM23: 0 | AN23: 0 | AO23: 0 | AP23: 0 | AQ23: 0 | AR23: 0 | AS23: 0 | AT23: 0 | AU23: 0 | AV23: 0 | AW23: 0 | AX23: 0 | AY23: 0 | AZ23: 0 | BA23: 0 | BB23: 0 | BC23: 0 | BD23: 0 | BE23: 0 | BF23: 0 | BG23: 0 | BH23: 0 | BI23: 0 | BJ23: 0 | BK23: 0 | BL23: 0 | BM23: 0 | BN23: 0 | BO23: 0 | BP23: 0 | BQ23: 0 | BR23: 0 | BS23: 0 | BT23: 0 | BU23: 0 | BV23: 0 | BW23: 0 | BX23: 0 | BY23: 0 | BZ23: 0 | CA23: 0 | CB23: 0 | CC23: 0 | CD23: 0 | CE23: 0 | CF23: 0 | CG23: 0 | CH23: 0 | CI23: 0 | CJ23: 0 | CK23: 0 | CL23: 0 | CM23: 0 | CN23: 0 | CO23: 0 | CP23: 0 | CQ23: 0 | CR23: 0 | CS23: 0 | CT23: 0 | CU23: 0 | CV23: 0 | CW23: 0 | CX23: 0 | CY23: 0 | CZ23: 0 | DA23: 0 | DB23: 0 | DC23: 0 | DD23: 0 | DE23: 0 | DF23: 0 | DG23: 0 | DH23: 0 | DI23: 0 | DJ23: 0 | DK23: 0 | DL23: 0 | DM23: 0 | DN23: 0 | DO23: 0 | DP23: 16096090 | DQ23: 0 | DR23: 0 | DS23: 0 | DT23: 0 | DU23: 0 | DV23: 0 | DW23: 0 | DX23: 0 | DY23: 0 | DZ23: 0 | EA23: 0 | EB23: 0 | EC23: 0 | ED23: 0 | EE23: 0 | EF23: 0
A24: 19 | B24: 0 | C24: 47756679 | D24: 188638882 | E24: 164282976 | F24: 0 | G24: 0 | H24: 0 | I24: 0 | J24: 0 | K24: 0 | L24: 0 | M24: 0 | N24: 0 | O24: 0 | P24: 0 | Q24: 0 | R24: 0 | S24: 0 | T24: 0 | U24: 0 | V24: 0 | W24: 0 | X24: 0 | Y24: 0 | Z24: 0 | AA24: 0 | AB24: 0 | AC24: 0 | AD24: 0 | AE24: 0 | AF24: 0 | AG24: 0 | AH24: 0 | AI24: 0 | AJ24: 0 | AK24: 0 | AL24: 0 | AM24: 0 | AN24: 0 | AO24: 0 | AP24: 0 | AQ24: 0 | AR24: 0 | AS24: 0 | AT24: 0 | AU24: 0 | AV24: 0 | AW24: 0 | AX24: 0 | AY24: 0 | AZ24: 0 | BA24: 0 | BB24: 0 | BC24: 0 | BD24: 0 | BE24: 0 | BF24: 0 | BG24: 0 | BH24: 33805706 | BI24: 81673895 | BJ24: 6799545 | BK24: 21723693 | BL24: 0 | BM24: 0 | BN24: 0 | BO24: 0 | BP24: 0 | BQ24: 0 | BR24: 0 | BS24: 0 | BT24: 0 | BU24: 0 | BV24: 0 | BW24: 0 | BX24: 0 | BY24: 0 | BZ24: 0 | CA24: 0 | CB24: 0 | CC24: 0 | CD24: 0 | CE24: 0 | CF24: 0 | CG24: 0 | CH24: 0 | CI24: 0 | CJ24: 0 | CK24: 0 | CL24: 0 | CM24: 0 | CN24: 0 | CO24: 0 | CP24: 0 | CQ24: 0 | CR24: 0 | CS24: 0 | CT24: 0 | CU24: 0 | CV24: 0 | CW24: 0 | CX24: 0 | CY24: 0 | CZ24: 0 | DA24: 0 | DB24: 0 | DC24: 0 | DD24: 0 | DE24: 0 | DF24: 0 | DG24: 0 | DH24: 0 | DI24: 0 | DJ24: 0 | DK24: 0 | DL24: 0 | DM24: 0 | DN24: 0 | DO24: 0 | DP24: 0 | DQ24: 0 | DR24: 0 | DS24: 0 | DT24: 0 | DU24: 0 | DV24: 0 | DW24: 0 | DX24: 0 | DY24: 0 | DZ24: 0 | EA24: 0 | EB24: 0 | EC24: 0 | ED24: 0 | EE24: 0 | EF24: 0
A25: 20 | B25: 0 | C25: 23769 | D25: 90797 | E25: 82240 | F25: 0 | G25: 0 | H25: 0 | I25: 0 | J25: 0 | K25: 0 | L25: 0 | M25: 0 | N25: 0 | O25: 0 | P25: 499 | Q25: 1986 | R25: 499 | S25: 1986 | T25: 0 | U25: 0 | V25: 0 | W25: 0 | X25: 0 | Y25: 0 | Z25: 0 | AA25: 0 | AB25: 0 | AC25: 0 | AD25: 0 | AE25: 0 | AF25: 0 | AG25: 0 | AH25: 0 | AI25: 0 | AJ25: 0 | AK25: 0 | AL25: 0 | AM25: 0 | AN25: 0 | AO25: 0 | AP25: 0 | AQ25: 0 | AR25: 0 | AS25: 0 | AT25: 0 | AU25: 0 | AV25: 0 | AW25: 0 | AX25: 0 | AY25: 0 | AZ25: 0 | BA25: 0 | BB25: 0 | BC25: 0 | BD25: 0 | BE25: 0 | BF25: 0 | BG25: 0 | BH25: 9204800 | BI25: 23510000 | BJ25: 18091340 | BK25: 67290000 | BL25: 0 | BM25: 0 | BN25: 0 | BO25: 0 | BP25: 0 | BQ25: 0 | BR25: 0 | BS25: 0 | BT25: 0 | BU25: 0 | BV25: 0 | BW25: 0 | BX25: 0 | BY25: 0 | BZ25: 0 | CA25: 0 | CB25: 0 | CC25: 0 | CD25: 0 | CE25: 0 | CF25: 0 | CG25: 0 | CH25: 0 | CI25: 0 | CJ25: 0 | CK25: 0 | CL25: 0 | CM25: 0 | CN25: 0 | CO25: 0 | CP25: 0 | CQ25: 0 | CR25: 0 | CS25: 0 | CT25: 0 | CU25: 0 | CV25: 0 | CW25: 0 | CX25: 0 | CY25: 0 | CZ25: 0 | DA25: 0 | DB25: 0 | DC25: 0 | DD25: 0 | DE25: 0 | DF25: 0 | DG25: 0 | DH25: 0 | DI25: 0 | DJ25: 0 | DK25: 0 | DL25: 0 | DM25: 0 | DN25: 0 | DO25: 0 | DP25: 0 | DQ25: 0 | DR25: 0 | DS25: 0 | DT25: 0 | DU25: 0 | DV25: 0 | DW25: 0 | DX25: 0 | DY25: 0 | DZ25: 0 | EA25: 0 | EB25: 0 | EC25: 0 | ED25: 0 | EE25: 0 | EF25: 0
A26: 21 | B26: 0 | C26: 143318227 | D26: 558941085.3 | E26: 495881065.4 | F26: 0 | G26: 0 | H26: 0 | I26: 0 | J26: 0 | K26: 0 | L26: 0 | M26: 0 | N26: 0 | O26: 0 | P26: 0 | Q26: 0 | R26: 0 | S26: 0 | T26: 0 | U26: 0 | V26: 0 | W26: 0 | X26: 0 | Y26: 0 | Z26: 0 | AA26: 0 | AB26: 0 | AC26: 0 | AD26: 0 | AE26: 0 | AF26: 0 | AG26: 0 | AH26: 0 | AI26: 0 | AJ26: 0 | AK26: 0 | AL26: 0 | AM26: 0 | AN26: 0 | AO26: 0 | AP26: 0 | AQ26: 0 | AR26: 0 | AS26: 0 | AT26: 0 | AU26: 0 | AV26: 0 | AW26: 0 | AX26: 0 | AY26: 0 | AZ26: 0 | BA26: 0 | BB26: 0 | BC26: 0 | BD26: 6793 | BE26: 18341 | BF26: 17767 | BG26: 47971 | BH26: 19332 | BI26: 67662 | BJ26: 11990 | BK26: 41965 | BL26: 126865 | BM26: 50746 | BN26: 0 | BO26: 0 | BP26: 0 | BQ26: 0 | BR26: 0 | BS26: 0 | BT26: 0 | BU26: 0 | BV26: 0 | BW26: 0 | BX26: 0 | BY26: 0 | BZ26: 0 | CA26: 0 | CB26: 0 | CC26: 0 | CD26: 0 | CE26: 0 | CF26: 1989495 | CG26: 169107075 | CH26: 0 | CI26: 0 | CJ26: 0 | CK26: 0 | CL26: 0 | CM26: 0 | CN26: 0 | CO26: 0 | CP26: 0 | CQ26: 0 | CR26: 0 | CS26: 0 | CT26: 13101893 | CU26: 373027158 | CV26: 0 | CW26: 0 | CX26: 0 | CY26: 0 | CZ26: 0 | DA26: 0 | DB26: 0 | DC26: 4056005 | DD26: 112000749 | DE26: 0 | DF26: 0 | DG26: 8979014 | DH26: 259693465 | DI26: 66874 | DJ26: 1332944 | DK26: 0 | DL26: 0 | DM26: 0 | DN26: 17273718 | DO26: 41258043 | DP26: 0 | DQ26: 0 | DR26: 0 | DS26: 0 | DT26: 0 | DU26: 0 | DV26: 0 | DW26: 4057665 | DX26: 16127820 | DY26: 4057665 | DZ26: 16127820 | EA26: 0 | EB26: 0 | EC26: 0 | ED26: 0 | EE26: 0 | EF26: 0
A27: 22 | B27: 0 | C27: 204162991 | D27: 779421363 | E27: 703574941 | F27: 0 | G27: 0 | H27: 0 | I27: 0 | J27: 0 | K27: 0 | L27: 0 | M27: 0 | N27: 0 | O27: 0 | P27: 0 | Q27: 0 | R27: 0 | S27: 0 | T27: 0 | U27: 0 | V27: 0 | W27: 0 | X27: 622295 | Y27: 25026947 | Z27: 622295 | AA27: 25026947 | AB27: 0 | AC27: 0 | AD27: 0 | AE27: 0 | AF27: 0 | AG27: 0 | AH27: 0 | AI27: 0 | AJ27: 15793064 | AK27: 56580171 | AL27: 0 | AM27: 0 | AN27: 0 | AO27: 0 | AP27: 84624253 | AQ27: 132139893 | AR27: 0 | AS27: 0 | AT27: 0 | AU27: 0 | AV27: 2514998 | AW27: 171254 | AX27: 0 | AY27: 0 | AZ27: 1438914 | BA27: 19448748 | BB27: 1229536 | BC27: 39779447 | BD27: 0 | BE27: 0 | BF27: 0 | BG27: 0 | BH27: 0 | BI27: 0 | BJ27: 0 | BK27: 0 | BL27: 1556976 | BM27: 2491316 | BN27: 33222 | BO27: 337365 | BP27: 2357100 | BQ27: 16245585 | BR27: 6188670 | BS27: 49669056 | BT27: 0 | BU27: 0 | BV27: 6534325 | BW27: 170857472 | BX27: 0 | BY27: 0 | BZ27: 1902175 | CA27: 942411 | CB27: 0 | CC27: 0 | CD27: 0 | CE27: 0 | CF27: 4028199 | CG27: 336732964 | CH27: 0 | CI27: 0 | CJ27: 0 | CK27: 0 | CL27: 0 | CM27: 0 | CN27: 0 | CO27: 0 | CP27: 0 | CQ27: 0 | CR27: 0 | CS27: 0 | CT27: 384605 | CU27: 761677 | CV27: 0 | CW27: 0 | CX27: 0 | CY27: 0 | CZ27: 0 | DA27: 0 | DB27: 0 | DC27: 0 | DD27: 0 | DE27: 0 | DF27: 0 | DG27: 0 | DH27: 0 | DI27: 384605 | DJ27: 761677 | DK27: 0 | DL27: 0 | DM27: 0 | DN27: 1372808 | DO27: 0 | DP27: 0 | DQ27: 0 | DR27: 0 | DS27: 0 | DT27: 0 | DU27: 0 | DV27: 0 | DW27: 0 | DX27: 0 | DY27: 0 | DZ27: 0 | EA27: 149207 | EB27: 6036111 | EC27: 149207 | ED27: 6036111 | EE27: 0 | EF27: 0
A28: 23 | B28: 0 | C28: 94447665 | D28: 374957230 | E28: 327733397 | F28: 0 | G28: 0 | H28: 0 | I28: 0 | J28: 0 | K28: 0 | L28: 0 | M28: 0 | N28: 0 | O28: 0 | P28: 0 | Q28: 0 | R28: 0 | S28: 0 | T28: 0 | U28: 0 | V28: 0 | W28: 0 | X28: 0 | Y28: 0 | Z28: 0 | AA28: 0 | AB28: 404383.6 | AC28: 404383.6 | AD28: 0 | AE28: 0 | AF28: 0 | AG28: 0 | AH28: 0 | AI28: 0 | AJ28: 0 | AK28: 0 | AL28: 0 | AM28: 0 | AN28: 0 | AO28: 0 | AP28: 0 | AQ28: 0 | AR28: 0 | AS28: 0 | AT28: 0 | AU28: 0 | AV28: 0 | AW28: 0 | AX28: 0 | AY28: 0 | AZ28: 0 | BA28: 0 | BB28: 0 | BC28: 0 | BD28: 0 | BE28: 0 | BF28: 0 | BG28: 0 | BH28: 0 | BI28: 0 | BJ28: 0 | BK28: 0 | BL28: 0 | BM28: 0 | BN28: 0 | BO28: 0 | BP28: 742441 | BQ28: 121715 | BR28: 0 | BS28: 0 | BT28: 0 | BU28: 0 | BV28: 0 | BW28: 0 | BX28: 0 | BY28: 0 | BZ28: 0 | CA28: 0 | CB28: 0 | CC28: 0 | CD28: 0 | CE28: 0 | CF28: 0 | CG28: 0 | CH28: 0 | CI28: 0 | CJ28: 0 | CK28: 0 | CL28: 0 | CM28: 0 | CN28: 0 | CO28: 0 | CP28: 0 | CQ28: 0 | CR28: 0 | CS28: 0 | CT28: 12448367.1 | CU28: 335876922 | CV28: 0 | CW28: 0 | CX28: 0 | CY28: 0 | CZ28: 0 | DA28: 0 | DB28: 0 | DC28: 3002849.7 | DD28: 65469483 | DE28: 3349047.5 | DF28: 105984801 | DG28: 0 | DH28: 0 | DI28: 6096469.9 | DJ28: 164422638 | DK28: 1155907.9 | DL28: 0 | DM28: 0 | DN28: 0 | DO28: 4887290 | DP28: 0 | DQ28: 0 | DR28: 0 | DS28: 1066464 | DT28: 0 | DU28: 0 | DV28: 0 | DW28: 188411 | DX28: 798102 | DY28: 188411 | DZ28: 798102 | EA28: 458487 | EB28: 20155386 | EC28: 458487 | ED28: 20155386 | EE28: 0 | EF28: 0
A29: 24 | B29: 0 | C29: 20452893 | D29: 79877029 | E29: 70669479 | F29: 0 | G29: 0 | H29: 0 | I29: 0 | J29: 0 | K29: 0 | L29: 0 | M29: 0 | N29: 0 | O29: 0 | P29: 0 | Q29: 0 | R29: 0 | S29: 0 | T29: 0 | U29: 0 | V29: 0 | W29: 0 | X29: 0 | Y29: 0 | Z29: 0 | AA29: 0 | AB29: 0 | AC29: 0 | AD29: 0 | AE29: 0 | AF29: 0 | AG29: 0 | AH29: 0 | AI29: 0 | AJ29: 0 | AK29: 0 | AL29: 0 | AM29: 0 | AN29: 0 | AO29: 0 | AP29: 0 | AQ29: 0 | AR29: 0 | AS29: 0 | AT29: 0 | AU29: 0 | AV29: 0 | AW29: 0 | AX29: 0 | AY29: 0 | AZ29: 0 | BA29: 0 | BB29: 0 | BC29: 0 | BD29: 0 | BE29: 0 | BF29: 0 | BG29: 0 | BH29: 1969131 | BI29: 20527134 | BJ29: 3146527 | BK29: 36626500 | BL29: 0 | BM29: 0 | BN29: 0 | BO29: 0 | BP29: 0 | BQ29: 0 | BR29: 0 | BS29: 0 | BT29: 0 | BU29: 0 | BV29: 0 | BW29: 0 | BX29: 0 | BY29: 0 | BZ29: 0 | CA29: 0 | CB29: 0 | CC29: 0 | CD29: 0 | CE29: 0 | CF29: 0 | CG29: 0 | CH29: 0 | CI29: 0 | CJ29: 0 | CK29: 0 | CL29: 0 | CM29: 0 | CN29: 0 | CO29: 0 | CP29: 4270186 | CQ29: 137663060 | CR29: 0 | CS29: 0 | CT29: 973427 | CU29: 1795000 | CV29: 0 | CW29: 0 | CX29: 0 | CY29: 0 | CZ29: 0 | DA29: 0 | DB29: 0 | DC29: 0 | DD29: 0 | DE29: 0 | DF29: 0 | DG29: 0 | DH29: 0 | DI29: 973427 | DJ29: 1795000 | DK29: 0 | DL29: 0 | DM29: 0 | DN29: 7435000 | DO29: 0 | DP29: 0 | DQ29: 0 | DR29: 0 | DS29: 0 | DT29: 0 | DU29: 0 | DV29: 0 | DW29: 0 | DX29: 0 | DY29: 0 | DZ29: 0 | EA29: 0 | EB29: 0 | EC29: 0 | ED29: 0 | EE29: 0 | EF29: 0
A30: 25 | B30: 0 | C30: 21958217 | D30: 86395749 | E30: 75975430 | F30: 0 | G30: 0 | H30: 0 | I30: 0 | J30: 0 | K30: 0 | L30: 0 | M30: 0 | N30: 0 | O30: 0 | P30: 99611 | Q30: 348637 | R30: 99611 | S30: 348637 | T30: 1115345 | U30: 55767 | V30: 1115345 | W30: 55767 | X30: 88092 | Y30: 3589202 | Z30: 88092 | AA30: 3589202 | AB30: 0 | AC30: 0 | AD30: 0 | AE30: 0 | AF30: 0 | AG30: 0 | AH30: 0 | AI30: 0 | AJ30: 0 | AK30: 0 | AL30: 0 | AM30: 0 | AN30: 0 | AO30: 0 | AP30: 0 | AQ30: 0 | AR30: 0 | AS30: 0 | AT30: 0 | AU30: 0 | AV30: 0 | AW30: 0 | AX30: 0 | AY30: 0 | AZ30: 0 | BA30: 0 | BB30: 105 | BC30: 4200 | BD30: 0 | BE30: 0 | BF30: 0 | BG30: 0 | BH30: 0 | BI30: 0 | BJ30: 0 | BK30: 0 | BL30: 0 | BM30: 0 | BN30: 0 | BO30: 0 | BP30: 0 | BQ30: 0 | BR30: 0 | BS30: 0 | BT30: 0 | BU30: 0 | BV30: 0 | BW30: 0 | BX30: 0 | BY30: 0 | BZ30: 0 | CA30: 0 | CB30: 0 | CC30: 0 | CD30: 0 | CE30: 0 | CF30: 0 | CG30: 0 | CH30: 0 | CI30: 0 | CJ30: 0 | CK30: 0 | CL30: 0 | CM30: 0 | CN30: 0 | CO30: 0 | CP30: 817060 | CQ30: 27572650 | CR30: 0 | CS30: 0 | CT30: 6249464 | CU30: 69451375 | CV30: 0 | CW30: 0 | CX30: 0 | CY30: 0 | CZ30: 0 | DA30: 0 | DB30: 0 | DC30: 1781441 | DD30: 39616910 | DE30: 0 | DF30: 0 | DG30: 0 | DH30: 0 | DI30: 4468023 | DJ30: 29834465 | DK30: 0 | DL30: 0 | DM30: 0 | DN30: 24171184 | DO30: 0 | DP30: 0 | DQ30: 0 | DR30: 0 | DS30: 0 | DT30: 0 | DU30: 0 | DV30: 0 | DW30: 0 | DX30: 0 | DY30: 0 | DZ30: 0 | EA30: 0 | EB30: 0 | EC30: 0 | ED30: 0 | EE30: 0 | EF30: 0
A31: 26 | B31: 0 | C31: 50601854 | D31: 193805100 | E31: 176094451 | F31: 0 | G31: 0 | H31: 0 | I31: 0 | J31: 0 | K31: 0 | L31: 0 | M31: 0 | N31: 0 | O31: 0 | P31: 0 | Q31: 0 | R31: 0 | S31: 0 | T31: 0 | U31: 0 | V31: 0 | W31: 0 | X31: 0 | Y31: 0 | Z31: 0 | AA31: 0 | AB31: 0 | AC31: 0 | AD31: 0 | AE31: 0 | AF31: 0 | AG31: 0 | AH31: 0 | AI31: 0 | AJ31: 0 | AK31: 0 | AL31: 0 | AM31: 0 | AN31: 0 | AO31: 0 | AP31: 0 | AQ31: 0 | AR31: 0 | AS31: 0 | AT31: 0 | AU31: 0 | AV31: 0 | AW31: 0 | AX31: 0 | AY31: 0 | AZ31: 0 | BA31: 0 | BB31: 0 | BC31: 0 | BD31: 0 | BE31: 0 | BF31: 0 | BG31: 0 | BH31: 0 | BI31: 0 | BJ31: 0 | BK31: 0 | BL31: 0 | BM31: 0 | BN31: 0 | BO31: 0 | BP31: 0 | BQ31: 0 | BR31: 0 | BS31: 0 | BT31: 0 | BU31: 0 | BV31: 0 | BW31: 0 | BX31: 0 | BY31: 0 | BZ31: 0 | CA31: 0 | CB31: 0 | CC31: 0 | CD31: 0 | CE31: 0 | CF31: 0 | CG31: 0 | CH31: 0 | CI31: 0 | CJ31: 0 | CK31: 0 | CL31: 0 | CM31: 0 | CN31: 0 | CO31: 0 | CP31: 0 | CQ31: 0 | CR31: 0 | CS31: 0 | CT31: 8666670 | CU31: 200074503 | CV31: 0 | CW31: 0 | CX31: 0 | CY31: 3525400 | CZ31: 113353074 | DA31: 0 | DB31: 0 | DC31: 0 | DD31: 0 | DE31: 0 | DF31: 0 | DG31: 0 | DH31: 0 | DI31: 5141270 | DJ31: 86721429 | DK31: 0 | DL31: 0 | DM31: 0 | DN31: 17055000 | DO31: 0 | DP31: 0 | DQ31: 0 | DR31: 0 | DS31: 0 | DT31: 0 | DU31: 0 | DV31: 0 | DW31: 0 | DX31: 0 | DY31: 0 | DZ31: 0 | EA31: 0 | EB31: 0 | EC31: 0 | ED31: 0 | EE31: 0 | EF31: 0
A32: 27 | B32: 0 | C32: 100299477 | D32: 388579712 | E32: 343605917 | F32: 0 | G32: 0 | H32: 0 | I32: 0 | J32: 0 | K32: 0 | L32: 0 | M32: 0 | N32: 0 | O32: 0 | P32: 0 | Q32: 0 | R32: 0 | S32: 0 | T32: 0 | U32: 0 | V32: 0 | W32: 0 | X32: 0 | Y32: 0 | Z32: 0 | AA32: 0 | AB32: 0 | AC32: 0 | AD32: 0 | AE32: 0 | AF32: 420959 | AG32: 1473357 | AH32: 0 | AI32: 0 | AJ32: 0 | AK32: 0 | AL32: 16323274 | AM32: 24484911 | AN32: 0 | AO32: 0 | AP32: 0 | AQ32: 0 | AR32: 0 | AS32: 0 | AT32: 0 | AU32: 0 | AV32: 0 | AW32: 0 | AX32: 2962628 | AY32: 3088124 | AZ32: 1195538 | BA32: 12553149 | BB32: 4338439 | BC32: 136660828.5 | BD32: 348970 | BE32: 348970 | BH32: 0 | BI32: 0 | BJ32: 0 | BK32: 0 | BL32: 0 | BM32: 0 | BN32: 0 | BO32: 0 | BP32: 0 | BQ32: 0 | BR32: 0 | BS32: 0 | BT32: 0 | BU32: 0 | BV32: 0 | BW32: 0 | BX32: 0 | BY32: 0 | BZ32: 1902575 | CA32: 1017877 | CB32: 0 | CC32: 0 | CD32: 0 | CE32: 0 | CF32: 508298 | CG32: 41426287 | CH32: 0 | CI32: 0 | CJ32: 0 | CK32: 0 | CL32: 0 | CM32: 0 | CN32: 0 | CO32: 0 | CP32: 0 | CQ32: 0 | CR32: 0 | CS32: 0 | CT32: 5201552 | CU32: 83352571 | CV32: 0 | CW32: 0 | CX32: 0 | CY32: 0 | CZ32: 0 | DA32: 0 | DB32: 0 | DC32: 0 | DD32: 0 | DE32: 4450290 | DF32: 77727942 | DG32: 140601 | DH32: 4333100 | DI32: 610661 | DJ32: 1291529 | DK32: 146193 | DL32: 0 | DM32: 0 | DN32: 0 | DO32: 0 | DP32: 2828295 | DQ32: 0 | DR32: 0 | DS32: 0 | DT32: 0 | DU32: 0 | DV32: 0 | DW32: 4219901 | DX32: 14147836 | DY32: 4219901 | DZ32: 14147836 | EA32: 761129 | EB32: 28922902 | EC32: 761129 | ED32: 28922902 | EE32: 162900 | EF32: 570276
A33: 28 | B33: 0 | C33: 3769.6 | D33: 15100 | E33: 13600 | F33: 0 | G33: 0 | H33: 0 | I33: 0 | J33: 0 | K33: 0 | L33: 0 | M33: 0 | N33: 0 | O33: 0 | P33: 0 | Q33: 0 | R33: 0 | S33: 0 | T33: 0 | U33: 0 | V33: 0 | W33: 0 | X33: 0 | Y33: 0 | Z33: 0 | AA33: 0 | AB33: 0 | AC33: 0 | AD33: 0 | AE33: 0 | AF33: 0 | AG33: 0 | AH33: 0 | AI33: 0 | AJ33: 0 | AK33: 0 | AL33: 0 | AM33: 0 | AN33: 0 | AO33: 0 | AP33: 0 | AQ33: 0 | AR33: 0 | AS33: 0 | AT33: 0 | AU33: 0 | AV33: 0 | AW33: 0 | AX33: 0 | AY33: 0 | AZ33: 0 | BA33: 0 | BB33: 0 | BC33: 0 | BD33: 0 | BE33: 0 | BF33: 0 | BG33: 0 | BH33: 2171 | BI33: 7890 | BJ33: 1942 | BK33: 7110 | BL33: 0 | BM33: 0 | BN33: 0 | BO33: 0 | BP33: 0 | BQ33: 0 | BR33: 0 | BS33: 0 | BT33: 0 | BU33: 0 | BV33: 0 | BW33: 0 | BX33: 0 | BY33: 0 | BZ33: 0 | CA33: 0 | CB33: 0 | CC33: 0 | CD33: 0 | CE33: 0 | CF33: 0 | CG33: 0 | CH33: 0 | CI33: 0 | CJ33: 0 | CK33: 0 | CL33: 0 | CM33: 0 | CN33: 0 | CO33: 0 | CP33: 0 | CQ33: 0 | CR33: 0 | CS33: 0 | CT33: 0 | CU33: 0 | CV33: 0 | CW33: 0 | CX33: 0 | CY33: 0 | CZ33: 0 | DA33: 0 | DB33: 0 | DC33: 0 | DD33: 0 | DE33: 0 | DF33: 0 | DG33: 0 | DH33: 0 | DI33: 0 | DJ33: 0 | DK33: 220020 | DL33: 0 | DM33: 0 | DN33: 0 | DO33: 0 | DP33: 0 | DQ33: 0 | DR33: 0 | DS33: 0 | DT33: 0 | DU33: 0 | DV33: 0 | DW33: 0 | DX33: 0 | DY33: 0 | DZ33: 0 | EA33: 0 | EB33: 0 | EC33: 0 | ED33: 0 | EE33: 0 | EF33: 0
A34: 29 | B34: 0 | C34: 10992210 | D34: 42611931 | E34: 36274293 | F34: 0 | G34: 0 | H34: 0 | I34: 0 | J34: 0 | K34: 0 | L34: 0 | M34: 0 | N34: 0 | O34: 0 | P34: 0 | Q34: 0 | R34: 0 | S34: 0 | T34: 0 | U34: 0 | V34: 0 | W34: 0 | X34: 0 | Y34: 0 | Z34: 0 | AA34: 0 | AB34: 0 | AC34: 0 | AD34: 0 | AE34: 0 | AF34: 0 | AG34: 0 | AH34: 0 | AI34: 0 | AJ34: 0 | AK34: 0 | AL34: 0 | AM34: 0 | AN34: 0 | AO34: 0 | AP34: 0 | AQ34: 0 | AR34: 0 | AS34: 0 | AT34: 0 | AU34: 0 | AV34: 0 | AW34: 0 | AX34: 0 | AY34: 0 | AZ34: 0 | BA34: 0 | BB34: 0 | BC34: 0 | BD34: 0 | BE34: 0 | BF34: 0 | BG34: 0 | BH34: 0 | BI34: 0 | BJ34: 0 | BK34: 0 | BL34: 0 | BM34: 0 | BN34: 0 | BO34: 0 | BP34: 0 | BQ34: 0 | BR34: 0 | BS34: 0 | BT34: 0 | BU34: 0 | BV34: 175 | BW34: 4736 | BX34: 0 | BY34: 0 | BZ34: 90932 | CA34: 48421 | CB34: 0 | CC34: 0 | CD34: 0 | CE34: 0 | CF34: 48757 | CG34: 4083886 | CH34: 0 | CI34: 0 | CJ34: 0 | CK34: 0 | CL34: 0 | CM34: 0 | CN34: 0 | CO34: 0 | CP34: 0 | CQ34: 0 | CR34: 0 | CS34: 0 | CT34: 1144601 | CU34: 42350240 | CV34: 0 | CW34: 0 | CX34: 0 | CY34: 0 | CZ34: 0 | DA34: 0 | DB34: 0 | DC34: 1144601 | DD34: 42350240 | DE34: 0 | DF34: 0 | DG34: 0 | DH34: 0 | DI34: 0 | DJ34: 0 | DK34: 0 | DL34: 0 | DM34: 0 | DN34: 8723929 | DO34: 0 | DP34: 0 | DQ34: 0 | DR34: 0 | DS34: 0 | DT34: 0 | DU34: 0 | DV34: 0 | DW34: 0 | DX34: 0 | DY34: 0 | DZ34: 0 | EA34: 0 | EB34: 0 | EC34: 0 | ED34: 0 | EE34: 0 | EF34: 0
A35: 30 | B35: 0 | C35: 0 | D35: 0 | E35: 0 | F35: 0 | G35: 0 | H35: 0 | I35: 0 | J35: 0 | K35: 0 | L35: 0 | M35: 0 | N35: 0 | O35: 0 | P35: 0 | Q35: 0 | R35: 0 | S35: 0 | T35: 0 | U35: 0 | V35: 0 | W35: 0 | X35: 0 | Y35: 0 | Z35: 0 | AA35: 0 | AB35: 0 | AC35: 0 | AD35: 0 | AE35: 0 | AF35: 0 | AG35: 0 | AH35: 0 | AI35: 0 | AJ35: 0 | AK35: 0 | AL35: 0 | AM35: 0 | AN35: 0 | AO35: 0 | AP35: 0 | AQ35: 0 | AR35: 0 | AS35: 0 | AT35: 0 | AU35: 0 | AV35: 0 | AW35: 0 | AX35: 0 | AY35: 0 | AZ35: 0 | BA35: 0 | BB35: 0 | BC35: 0 | BD35: 0 | BE35: 0 | BF35: 0 | BG35: 0 | BH35: 0 | BI35: 0 | BJ35: 0 | BK35: 0 | BL35: 0 | BM35: 0 | BN35: 0 | BO35: 0 | BP35: 0 | BQ35: 0 | BR35: 0 | BS35: 0 | BT35: 0 | BU35: 0 | BV35: 0 | BW35: 0 | BX35: 0 | BY35: 0 | BZ35: 0 | CA35: 0 | CB35: 0 | CC35: 0 | CD35: 0 | CE35: 0 | CF35: 52024 | CG35: 4475517 | CH35: 0 | CI35: 0 | CJ35: 0 | CK35: 0 | CL35: 0 | CM35: 0 | CN35: 0 | CO35: 0 | CP35: 0 | CQ35: 0 | CR35: 0 | CS35: 0 | CT35: 622549 | CU35: 14008146 | CV35: 0 | CW35: 0 | CX35: 0 | CY35: 0 | CZ35: 0 | DA35: 0 | DB35: 0 | DC35: 622549 | DD35: 14008146 | DE35: 0 | DF35: 0 | DG35: 0 | DH35: 0 | DI35: 0 | DJ35: 0 | DK35: 0 | DL35: 0 | DM35: 0 | DN35: 4647210 | DO35: 0 | DP35: 0 | DQ35: 0 | DR35: 0 | DS35: 0 | DT35: 0 | DU35: 51489 | DV35: 22139 | DW35: 0 | DX35: 0 | DY35: 0 | DZ35: 0 | EA35: 0 | EB35: 0 | EC35: 0 | ED35: 0 | EE35: 0 | EF35: 0
A36: 31 | B36: 0 | C36: 306700 | D36: 1371000 | E36: 1110000 | F36: 0 | G36: 0 | H36: 25905 | I36: 90700 | J36: 0 | K36: 0 | L36: 0 | M36: 0 | N36: 0 | O36: 0 | P36: 0 | Q36: 0 | R36: 0 | S36: 0 | T36: 0 | U36: 0 | V36: 0 | W36: 0 | X36: 0 | Y36: 0 | Z36: 0 | AA36: 0 | AB36: 0 | AC36: 0 | AD36: 0 | AE36: 0 | AF36: 13000 | AG36: 53000 | AH36: 0 | AI36: 0 | AJ36: 0 | AK36: 0 | AL36: 0 | AM36: 0 | AN36: 0 | AO36: 0 | AP36: 0 | AQ36: 0 | AR36: 0 | AS36: 0 | AT36: 0 | AU36: 0 | AV36: 0 | AW36: 0 | AX36: 0 | AY36: 0 | AZ36: 0 | BA36: 0 | BB36: 0 | BC36: 0 | BD36: 0 | BE36: 0 | BF36: 0 | BG36: 0 | BH36: 0 | BI36: 0 | BJ36: 0 | BK36: 0 | BL36: 0 | BM36: 0 | BN36: 0 | BO36: 0 | BP36: 0 | BQ36: 0 | BR36: 0 | BS36: 0 | BT36: 0 | BU36: 0 | BV36: 0 | BW36: 0 | BX36: 0 | BY36: 0 | BZ36: 0 | CA36: 0 | CB36: 0 | CC36: 0 | CD36: 0 | CE36: 0 | CF36: 0 | CG36: 0 | CH36: 0 | CI36: 0 | CJ36: 0 | CK36: 0 | CL36: 0 | CM36: 0 | CN36: 0 | CO36: 0 | CP36: 0 | CQ36: 0 | CR36: 0 | CS36: 0 | CT36: 39900 | CU36: 159600 | CV36: 0 | CW36: 2878 | CX36: 0 | CY36: 0 | CZ36: 0 | DA36: 0 | DB36: 0 | DC36: 0 | DD36: 0 | DE36: 0 | DF36: 0 | DG36: 0 | DH36: 0 | DI36: 42778 | DJ36: 169700 | DK36: 0 | DL36: 0 | DM36: 0 | DN36: 0 | DO36: 0 | DP36: 0 | DQ36: 0 | DR36: 0 | DS36: 0 | DT36: 0 | DU36: 0 | DV36: 0 | DW36: 0 | DX36: 0 | DY36: 0 | DZ36: 0 | EA36: 0 | EB36: 0 | EC36: 0 | ED36: 0 | EE36: 0 | EF36: 0
A37: 32 | B37: 0 | C37: 0 | D37: 0 | E37: 0 | F37: 0 | G37: 0 | H37: 0 | I37: 0 | L37: 0 | M37: 0 | N37: 0 | O37: 0 | P37: 0 | Q37: 0 | R37: 0 | S37: 0 | T37: 0 | U37: 0 | V37: 0 | W37: 0 | X37: 0 | Y37: 0 | Z37: 0 | AA37: 0 | AB37: 1115319 | AC37: 1115319 | AD37: 0 | AE37: 0 | AF37: 0 | AG37: 0 | AH37: 0 | AI37: 0 | AJ37: 0 | AK37: 0 | AL37: 0 | AM37: 0 | AN37: 0 | AO37: 0 | AP37: 0 | AQ37: 0 | AR37: 0 | AS37: 0 | AT37: 0 | AU37: 0 | AV37: 0 | AW37: 0 | AX37: 0 | AY37: 0 | AZ37: 0 | BA37: 0 | BB37: 0 | BC37: 0 | BD37: 0 | BE37: 0 | BF37: 0 | BG37: 0 | BH37: 0 | BI37: 0 | BJ37: 0 | BK37: 0 | BL37: 0 | BM37: 0 | BN37: 0 | BO37: 0 | BP37: 0 | BQ37: 0 | BR37: 0 | BS37: 0 | BT37: 0 | BU37: 0 | BV37: 0 | BW37: 0 | BX37: 0 | BY37: 0 | BZ37: 0 | CA37: 0 | CB37: 0 | CC37: 0 | CD37: 0 | CE37: 0 | CF37: 0 | CG37: 0 | CH37: 0 | CI37: 0 | CJ37: 0 | CK37: 0 | CL37: 0 | CM37: 0 | CN37: 0 | CO37: 0 | CP37: 0 | CQ37: 0 | CR37: 0 | CS37: 0 | CT37: 0 | CU37: 0 | CV37: 0 | CW37: 0 | CX37: 0 | CY37: 0 | CZ37: 0 | DA37: 0 | DB37: 0 | DC37: 0 | DD37: 0 | DE37: 0 | DF37: 0 | DG37: 0 | DH37: 0 | DI37: 0 | DJ37: 0 | DK37: 3253.5 | DL37: 0 | DM37: 0 | DN37: 0 | DO37: 0 | DP37: 0 | DQ37: 0 | DR37: 0 | DS37: 0 | DT37: 0 | DU37: 0 | DV37: 0 | DW37: 0 | DX37: 0 | DY37: 0 | DZ37: 0 | EA37: 0 | EB37: 0 | EC37: 0 | ED37: 0 | EE37: 0 | EF37: 0
A38: 33 | B38: 0 | C38: 69577975 | D38: 271354102 | E38: 242827132 | F38: 0 | G38: 0 | H38: 0 | I38: 0 | J38: 0 | K38: 0 | L38: 0 | M38: 0 | N38: 0 | O38: 0 | P38: 0 | Q38: 0 | R38: 0 | S38: 0 | T38: 0 | U38: 0 | V38: 0 | W38: 0 | X38: 0 | Y38: 0 | Z38: 0 | AA38: 0 | AB38: 0 | AC38: 0 | AD38: 0 | AE38: 0 | AF38: 0 | AG38: 0 | AH38: 0 | AI38: 0 | AJ38: 0 | AK38: 0 | AL38: 0 | AM38: 0 | AN38: 0 | AO38: 0 | AP38: 0 | AQ38: 0 | AR38: 0 | AS38: 0 | AT38: 0 | AU38: 0 | AV38: 0 | AW38: 0 | AX38: 0 | AY38: 0 | AZ38: 0 | BA38: 0 | BB38: 0 | BC38: 0 | BD38: 0 | BE38: 0 | BF38: 0 | BG38: 0 | BH38: 0 | BI38: 0 | BJ38: 0 | BK38: 0 | BL38: 0 | BM38: 0 | BN38: 0 | BO38: 0 | BP38: 0 | BQ38: 0 | BR38: 0 | BS38: 0 | BT38: 0 | BU38: 0 | BV38: 0 | BW38: 0 | BX38: 0 | BY38: 0 | BZ38: 0 | CA38: 0 | CB38: 0 | CC38: 0 | CD38: 0 | CE38: 0 | CF38: 0 | CG38: 0 | CH38: 0 | CI38: 0 | CJ38: 0 | CK38: 0 | CL38: 0 | CM38: 0 | CN38: 0 | CO38: 0 | CP38: 0 | CQ38: 0 | CR38: 0 | CS38: 0 | CT38: 0 | CU38: 0 | CV38: 0 | CW38: 0 | CX38: 0 | CY38: 0 | CZ38: 0 | DA38: 0 | DB38: 0 | DC38: 6388582 | DD38: 102325144 | DE38: 0 | DF38: 0 | DG38: 0 | DH38: 0 | DI38: 0 | DJ38: 0 | DK38: 0 | DL38: 0 | DM38: 0 | DN38: 0 | DO38: 0 | DP38: 0 | DQ38: 0 | DR38: 0 | DS38: 0 | DT38: 0 | DU38: 0 | DV38: 0 | DW38: 0 | DX38: 0 | DY38: 0 | DZ38: 0 | EA38: 0 | EB38: 0 | EC38: 0 | ED38: 0 | EE38: 0 | EF38: 0
A39: 34 | B39: 0 | C39: 57674961 | D39: 227816096 | E39: 201285614 | F39: 0 | G39: 0 | H39: 0 | I39: 0 | J39: 0 | K39: 0 | L39: 0 | M39: 0 | N39: 0 | O39: 0 | P39: 0 | Q39: 0 | R39: 0 | S39: 0 | T39: 0 | U39: 0 | V39: 0 | W39: 0 | X39: 0 | Y39: 0 | Z39: 0 | AA39: 0 | AB39: 0 | AC39: 0 | AD39: 0 | AE39: 0 | AF39: 0 | AG39: 0 | AH39: 0 | AI39: 0 | AJ39: 0 | AK39: 0 | AL39: 0 | AM39: 0 | AN39: 0 | AO39: 0 | AP39: 0 | AQ39: 0 | AR39: 0 | AS39: 0 | AT39: 0 | AU39: 0 | AV39: 0 | AW39: 0 | AX39: 0 | AY39: 0 | AZ39: 0 | BA39: 0 | BB39: 0 | BC39: 0 | BD39: 0 | BE39: 0 | BF39: 0 | BG39: 0 | BH39: 0 | BI39: 0 | BJ39: 0 | BK39: 0 | BL39: 0 | BM39: 0 | BN39: 0 | BO39: 0 | BP39: 0 | BQ39: 0 | BR39: 0 | BS39: 0 | BT39: 0 | BU39: 0 | BV39: 0 | BW39: 0 | BX39: 0 | BY39: 0 | BZ39: 0 | CA39: 0 | CB39: 0 | CC39: 0 | CD39: 0 | CE39: 0 | CF39: 60675.45 | CG39: 5379675 | CH39: 0 | CI39: 0 | CJ39: 0 | CK39: 0 | CL39: 0 | CM39: 0 | CN39: 0 | CO39: 0 | CP39: 0 | CQ39: 0 | CR39: 0 | CS39: 0 | CT39: 7700764.27 | CU39: 199053911 | CV39: 0 | CW39: 0 | CX39: 0 | CY39: 3759660.93 | CZ39: 109794373 | DA39: 0 | DB39: 0 | DC39: 0 | DD39: 0 | DE39: 0 | DF39: 0 | DG39: 0 | DH39: 0 | DI39: 3941103.34 | DJ39: 89259538 | DK39: 0 | DL39: 0 | DM39: 0 | DN39: 15089100 | DO39: 6126400 | DP39: 0 | DQ39: 0 | DR39: 0 | DS39: 0 | DT39: 0 | DU39: 0 | DV39: 0 | DW39: 0 | DX39: 0 | DY39: 0 | DZ39: 0 | EA39: 0 | EB39: 0 | EC39: 0 | ED39: 0 | EE39: 0 | EF39: 0
A40: 35 | B40: 0 | C40: 14307913 | D40: 54799306 | E40: 46786875 | F40: 0 | G40: 0 | H40: 0 | I40: 0 | J40: 0 | K40: 0 | L40: 0 | M40: 0 | N40: 0 | O40: 0 | P40: 0 | Q40: 0 | R40: 0 | S40: 0 | T40: 0 | U40: 0 | V40: 0 | W40: 0 | X40: 0 | Y40: 0 | Z40: 0 | AA40: 0 | AB40: 0 | AC40: 0 | AD40: 0 | AE40: 0 | AF40: 7714169 | AG40: 27909863 | AH40: 0 | AI40: 0 | AJ40: 0 | AK40: 0 | AL40: 15019409.5 | AM40: 24905936 | AN40: 0 | AO40: 0 | AP40: 0 | AQ40: 0 | AR40: 0 | AS40: 0 | AT40: 0 | AU40: 0 | AV40: 0 | AW40: 0 | AX40: 4329108 | AY40: 5220904 | AZ40: 1535546 | BA40: 18981652 | BB40: 3403749 | BC40: 114253643 | BD40: 1081146 | BE40: 1194666 | BF40: 1531526 | BG40: 2386524 | BH40: 0 | BI40: 0 | BJ40: 0 | BK40: 0 | BL40: 0 | BM40: 0 | BN40: 0 | BO40: 0 | BP40: 0 | BQ40: 0 | BR40: 0 | BS40: 0 | BT40: 0 | BU40: 0 | BV40: 0 | BW40: 0 | BX40: 0 | BY40: 0 | BZ40: 0 | CA40: 0 | CB40: 0 | CC40: 0 | CD40: 0 | CE40: 0 | CF40: 3088796.01 | CG40: 258532226 | CH40: 0 | CI40: 0 | CJ40: 0 | CK40: 0 | CL40: 0 | CM40: 0 | CN40: 0 | CO40: 0 | CP40: 0 | CQ40: 0 | CR40: 0 | CS40: 0 | CT40: 1430865.5 | CU40: 5065264 | CV40: 0 | CW40: 0 | CX40: 0 | CY40: 0 | CZ40: 0 | DA40: 0 | DB40: 0 | DC40: 0 | DD40: 0 | DE40: 0 | DF40: 0 | DG40: 0 | DH40: 0 | DI40: 1430865.5 | DJ40: 5065264 | DK40: 0 | DL40: 0 | DM40: 0 | DN40: 7009000 | DO40: 0 | DP40: 0 | DQ40: 0 | DR40: 0 | DS40: 0 | DT40: 0 | DU40: 0 | DV40: 0 | DW40: 0 | DX40: 0 | DY40: 0 | DZ40: 0 | EA40: 0 | EB40: 0 | EC40: 0 | ED40: 0 | EE40: 15394019 | EF40: 23787614
A41: 36 | B41: 0 | C41: 408225784 | D41: 1571926287 | E41: 1376082651 | F41: 0 | G41: 0 | H41: 0 | I41: 0 | J41: 0 | K41: 0 | L41: 0 | M41: 0 | N41: 0 | O41: 0 | P41: 0 | Q41: 0 | R41: 0 | S41: 0 | T41: 0 | U41: 0 | V41: 0 | W41: 0 | X41: 0 | Y41: 0 | Z41: 0 | AA41: 0 | AB41: 0 | AC41: 0 | AD41: 0 | AE41: 0 | AF41: 0 | AG41: 0 | AH41: 0 | AI41: 0 | AJ41: 58474613 | AK41: 206534926 | AL41: 0 | AM41: 0 | AN41: 0 | AO41: 0 | AP41: 170658604.5 | AQ41: 268195184 | AR41: 0 | AS41: 0 | AT41: 0 | AU41: 0 | AV41: 7343850 | AW41: 3171854 | AX41: 0 | AY41: 0 | AZ41: 131511 | BA41: 1445222 | BB41: 126781 | BC41: 4016389 | BD41: 0 | BE41: 0 | BF41: 0 | BG41: 0 | BH41: 0 | BI41: 0 | BJ41: 0 | BK41: 0 | BL41: 0 | BM41: 0 | BN41: 0 | BO41: 0 | BP41: 0 | BQ41: 0 | BR41: 0 | BS41: 0 | BT41: 0 | BU41: 0 | BV41: 0 | BW41: 0 | BX41: 0 | BY41: 0 | BZ41: 0 | CA41: 0 | CB41: 0 | CC41: 0 | CD41: 0 | CE41: 0 | CF41: 0 | CG41: 0 | CH41: 0 | CI41: 0 | CJ41: 0 | CK41: 0 | CL41: 0 | CM41: 0 | CN41: 0 | CO41: 0 | CP41: 0 | CQ41: 0 | CR41: 0 | CS41: 0 | CT41: 0 | CU41: 0 | CV41: 0 | CW41: 0 | CX41: 0 | CY41: 0 | CZ41: 0 | DA41: 0 | DB41: 0 | DC41: 0 | DD41: 0 | DE41: 0 | DF41: 0 | DG41: 0 | DH41: 0 | DI41: 0 | DJ41: 0 | DK41: 0 | DL41: 0 | DM41: 0 | DN41: 0 | DO41: 0 | DP41: 0 | DQ41: 0 | DR41: 0 | DS41: 0 | DT41: 0 | DU41: 0 | DV41: 0 | DW41: 124351994 | DX41: 469566002 | DY41: 124351994 | DZ41: 469566002 | EA41: 5747113 | EB41: 228228099 | EC41: 5747113 | ED41: 228228099
A42: 37 | B42: 0 | C42: 36401664 | D42: 145679459 | E42: 126495782 | F42: 0 | G42: 0 | H42: 0 | I42: 0 | J42: 0 | K42: 0 | L42: 0 | M42: 0 | N42: 0 | O42: 0 | P42: 0 | Q42: 0 | R42: 0 | S42: 0 | T42: 0 | U42: 0 | V42: 0 | W42: 0 | X42: 88114 | Y42: 3577830 | Z42: 88114 | AA42: 3577830 | AB42: 0 | AC42: 0 | AD42: 0 | AE42: 0 | AF42: 0 | AG42: 0 | AH42: 0 | AI42: 0 | AJ42: 0 | AK42: 0 | AL42: 189180 | AM42: 283770 | AN42: 0 | AO42: 0 | AP42: 47608 | AQ42: 71412 | AR42: 0 | AS42: 0 | AT42: 0 | AU42: 0 | AV42: 0 | AW42: 0 | AX42: 0 | AY42: 0 | AZ42: 0 | BA42: 0 | BB42: 0 | BC42: 0 | BD42: 0 | BE42: 0 | BF42: 0 | BG42: 0 | BH42: 0 | BI42: 0 | BJ42: 0 | BK42: 0 | BL42: 0 | BM42: 0 | BN42: 0 | BO42: 0 | BP42: 0 | BQ42: 0 | BR42: 0 | BS42: 0 | BT42: 0 | BU42: 0 | BV42: 309078 | BW42: 8036028 | BX42: 0 | BY42: 0 | BZ42: 177973 | CA42: 177973 | CB42: 0 | CC42: 0 | CD42: 0 | CE42: 0 | CF42: 765646.5 | CG42: 62739033 | CH42: 0 | CI42: 0 | CJ42: 0 | CK42: 0 | CL42: 0 | CM42: 0 | CN42: 0 | CO42: 0 | CP42: 1690 | CQ42: 131820 | CR42: 0 | CS42: 0 | CT42: 3759732.85 | CU42: 48573226.52 | CV42: 0 | CW42: 0 | CX42: 0 | CY42: 0 | CZ42: 0 | DA42: 307967.38 | DB42: 5610482.4 | DC42: 1977677.48 | DD42: 39485804.49 | DE42: 0 | DF42: 0 | DG42: 0 | DH42: 0 | DI42: 1474087.99 | DJ42: 3476939.63 | DK42: 0 | DL42: 0 | DM42: 0 | DN42: 8412500 | DO42: 10100 | DP42: 0 | DQ42: 0 | DR42: 0 | DS42: 0 | DT42: 0 | DU42: 0 | DV42: 0 | DW42: 1933358 | DX42: 7073638.9 | DY42: 1933358 | DZ42: 7073638.9 | EA42: 0 | EB42: 0 | EC42: 0 | ED42: 0 | EE42: 1971828 | EF42: 2957742
A43: 38 | B43: 0 | C43: 47483678 | D43: 1851863.442 | E43: 1590703.213 | F43: 0 | G43: 0 | H43: 0 | I43: 0 | J43: 0 | K43: 0 | L43: 0 | M43: 0 | N43: 0 | O43: 0 | P43: 0 | Q43: 0 | R43: 0 | S43: 0 | T43: 0 | U43: 0 | V43: 0 | W43: 0 | X43: 0 | Y43: 0 | Z43: 0 | AA43: 0 | AB43: 0 | AC43: 0 | AD43: 0 | AE43: 0 | AF43: 46460 | AG43: 169183 | AH43: 0 | AI43: 0 | AJ43: 0 | AK43: 0 | AL43: 0 | AM43: 0 | AN43: 0 | AO43: 0 | AP43: 0 | AQ43: 0 | AR43: 0 | AS43: 0 | AT43: 0 | AU43: 0 | AV43: 0 | AW43: 0 | AX43: 0 | AY43: 0 | AZ43: 0 | BA43: 0 | BB43: 0 | BC43: 0 | BD43: 0 | BE43: 0 | BF43: 0 | BG43: 0 | BH43: 0 | BI43: 0 | BJ43: 0 | BK43: 0 | BL43: 0 | BM43: 0 | BN43: 0 | BO43: 0 | BP43: 0 | BQ43: 0 | BR43: 0 | BS43: 0 | BT43: 0 | BU43: 0 | BV43: 0 | BW43: 0 | BX43: 0 | BY43: 0 | BZ43: 0 | CA43: 0 | CB43: 0 | CC43: 0 | CD43: 0 | CE43: 0 | CF43: 871393 | CG43: 75407536 | CH43: 0 | CI43: 0 | CJ43: 0 | CK43: 0 | CL43: 0 | CM43: 0 | CN43: 0 | CO43: 0 | CP43: 0 | CQ43: 0 | CR43: 0 | CS43: 0 | CT43: 4393618 | CU43: 90964941 | CV43: 0 | CW43: 0 | CX43: 0 | CY43: 0 | CZ43: 0 | DA43: 0 | DB43: 0 | DC43: 4341789 | DD43: 90944565 | DE43: 0 | DF43: 0 | DG43: 0 | DH43: 0 | DI43: 51829 | DJ43: 20376 | DK43: 0 | DL43: 0 | DM43: 0 | DN43: 7488000 | DO43: 2441801 | DP43: 0 | DQ43: 0 | DR43: 0 | DS43: 0 | DT43: 0 | DU43: 0 | DV43: 0 | DW43: 0 | DX43: 0 | DY43: 0 | DZ43: 0 | EA43: 0 | EB43: 0 | EC43: 0 | ED43: 0 | EE43: 0 | EF43: 0
A44: 39 | B44: 0 | C44: 0 | D44: 0 | E44: 0 | F44: 0 | G44: 0 | H44: 0 | I44: 0 | J44: 0 | K44: 0 | L44: 0 | M44: 0 | N44: 0 | O44: 0 | P44: 0 | Q44: 0 | R44: 0 | S44: 0 | T44: 1309612 | U44: 676 | V44: 1309612 | W44: 676 | X44: 0 | Y44: 0 | Z44: 0 | AA44: 0 | AB44: 0 | AC44: 0 | AD44: 0 | AE44: 0 | AF44: 0 | AG44: 0 | AH44: 0 | AI44: 0 | AJ44: 0 | AK44: 0 | AL44: 0 | AM44: 0 | AN44: 0 | AO44: 0 | AP44: 0 | AQ44: 0 | AR44: 0 | AS44: 0 | AT44: 0 | AU44: 0 | AV44: 0 | AW44: 0 | AX44: 0 | AY44: 0 | AZ44: 0 | BA44: 0 | BB44: 0 | BC44: 0 | BD44: 0 | BE44: 0 | BF44: 0 | BG44: 0 | BH44: 0 | BI44: 0 | BJ44: 0 | BK44: 0 | BL44: 0 | BM44: 0 | BN44: 0 | BO44: 0 | BP44: 0 | BQ44: 0 | BR44: 0 | BS44: 0 | BT44: 0 | BU44: 0 | BV44: 0 | BW44: 0 | BX44: 0 | BY44: 0 | BZ44: 5160895 | CA44: 28761 | CB44: 0 | CC44: 0 | CD44: 0 | CE44: 0 | CF44: 0 | CG44: 0 | CH44: 0 | CI44: 0 | CJ44: 0 | CK44: 0 | CL44: 0 | CM44: 0 | CN44: 0 | CO44: 0 | CP44: 0 | CQ44: 0 | CR44: 0 | CS44: 0 | CT44: 0 | CU44: 0 | CV44: 0 | CW44: 0 | CX44: 0 | CY44: 0 | CZ44: 0 | DA44: 0 | DB44: 0 | DC44: 0 | DD44: 0 | DE44: 0 | DF44: 0 | DG44: 0 | DH44: 0 | DI44: 0 | DJ44: 0 | DK44: 0 | DL44: 0 | DM44: 0 | DN44: 0 | DO44: 0 | DP44: 1475745 | DQ44: 0 | DR44: 0 | DS44: 0 | DT44: 0 | DU44: 0 | DV44: 0 | DW44: 0 | DX44: 0 | DY44: 0 | DZ44: 0 | EA44: 0 | EB44: 0 | EC44: 0 | ED44: 0 | EE44: 0 | EF44: 0
A45: 40 | B45: 0 | C45: 0 | D45: 0 | E45: 0 | F45: 0 | G45: 0 | H45: 0 | I45: 0 | J45: 0 | K45: 0 | L45: 0 | M45: 0 | N45: 0 | O45: 0 | P45: 0 | Q45: 0 | R45: 0 | S45: 0 | T45: 0 | U45: 0 | V45: 0 | W45: 0 | X45: 0 | Y45: 0 | Z45: 0 | AA45: 0 | AB45: 0 | AC45: 0 | AD45: 0 | AE45: 0 | AF45: 0 | AG45: 0 | AH45: 0 | AI45: 0 | AJ45: 0 | AK45: 0 | AL45: 0 | AM45: 0 | AN45: 0 | AO45: 0 | AP45: 0 | AQ45: 0 | AR45: 0 | AS45: 0 | AT45: 0 | AU45: 0 | AV45: 0 | AW45: 0 | AX45: 0 | AY45: 0 | AZ45: 0 | BA45: 0 | BB45: 0 | BC45: 0 | BD45: 0 | BE45: 0 | BF45: 0 | BG45: 0 | BH45: 0 | BI45: 0 | BJ45: 0 | BK45: 0 | BL45: 0 | BM45: 0 | BN45: 4389000 | BO45: 13167000 | BP45: 0 | BQ45: 0 | BR45: 0 | BS45: 0 | BT45: 0 | BU45: 0 | BV45: 0 | BW45: 0 | BX45: 0 | BY45: 0 | BZ45: 0 | CA45: 0 | CB45: 0 | CC45: 0 | CD45: 0 | CE45: 0 | CF45: 0 | CG45: 0 | CH45: 0 | CI45: 0 | CJ45: 0 | CK45: 0 | CL45: 0 | CM45: 0 | CN45: 0 | CO45: 0 | CP45: 0 | CQ45: 0 | CR45: 0 | CS45: 0 | CT45: 0 | CU45: 0 | CV45: 0 | CW45: 0 | CX45: 0 | CY45: 0 | CZ45: 0 | DA45: 0 | DB45: 0 | DC45: 0 | DD45: 0 | DE45: 0 | DF45: 0 | DG45: 0 | DH45: 0 | DI45: 0 | DJ45: 0 | DK45: 0 | DL45: 0 | DM45: 0 | DN45: 0 | DO45: 0 | DP45: 0 | DQ45: 0 | DR45: 0 | DS45: 0 | DT45: 0 | DU45: 0 | DV45: 0 | DW45: 0 | DX45: 0 | DY45: 0 | DZ45: 0 | EA45: 0 | EB45: 0 | EC45: 0 | ED45: 0 | EE45: 0 | EF45: 0
A46: 41 | B46: 0 | C46: 0 | D46: 0 | E46: 0 | F46: 0 | G46: 0 | H46: 0 | I46: 0 | J46: 0 | K46: 0 | L46: 0 | M46: 0 | N46: 0 | O46: 0 | P46: 0 | Q46: 0 | R46: 0 | S46: 0 | T46: 0 | U46: 0 | V46: 0 | W46: 0 | X46: 0 | Y46: 0 | Z46: 0 | AA46: 0 | AB46: 0 | AC46: 0 | AD46: 0 | AE46: 0 | AF46: 0 | AG46: 0 | AH46: 0 | AI46: 0 | AJ46: 0 | AK46: 0 | AL46: 0 | AM46: 0 | AN46: 0 | AO46: 0 | AP46: 0 | AQ46: 0 | AR46: 0 | AS46: 0 | AT46: 0 | AU46: 0 | AV46: 0 | AW46: 0 | AX46: 0 | AY46: 0 | AZ46: 0 | BA46: 0 | BB46: 0 | BC46: 0 | BD46: 0 | BE46: 0 | BF46: 0 | BG46: 0 | BH46: 0 | BI46: 0 | BJ46: 0 | BK46: 0 | BL46: 0 | BM46: 0 | BN46: 0 | BO46: 0 | BP46: 0 | BQ46: 0 | BR46: 0 | BS46: 0 | BT46: 0 | BU46: 0 | BV46: 0 | BW46: 0 | BX46: 0 | BY46: 0 | BZ46: 0 | CA46: 0 | CB46: 0 | CC46: 0 | CD46: 0 | CE46: 0 | CF46: 0 | CG46: 0 | CH46: 0 | CI46: 0 | CJ46: 0 | CK46: 0 | CL46: 0 | CM46: 0 | CN46: 0 | CO46: 0 | CP46: 0 | CQ46: 0 | CR46: 0 | CS46: 0 | CT46: 0 | CU46: 0 | CV46: 0 | CW46: 0 | CX46: 0 | CY46: 0 | CZ46: 0 | DA46: 0 | DB46: 0 | DC46: 0 | DD46: 0 | DE46: 0 | DF46: 0 | DG46: 0 | DH46: 0 | DI46: 0 | DJ46: 0 | DK46: 0 | DL46: 0 | DM46: 0 | DN46: 0 | DO46: 0 | DP46: 0 | DQ46: 0 | DR46: 0 | DS46: 23600 | DT46: 0 | DU46: 0 | DV46: 0 | DW46: 0 | DX46: 0 | DY46: 0 | DZ46: 0 | EA46: 0 | EB46: 0 | EC46: 0 | ED46: 0 | EE46: 0 | EF46: 0
A47: 42 | B47: 0 | C47: 46710 | D47: 197790 | E47: 161998 | F47: 0 | G47: 0 | H47: 0 | I47: 0 | J47: 0 | K47: 0 | L47: 0 | M47: 0 | N47: 0 | O47: 0 | P47: 0 | Q47: 0 | R47: 0 | S47: 0 | T47: 0 | U47: 0 | V47: 0 | W47: 0 | X47: 0 | Y47: 0 | Z47: 0 | AA47: 0 | AB47: 0 | AC47: 0 | AD47: 0 | AE47: 0 | AF47: 0 | AG47: 0 | AH47: 0 | AI47: 0 | AJ47: 0 | AK47: 0 | AL47: 0 | AM47: 0 | AN47: 0 | AO47: 0 | AP47: 0 | AQ47: 0 | AR47: 0 | AS47: 0 | AT47: 0 | AU47: 0 | AV47: 0 | AW47: 0 | AX47: 0 | AY47: 0 | AZ47: 0 | BA47: 0 | BB47: 0 | BC47: 0 | BD47: 0 | BE47: 0 | BF47: 0 | BG47: 0 | BH47: 0 | BI47: 0 | BJ47: 0 | BK47: 0 | BL47: 0 | BM47: 0 | BN47: 0 | BO47: 0 | BP47: 0 | BQ47: 0 | BR47: 0 | BS47: 0 | BT47: 0 | BU47: 0 | BV47: 0 | BW47: 0 | BX47: 0 | BY47: 0 | BZ47: 0 | CA47: 0 | CB47: 0 | CC47: 0 | CD47: 0 | CE47: 0 | CF47: 0 | CG47: 0 | CH47: 0 | CI47: 0 | CJ47: 0 | CK47: 0 | CL47: 0 | CM47: 0 | CN47: 0 | CO47: 0 | CP47: 0 | CQ47: 0 | CR47: 0 | CS47: 0 | CT47: 0 | CU47: 0 | CV47: 0 | CW47: 0 | CX47: 0 | CY47: 0 | CZ47: 0 | DA47: 0 | DB47: 0 | DC47: 0 | DD47: 0 | DE47: 0 | DF47: 0 | DG47: 0 | DH47: 0 | DI47: 0 | DJ47: 0 | DK47: 0 | DL47: 0 | DM47: 0 | DN47: 0 | DO47: 0 | DP47: 0 | DQ47: 0 | DR47: 0 | DS47: 0 | DT47: 0 | DU47: 0 | DV47: 0 | DW47: 0 | DX47: 0 | DY47: 0 | DZ47: 0 | EA47: 0 | EB47: 0 | EC47: 0 | ED47: 0 | EE47: 46710 | EF47: 197790
A48: 43 | B48: 0 | C48: 0 | D48: 0 | E48: 0 | F48: 0 | G48: 0 | H48: 0 | I48: 0 | J48: 0 | K48: 0 | L48: 0 | M48: 0 | N48: 0 | O48: 0 | P48: 0 | Q48: 0 | R48: 0 | S48: 0 | T48: 0 | U48: 0 | V48: 0 | W48: 0 | X48: 0 | Y48: 0 | Z48: 0 | AA48: 0 | AB48: 0 | AC48: 0 | AD48: 0 | AE48: 0 | AF48: 0 | AG48: 0 | AH48: 0 | AI48: 0 | AJ48: 0 | AK48: 0 | AL48: 0 | AM48: 0 | AN48: 0 | AO48: 0 | AP48: 0 | AQ48: 0 | AR48: 0 | AS48: 0 | AT48: 0 | AU48: 0 | AV48: 0 | AW48: 0 | AX48: 0 | AY48: 0 | AZ48: 0 | BA48: 0 | BB48: 0 | BC48: 0 | BD48: 0 | BE48: 0 | BF48: 0 | BG48: 0 | BH48: 1872409 | BI48: 5286364 | BJ48: 247465 | BK48: 869438 | BL48: 0 | BM48: 0 | BN48: 0 | BO48: 0 | BP48: 0 | BQ48: 0 | BR48: 0 | BS48: 0 | BT48: 0 | BU48: 0 | BV48: 0 | BW48: 0 | BX48: 0 | BY48: 0 | BZ48: 0 | CA48: 0 | CB48: 0 | CC48: 0 | CD48: 0 | CE48: 0 | CF48: 0 | CG48: 0 | CH48: 0 | CI48: 0 | CJ48: 0 | CK48: 0 | CL48: 0 | CM48: 0 | CN48: 0 | CO48: 0 | CP48: 0 | CQ48: 0 | CR48: 0 | CS48: 0 | CT48: 0 | CU48: 0 | CV48: 0 | CW48: 0 | CX48: 0 | CY48: 0 | CZ48: 0 | DA48: 0 | DB48: 0 | DC48: 0 | DD48: 0 | DE48: 0 | DF48: 0 | DG48: 0 | DH48: 0 | DI48: 0 | DJ48: 0 | DK48: 0 | DL48: 0 | DM48: 0 | DN48: 0 | DO48: 0 | DP48: 0 | DQ48: 0 | DR48: 0 | DS48: 0 | DT48: 0 | DU48: 0 | DV48: 0 | DW48: 0 | DX48: 0 | DY48: 0 | DZ48: 0 | EA48: 0 | EB48: 0 | EC48: 0 | ED48: 0 | EE48: 0 | EF48: 0
A49: 44 | B49: 0 | C49: 361000344 | D49: 1425820801 | E49: 1227401170 | F49: 0 | G49: 0 | H49: 0 | I49: 0 | J49: 0 | K49: 0 | L49: 0 | M49: 0 | N49: 0 | O49: 0 | P49: 0 | Q49: 0 | R49: 0 | S49: 0 | T49: 0 | U49: 0 | V49: 0 | W49: 0 | X49: 75290 | Y49: 3005670 | Z49: 75290 | AA49: 3005670 | AB49: 0 | AC49: 0 | AD49: 0 | AE49: 0 | AF49: 1035573 | AG49: 3797923 | AH49: 0 | AI49: 0 | AJ49: 12397872 | AK49: 45470603 | AL49: 6265870 | AM49: 9736970 | AN49: 0 | AO49: 0 | AP49: 86187734 | AQ49: 134221412 | AR49: 0 | AS49: 0 | AT49: 0 | AU49: 0 | AV49: 1553412 | AW49: 704434 | AX49: 754535 | AY49: 371515 | AZ49: 2162024 | BA49: 35566000 | BB49: 1066235 | BC49: 36002349 | BD49: 513121 | BE49: 798936 | BF49: 60782 | BG49: 103866 | BH49: 196155 | BI49: 630782 | BJ49: 205606 | BK49: 794483 | BL49: 860219 | BM49: 1425857 | BN49: 4134444 | BO49: 39637524 | BP49: 0 | BQ49: 0 | BR49: 0 | BS49: 0 | BT49: 0 | BU49: 0 | BV49: 1869507 | BW49: 52099675 | BX49: 0 | BY49: 0 | BZ49: 2112790 | CA49: 731728 | CB49: 0 | CC49: 0 | CD49: 0 | CE49: 0 | CF49: 7676416 | CG49: 643902187 | CH49: 0 | CI49: 0 | CJ49: 0 | CK49: 0 | CL49: 227240 | CM49: 15020371 | CN49: 0 | CO49: 0 | CP49: 1150061 | CQ49: 48504854 | CR49: 165715 | CS49: 9878172 | CT49: 22212123 | CU49: 433904967 | CV49: 0 | CW49: 0 | CX49: 0 | CY49: 1507460 | CZ49: 28594545 | DA49: 0 | DB49: 0 | DC49: 14511911 | DD49: 363477848 | DE49: 573915 | DF49: 18665052 | DG49: 0 | DH49: 0 | DI49: 5618837 | DJ49: 23167522 | DK49: 2593209 | DL49: 0 | DM49: 0 | DN49: 9697450 | DO49: 17639792 | DP49: 0 | DQ49: 0 | DR49: 0 | DS49: 0 | DT49: 0 | DU49: 0 | DV49: 0 | DW49: 0 | DX49: 0 | DY49: 0 | DZ49: 0 | EA49: 0 | EB49: 0 | EC49: 0 | ED49: 0 | EE49: 19812062 | EF49: 80413023
A50: 45 | B50: 0 | C50: 39160145 | D50: 151059750 | E50: 133990398 | F50: 0 | G50: 0 | H50: 0 | I50: 0 | J50: 0 | K50: 0 | L50: 0 | M50: 0 | N50: 0 | O50: 0 | P50: 0 | Q50: 0 | R50: 0 | S50: 0 | T50: 0 | U50: 0 | V50: 0 | W50: 0 | X50: 0 | Y50: 0 | Z50: 0 | AA50: 0 | AB50: 0 | AC50: 0 | AD50: 0 | AE50: 0 | AF50: 0 | AG50: 0 | AH50: 0 | AI50: 0 | AJ50: 0 | AK50: 0 | AL50: 0 | AM50: 0 | AN50: 0 | AO50: 0 | AP50: 0 | AQ50: 0 | AR50: 0 | AS50: 0 | AT50: 0 | AU50: 0 | AV50: 0 | AW50: 0 | AX50: 0 | AY50: 0 | AZ50: 0 | BA50: 0 | BB50: 0 | BC50: 0 | BD50: 0 | BE50: 0 | BF50: 0 | BG50: 0 | BH50: 0 | BI50: 0 | BJ50: 0 | BK50: 0 | BL50: 0 | BM50: 0 | BN50: 0 | BO50: 0 | BP50: 0 | BQ50: 0 | BR50: 0 | BS50: 0 | BT50: 0 | BU50: 0 | BV50: 0 | BW50: 0 | BX50: 0 | BY50: 0 | BZ50: 0 | CA50: 0 | CB50: 0 | CC50: 0 | CD50: 0 | CE50: 0 | CF50: 0 | CG50: 0 | CH50: 0 | CI50: 0 | CJ50: 0 | CK50: 0 | CL50: 0 | CM50: 0 | CN50: 0 | CO50: 0 | CP50: 0 | CQ50: 0 | CR50: 0 | CS50: 0 | CT50: 0 | CU50: 0 | CV50: 0 | CW50: 0 | CX50: 0 | CY50: 0 | CZ50: 0 | DA50: 0 | DB50: 0 | DC50: 0 | DD50: 0 | DE50: 0 | DF50: 0 | DG50: 0 | DH50: 0 | DI50: 0 | DJ50: 0 | DK50: 0 | DL50: 0 | DM50: 0 | DN50: 0 | DO50: 0 | DP50: 0 | DQ50: 0 | DR50: 0 | DS50: 0 | DT50: 0 | DU50: 0 | DV50: 0 | DW50: 39160145 | DX50: 151059750 | DY50: 39160145 | DZ50: 151059750 | EA50: 0 | EB50: 0 | EC50: 0 | ED50: 0 | EE50: 0 | EF50: 0
A51: 46 | B51: 0 | C51: 21627191 | D51: 86766927 | E51: 75478897 | F51: 0 | G51: 0 | H51: 0 | I51: 0 | J51: 0 | K51: 0 | L51: 0 | M51: 0 | N51: 0 | O51: 0 | P51: 0 | Q51: 0 | R51: 0 | S51: 0 | T51: 0 | U51: 0 | V51: 0 | W51: 0 | X51: 0 | Y51: 0 | Z51: 0 | AA51: 0 | AB51: 0 | AC51: 0 | AD51: 0 | AE51: 0 | AF51: 0 | AG51: 0 | AH51: 0 | AI51: 0 | AJ51: 0 | AK51: 0 | AL51: 0 | AM51: 0 | AN51: 0 | AO51: 0 | AP51: 0 | AQ51: 0 | AR51: 0 | AS51: 0 | AT51: 0 | AU51: 0 | AV51: 0 | AW51: 0 | AX51: 0 | AY51: 0 | AZ51: 1852923.153 | BA51: 29427288 | BB51: 0 | BC51: 0 | BD51: 0 | BE51: 0 | BF51: 0 | BG51: 0 | BH51: 6503512 | BI51: 27373578 | BJ51: 2880315 | BK51: 22400809 | BL51: 0 | BM51: 0 | BN51: 12209 | BO51: 175723 | BP51: 0 | BQ51: 0 | BR51: 0 | BS51: 0 | BT51: 0 | BU51: 0 | BV51: 0 | BW51: 0 | BX51: 0 | BY51: 0 | BZ51: 4600 | CA51: 2496 | CB51: 0 | CC51: 0 | CD51: 0 | CE51: 0 | CF51: 0 | CG51: 0 | CH51: 0 | CI51: 0 | CJ51: 0 | CK51: 0 | CL51: 0 | CM51: 0 | CN51: 0 | CO51: 0 | CP51: 0 | CQ51: 0 | CR51: 0 | CS51: 0 | CT51: 0 | CU51: 0 | CV51: 0 | CW51: 0 | CX51: 0 | CY51: 0 | CZ51: 0 | DA51: 0 | DB51: 0 | DC51: 0 | DD51: 0 | DE51: 0 | DF51: 0 | DG51: 0 | DH51: 0 | DI51: 0 | DJ51: 0 | DK51: 0 | DL51: 0 | DM51: 0 | DN51: 0 | DO51: 0 | DP51: 0 | DQ51: 0 | DR51: 0 | DS51: 0 | DT51: 0 | DU51: 0 | DV51: 0 | DW51: 0 | DX51: 0 | DY51: 0 | DZ51: 0 | EA51: 0 | EB51: 0 | EC51: 0 | ED51: 0 | EE51: 4841464 | EF51: 7315519
A52: 47 | B52: 0 | C52: 0 | D52: 0 | E52: 0 | F52: 0 | G52: 0 | H52: 0 | I52: 0 | J52: 0 | K52: 0 | L52: 0 | M52: 0 | N52: 0 | O52: 0 | P52: 0 | Q52: 0 | R52: 0 | S52: 0 | T52: 0 | U52: 0 | V52: 0 | W52: 0 | X52: 0 | Y52: 0 | Z52: 0 | AA52: 0 | AB52: 0 | AC52: 0 | AD52: 0 | AE52: 0 | AF52: 0 | AG52: 0 | AH52: 0 | AI52: 0 | AJ52: 0 | AK52: 0 | AL52: 0 | AM52: 0 | AN52: 0 | AO52: 0 | AP52: 0 | AQ52: 0 | AR52: 0 | AS52: 0 | AT52: 0 | AU52: 0 | AV52: 0 | AW52: 0 | AX52: 0 | AY52: 0 | AZ52: 0 | BA52: 0 | BB52: 0 | BC52: 0 | BD52: 0 | BE52: 0 | BF52: 0 | BG52: 0 | BH52: 0 | BI52: 0 | BJ52: 0 | BK52: 0 | BL52: 0 | BM52: 0 | BN52: 0 | BO52: 0 | BP52: 0 | BQ52: 0 | BR52: 0 | BS52: 0 | BT52: 0 | BU52: 0 | BV52: 0 | BW52: 0 | BX52: 0 | BY52: 0 | BZ52: 0 | CA52: 0 | CB52: 0 | CC52: 0 | CD52: 0 | CE52: 0 | CF52: 0 | CG52: 0 | CH52: 0 | CI52: 0 | CJ52: 0 | CK52: 0 | CL52: 0 | CM52: 0 | CN52: 0 | CO52: 0 | CP52: 0 | CQ52: 0 | CR52: 0 | CS52: 0 | CT52: 0 | CU52: 0 | CV52: 0 | CW52: 0 | CX52: 0 | CY52: 0 | CZ52: 0 | DA52: 0 | DB52: 0 | DC52: 0 | DD52: 0 | DE52: 0 | DF52: 0 | DG52: 0 | DH52: 0 | DI52: 0 | DJ52: 0 | DK52: 6256673 | DL52: 0 | DM52: 0 | DN52: 0 | DO52: 0 | DP52: 0 | DQ52: 0 | DR52: 0 | DS52: 0 | DT52: 0 | DU52: 0 | DV52: 0 | DW52: 0 | DX52: 0 | DY52: 0 | DZ52: 0 | EA52: 0 | EB52: 0 | EC52: 0 | ED52: 0 | EE52: 0 | EF52: 0
C53: =SUM(C3:C52) -> 2307890754 | D53: 8785513400 | E53: 7732923433 | F53: 0 | G53: 0 | H53: 25905 | I53: 90700 | J53: 0 | K53: 0 | L53: 0 | M53: 0 | N53: 0 | O53: 0 | P53: 1179366 | Q53: 4641442 | R53: 1179366 | S53: 4641442 | T53: 16941943 | U53: 1569646 | V53: 16941943 | W53: 1569646 | X53: 3842916 | Y53: 152023742 | Z53: 1759854 | AA53: 70606450 | AB53: 104999922.8 | AC53: 104999922.8 | AD53: 0 | AE53: 0 | AF53: 20738950 | AG53: 80335571 | AH53: 0 | AI53: =SUM(AI3:AI52) -> 0 | AJ53: 90062716 | AK53: 320922673 | AL53: 81728373.5 | AM53: 128526065 | AN53: 0 | AO53: 0 | AP53: 401569338.5 | AQ53: 628215254 | AR53: 13524 | AS53: 7565 | AT53: 0 | AU53: 0 | AV53: 12036636 | AW53: 4257974 | AX53: 8373497 | AY53: 9018827 | AZ53: 32038960.5 | BA53: 459268733 | BB53: 22780695.9 | BC53: 740943387.5 | BD53: 9276760 | BE53: 27935803 | BF53: 20400264 | BG53: 48854468 | BH53: 84814605.67 | BI53: 364644345 | BJ53: 45153557.59 | BK53: 205654999 | BL53: 7900341 | BM53: 13828462 | BN53: 34317018.18 | BO53: =SUM(BO3:BO52) -> 194246893 | BP53: 3327674 | BQ53: 18161068 | BR53: 6861852 | BS53: 55181903 | BT53: 6025 | BU53: 270564 | BV53: 12381682 | BW53: 328463729 | BX53: 148200 | BY53: 2003926 | BZ53: 25378993 | CA53: 9042572 | CB53: 148625 | CC53: 5945 | CD53: 566541 | CE53: 15402613 | CF53: 23848296.96 | CG53: 2003217509 | CH53: 0 | CI53: 0 | CJ53: 0 | CK53: 0 | CL53: 227240 | CM53: 15020371 | CN53: 0 | CO53: 0 | CP53: 7486332.1 | CQ53: 284744417 | CR53: 7922479.2 | CS53: 94550907 | CT53: 121218824.1 | CU53: =SUM(CU3:CU52) -> 2150514466 | CV53: 0 | CW53: 2878 | CX53: 0 | CY53: 13783650.93 | CZ53: 311467768 | DA53: 307967.38 | DB53: 5610482.4 | DC53: 40595834.18 | DD53: 944975625.5 | DE53: 8373252.5 | DF53: 202377795 | DG53: 9119615 | DH53: 264026565 | DI53: 57475759.09 | DJ53: 524902921.6 | DK53: 12652129.95 | DL53: 0 | DM53: 0 | DN53: 220598123 | DO53: 74472976 | DP53: 33247530 | DQ53: 0 | DR53: 0 | DS53: 2131004 | DT53: 65866 | DU53: 77062 | DV53: 38661 | DW53: 179707597 | DX53: 667960303.9 | DY53: 179707597 | DZ53: 667960303.9 | EA53: =SUM(EA3:EA52) -> 7189766.25 | EB53: 286375508 | EC53: 7189766.25 | ED53: 286375508.6 | EE53: 59051509 | EF53: 130396605
C54: =MIN(C3:C52) -> 0 | D54: 0 | E54: 0 | F54: 0 | G54: 0 | H54: 0 | I54: 0 | J54: 0 | K54: 0 | L54: 0 | M54: 0 | N54: 0 | O54: 0 | P54: 0 | Q54: 0 | R54: 0 | S54: 0 | T54: 0 | U54: 0 | V54: 0 | W54: 0 | X54: 0 | Y54: 0 | Z54: 0 | AA54: 0 | AB54: 0 | AC54: 0 | AD54: 0 | AE54: 0 | AF54: 0 | AG54: 0 | AH54: 0 | AI54: =MIN(AI3:AI52) -> 0 | AJ54: 0 | AK54: 0 | AL54: 0 | AM54: 0 | AN54: 0 | AO54: 0 | AP54: 0 | AQ54: 0 | AR54: 0 | AS54: 0 | AT54: 0 | AU54: 0 | AV54: 0 | AW54: 0 | AX54: 0 | AY54: 0 | AZ54: 0 | BA54: 0 | BB54: 0 | BC54: 0 | BD54: 0 | BE54: 0 | BF54: 0 | BG54: 0 | BH54: 0 | BI54: 0 | BJ54: 0 | BK54: 0 | BL54: 0 | BM54: 0 | BN54: 0 | BO54: =MIN(BO3:BO52) -> 0 | BP54: 0 | BQ54: 0 | BR54: 0 | BS54: 0 | BT54: 0 | BU54: 0 | BV54: 0 | BW54: 0 | BX54: 0 | BY54: 0 | BZ54: 0 | CA54: 0 | CB54: 0 | CC54: 0 | CD54: 0 | CE54: 0 | CF54: 0 | CG54: 0 | CH54: 0 | CI54: 0 | CJ54: 0 | CK54: 0 | CL54: 0 | CM54: 0 | CN54: 0 | CO54: 0 | CP54: 0 | CQ54: 0 | CR54: 0 | CS54: 0 | CT54: 0 | CU54: =MIN(CU3:CU52) -> 0 | CV54: 0 | CW54: 0 | CX54: 0 | CY54: 0 | CZ54: 0 | DA54: 0 | DB54: 0 | DC54: 0 | DD54: 0 | DE54: 0 | DF54: 0 | DG54: 0 | DH54: 0 | DI54: 0 | DJ54: 0 | DK54: 0 | DL54: 0 | DM54: 0 | DN54: 0 | DO54: 0 | DP54: 0 | DQ54: 0 | DR54: 0 | DS54: 0 | DT54: 0 | DU54: 0 | DV54: 0 | DW54: 0 | DX54: 0 | DY54: 0 | DZ54: 0 | EA54: =MIN(EA3:EA52) -> 0 | EB54: 0 | EC54: 0 | ED54: 0 | EE54: 0 | EF54: 0
C55: =MAX(C3:C52) -> 408225784 | D55: 1571926287 | E55: 1376082651 | F55: 0 | G55: 0 | H55: 25905 | I55: 90700 | J55: 0 | K55: 0 | L55: 0 | M55: 0 | N55: 0 | O55: 0 | P55: 377804 | Q55: 1579220 | R55: 377804 | S55: 1579220 | T55: 13208964 | U55: 1320896 | V55: 13208964 | W55: 1320896 | X55: 2083062 | Y55: 81417292 | Z55: 622295 | AA55: 25026947 | AB55: 101278500 | AC55: 101278500 | AD55: 0 | AE55: 0 | AF55: 8376742 | AG55: 35616557 | AH55: 0 | AI55: =MAX(AI3:AI52) -> 0 | AJ55: 58474613 | AK55: 206534926 | AL55: 34355046 | AM55: 53986919 | AN55: 0 | AO55: 0 | AP55: 170658604.5 | AQ55: 268195184 | AR55: 13524 | AS55: 7565 | AT55: 0 | AU55: 0 | AV55: 7343850 | AW55: 3171854 | AX55: 4329108 | AY55: 5220904 | AZ55: 9343574 | BA55: 123969388 | BB55: 8715865 | BC55: 275771161 | BD55: 7326730 | BE55: 25574890 | BF55: 18746730 | BG55: 46225820 | BH55: 33805706 | BI55: 163413352 | BJ55: 18091340 | BK55: 67290000 | BL55: 1556976 | BM55: 4438042 | BN55: 12770962 | BO55: =MAX(BO3:BO52) -> 44539030 | BP55: 2357100 | BQ55: 16245585 | BR55: 6188670 | BS55: 49669056 | BT55: 6025 | BU55: 270564 | BV55: 6534325 | BW55: 170857472 | BX55: 148200 | BY55: 2003926 | BZ55: 10079150 | CA55: 5607436 | CB55: 148625 | CC55: 5945 | CD55: 511614 | CE55: 15401023 | CF55: 7676416 | CG55: 643902187 | CH55: 0 | CI55: 0 | CJ55: 0 | CK55: 0 | CL55: 227240 | CM55: 15020371 | CN55: 0 | CO55: 0 | CP55: 4270186 | CQ55: 137663060 | CR55: 4811592.2 | CS55: 62282252 | CT55: 22212123 | CU55: =MAX(CU3:CU52) -> 433904967 | CV55: 0 | CW55: 2878 | CX55: 0 | CY55: 3759660.93 | CZ55: 113353074 | DA55: 307967.38 | DB55: 5610482.4 | DC55: 14511911 | DD55: 363477848 | DE55: 4450290 | DF55: 105984801 | DG55: 8979014 | DH55: 259693465 | DI55: 15758752.48 | DJ55: 164422638 | DK55: 6256673 | DL55: 0 | DM55: 0 | DN55: 36028178 | DO55: 41258043 | DP55: 16096090 | DQ55: 0 | DR55: 0 | DS55: 1066464 | DT55: 65866 | DU55: 51489 | DV55: 22139 | DW55: 124351994 | DX55: 469566002 | DY55: 124351994 | DZ55: 469566002 | EA55: =MAX(EA3:EA52) -> 5747113 | EB55: 228228099 | EC55: 5747113 | ED55: 228228099 | EE55: 19812062 | EF55: 80413023
C56: =AVERAGE(C3:C52) -> 48081057.37 | D56: 183031529.2 | E56: 161102571.5 | F56: 0 | G56: 0 | H56: 539.6875 | I56: 1889.583333 | J56: 0 | K56: 0 | L56: 0 | M56: 0 | N56: 0 | O56: 0 | P56: 24570.125 | Q56: 96696.70833 | R56: 24570.125 | S56: 96696.70833 | T56: 352957.1458 | U56: 32700.95833 | V56: 352957.1458 | W56: 32700.95833 | X56: 80060.75 | Y56: 3167161.292 | Z56: 36663.625 | AA56: 1470967.708 | AB56: 2187498.391 | AC56: 2187498.391 | AD56: 0 | AE56: 0 | AF56: 432061.4583 | AG56: 1673657.729 | AH56: 0 | AI56: =AVERAGE(AI3:AI52) -> 0 | AJ56: 1876306.583 | AK56: 6685889.021 | AL56: 1702674.448 | AM56: 2677626.354 | AN56: 0 | AO56: 0 | AP56: 8366027.885 | AQ56: 13087817.79 | AR56: 281.75 | AS56: 157.6041667 | AT56: 0 | AU56: 0 | AV56: 250763.25 | AW56: 88707.79167 | AX56: 174447.8542 | AY56: 187892.2292 | AZ56: 667478.3438 | BA56: 9568098.604 | BB56: 474597.8312 | BC56: 15436320.57 | BD56: 193265.8333 | BE56: 581995.8958 | BF56: 434048.1702 | BG56: 1039456.766 | BH56: 1766970.951 | BI56: 7596757.188 | BJ56: 940699.1165 | BK56: 4284479.146 | BL56: 164590.4375 | BM56: 288092.9583 | BN56: 714937.8788 | BO56: =AVERAGE(BO3:BO52) -> 4046810.271 | BP56: 69326.54167 | BQ56: 378355.5833 | BR56: 142955.25 | BS56: 1149622.979 | BT56: 125.5208333 | BU56: 5636.75 | BV56: 257951.7083 | BW56: 6842994.354 | BX56: 3087.5 | BY56: 41748.45833 | BZ56: 528729.0208 | CA56: 188386.9167 | CB56: 3096.354167 | CC56: 123.8541667 | CD56: 11802.9375 | CE56: 320887.7708 | CF56: 496839.52 | CG56: 41733698.1 | CH56: 0 | CI56: 0 | CJ56: 0 | CK56: 0 | CL56: 4734.166667 | CM56: 312924.3958 | CN56: 0 | CO56: 0 | CP56: 155965.2521 | CQ56: 5932175.354 | CR56: 165051.65 | CS56: 1969810.562 | CT56: 2525392.168 | CU56: =AVERAGE(CU3:CU52) -> 44802384.7 | CV56: 0 | CW56: 59.95833333 | CX56: 0 | CY56: 287159.3944 | CZ56: 6488911.833 | DA56: 6415.987083 | DB56: 116885.05 | DC56: 845746.5454 | DD56: 19686992.2 | DE56: 174442.7604 | DF56: 4216204.062 | DG56: 189991.9792 | DH56: 5500553.438 | DI56: 1197411.648 | DJ56: 10935477.53 | DK56: 263586.0406 | DL56: 0 | DM56: 0 | DN56: 4595794.229 | DO56: 1584531.404 | DP56: 692656.875 | DQ56: 0 | DR56: 0 | DS56: 44395.91667 | DT56: 1372.208333 | DU56: 1605.458333 | DV56: 805.4375 | DW56: 3743908.271 | DX56: 13915839.66 | DY56: 3743908.271 | DZ56: 13915839.66 | EA56: =AVERAGE(EA3:EA52) -> 149786.7969 | EB56: 5966156.417 | EC56: 149786.7969 | ED56: 5966156.429 | EE56: 1256415.085 | EF56: 2774395.851
C57: =MEDIAN(C3:C52) -> 13497421.5 | D57: 48322300.5 | E57: 41401168 | F57: 0 | G57: 0 | H57: 0 | I57: 0 | J57: 0 | K57: 0 | L57: 0 | M57: 0 | N57: 0 | O57: 0 | P57: 0 | Q57: 0 | R57: 0 | S57: 0 | T57: 0 | U57: 0 | V57: 0 | W57: 0 | X57: 0 | Y57: 0 | Z57: 0 | AA57: 0 | AB57: 0 | AC57: 0 | AD57: 0 | AE57: 0 | AF57: 0 | AG57: 0 | AH57: 0 | AI57: =MEDIAN(AI3:AI52) -> 0 | AJ57: 0 | AK57: 0 | AL57: 0 | AM57: 0 | AN57: 0 | AO57: 0 | AP57: 0 | AQ57: 0 | AR57: 0 | AS57: 0 | AT57: 0 | AU57: 0 | AV57: 0 | AW57: 0 | AX57: 0 | AY57: 0 | AZ57: 0 | BA57: 0 | BB57: 0 | BC57: 0 | BD57: 0 | BE57: 0 | BF57: 0 | BG57: 0 | BH57: 0 | BI57: 0 | BJ57: 0 | BK57: 0 | BL57: 0 | BM57: 0 | BN57: 0 | BO57: =MEDIAN(BO3:BO52) -> 0 | BP57: 0 | BQ57: 0 | BR57: 0 | BS57: 0 | BT57: 0 | BU57: 0 | BV57: 0 | BW57: 0 | BX57: 0 | BY57: 0 | BZ57: 0 | CA57: 0 | CB57: 0 | CC57: 0 | CD57: 0 | CE57: 0 | CF57: 0 | CG57: 0 | CH57: 0 | CI57: 0 | CJ57: 0 | CK57: 0 | CL57: 0 | CM57: 0 | CN57: 0 | CO57: 0 | CP57: 0 | CQ57: 0 | CR57: 0 | CS57: 0 | CT57: 371484.94 | CU57: =MEDIAN(CU3:CU52) -> 733175 | CV57: 0 | CW57: 0 | CX57: 0 | CY57: 0 | CZ57: 0 | DA57: 0 | DB57: 0 | DC57: 0 | DD57: 0 | DE57: 0 | DF57: 0 | DG57: 0 | DH57: 0 | DI57: 12224 | DJ57: 10188 | DK57: 0 | DL57: 0 | DM57: 0 | DN57: 0 | DO57: 0 | DP57: 0 | DQ57: 0 | DR57: 0 | DS57: 0 | DT57: 0 | DU57: 0 | DV57: 0 | DW57: 0 | DX57: 0 | DY57: 0 | DZ57: 0 | EA57: =MEDIAN(EA3:EA52) -> 0 | EB57: 0 | EC57: 0 | ED57: 0 | EE57: 0 | EF57: 0
C58: =COUNTIF(C3:C52,">0") -> 37 | D58: 37 | E58: 37 | F58: 0 | G58: 0 | H58: 1 | I58: 1 | J58: 0 | K58: 0 | L58: 0 | M58: 0 | N58: 0 | O58: 0 | P58: 6 | Q58: 6 | R58: 6 | S58: 6 | T58: 5 | U58: 5 | V58: 5 | W58: 5 | X58: 8 | Y58: 8 | Z58: 7 | AA58: 7 | AB58: 6 | AC58: 6 | AD58: 0 | AE58: 0 | AF58: 11 | AG58: 11 | AH58: 0 | AI58: =COUNTIF(AI3:AI52,">0") -> 0 | AJ58: 5 | AK58: 5 | AL58: 11 | AM58: 11 | AN58: 0 | AO58: 0 | AP58: 8 | AQ58: 8 | AR58: 1 | AS58: 1 | AT58: 0 | AU58: 0 | AV58: 5 | AW58: 5 | AX58: 5 | AY58: 5 | AZ58: 15 | BA58: 15 | BB58: 15 | BC58: 15 | BD58: 5 | BE58: 5 | BF58: 5 | BG58: 5 | BH58: 16 | BI58: 16 | BJ58: 16 | BK58: 16 | BL58: 8 | BM58: 8 | BN58: 12 | BO58: =COUNTIF(BO3:BO52,">0") -> 12 | BP58: 5 | BQ58: 5 | BR58: 2 | BS58: 2 | BT58: 1 | BU58: 1 | BV58: 7 | BW58: 7 | BX58: 1 | BY58: 1 | BZ58: 13 | CA58: 13 | CB58: 1 | CC58: 1 | CD58: 3 | CE58: 3 | CF58: 15 | CG58: 15 | CH58: 0 | CI58: 0 | CJ58: 0 | CK58: 0 | CL58: 1 | CM58: 1 | CN58: 0 | CO58: 0 | CP58: 7 | CQ58: 7 | CR58: 4 | CS58: 4 | CT58: 27 | CU58: =COUNTIF(CU3:CU52,">0") -> 27 | CV58: 0 | CW58: 1 | CX58: 0 | CY58: 6 | CZ58: 6 | DA58: 1 | DB58: 1 | DC58: 14 | DD58: 14 | DE58: 3 | DF58: 3 | DG58: 2 | DH58: 2 | DI58: 24 | DJ58: 24 | DK58: 10 | DL58: 0 | DM58: 0 | DN58: 19 | DO58: 7 | DP58: 4 | DQ58: 0 | DR58: 0 | DS58: 3 | DT58: 1 | DU58: 2 | DV58: 2 | DW58: 9 | DX58: 9 | DY58: 9 | DZ58: 9 | EA58: =COUNTIF(EA3:EA52,">0") -> 5 | EB58: 5 | EC58: 5 | ED58: 5 | EE58: 9 | EF58: 9
C59: =IF(AND(C55/C53<0.7,C58>=3),C53,"C") -> 2307890754 | D59: =IF(AND(D55/D53<0.7,D58>=3),D53,"C") -> 8785513400 | E59: 7732923433 | H59: C | I59: C | M59: =IF(AND(M55/M53<0.7,M58>=3),M53,"C") ->  | P59: 1179366 | Q59: 4641442 | R59: 1179366 | S59: 4641442 | T59: C | U59: C | V59: C | W59: C | X59: 3842916 | Y59: 152023742 | Z59: 1759854 | AA59: 70606450 | AB59: C | AC59: C | AF59: 20738950 | AG59: 80335571 | AJ59: 90062716 | AK59: 320922673 | AL59: 81728373.5 | AM59: 128526065 | AP59: 401569338.5 | AQ59: 628215254 | AR59: C | AS59: =IF(AND(AS55/AS53<0.7,AS58>=3),AS53,"C") -> C | AV59: 12036636 | AW59: C | AX59: 8373497 | AY59: 9018827 | AZ59: 32038960.5 | BA59: 459268733 | BB59: 22780695.9 | BC59: 740943387.5 | BD59: C | BE59: C | BF59: C | BG59: C | BH59: 84814605.67 | BI59: 364644345 | BJ59: 45153557.59 | BK59: 205654999 | BL59: 7900341 | BM59: 13828462 | BN59: 34317018.18 | BO59: 194246893 | BP59: C | BQ59: C | BR59: C | BS59: C | BT59: C | BU59: C | BV59: 12381682 | BW59: 328463729 | BX59: C | BY59: =IF(AND(BY55/BY53<0.7,BY58>=3),BY53,"C") -> C | BZ59: 25378993 | CA59: 9042572 | CB59: C | CC59: C | CD59: C | CE59: C | CF59: 23848296.96 | CG59: 2003217509 | CL59: C | CM59: C | CP59: 7486332.1 | CQ59: 284744417 | CR59: 7922479.2 | CS59: 94550907 | CT59: 121218824.1 | CU59: 2150514466 | CW59: C | CY59: 13783650.93 | CZ59: 311467768 | DA59: C | DB59: C | DC59: 40595834.18 | DD59: 944975625.5 | DE59: =IF(AND(DE55/DE53<0.7,DE58>=3),DE53,"C") -> 8373252.5 | DF59: 202377795 | DG59: C | DH59: C | DI59: 57475759.09 | DJ59: 524902921.6 | DK59: 12652129.95 | DN59: 220598123 | DO59: 74472976 | DP59: 33247530 | DS59: 2131004 | DT59: C | DU59: C | DV59: C | DW59: 179707597 | DX59: C | DY59: 179707597 | DZ59: C | EA59: C | EB59: C | EC59: =IF(AND(EC55/EC53<0.7,EC58>=3),EC53,"C") -> C | ED59: =IF(AND(ED55/ED53<0.7,ED58>=3),ED53,"C") -> C | EE59: =IF(AND(EE55/EE53<0.7,EE58>=3),EE53,"C") -> 59051509 | EF59: =IF(AND(EF55/EF53<0.7,EF58>=3),EF53,"C") -> 130396605
C62: =C53*1.027/1000 -> 2370203.804 | D62: =D53/100000 -> 87855.134 | E62: =E53/100000 -> 77329.23433 | F62: =F53*1.035/1000 -> 0 | G62: =G53/100000 -> 0 | H62: =H53*1.035/1000 -> 26.811675 | I62: =I53/100000 -> 0.907 | J62: =J53*1/1000 -> 0 | K62: =K53/100000 -> 0 | L62: =L53*1.032/1000 -> 0 | M62: =M53/100000 -> 0 | N62: =N53/1000 -> 0 | O62: =O53/100000 -> 0 | P62: =P53*1.027/1000 -> 1211.208882 | Q62: =Q53/100000 -> 46.41442 | R62: =R53*1.027/1000 -> 1211.208882 | S62: =S53/100000 -> 46.41442 | T62: =T53*1.032/1000 -> 17484.08518 | U62: =U53/100000 -> 15.69646 | V62: =V53*1.032/1000 -> 17484.08518 | W62: =W53/100000 -> 15.69646 | X62: =X53*1/1000 -> 3842.916 | Y62: =Y53/100000 -> 1520.23742 | Z62: =Z53*1/1000 -> 1759.854 | AA62: =AA53/100000 -> 706.0645 | AB62: =AB53/1000 -> 104999.9228 | AC62: =AC53/1000 -> 104999.9228 | AD62: =AD53*1.027/1000 -> 0 | AE62: =AE53/100000 -> 0 | AF62: =AF53*1.027/1000 -> 21298.90165 | AG62: =AG53/100000 -> 803.35571 | AH62: =AH53*1.027/1000 -> 0 | AI62: =AI53/100000 -> 0 | AJ62: =AJ53*1.027/1000 -> 92494.40933 | AK62: =AK53/100000 -> 3209.22673 | AL62: =AL53*1.03/1000 -> 84180.22471 | AM62: =AM53/100000 -> 1285.26065 | AN62: =AN53*1.03/1000 -> 0 | AO62: =AO53/100000 -> 0 | AP62: =AP53*1.03/1000 -> 413616.4187 | AQ62: =AQ53/100000 -> 6282.15254 | AR62: =AR53*1.032/1000 -> 13.956768 | AS62: =AS53/100000 -> 0.07565 | AT62: =AT53*1.032/1000 -> 0 | AU62: =AU53/100000 -> 0 | AV62: =AV53*1.032/1000 -> 12421.80835 | AW62: =AW53/100000 -> 42.57974 | AX62: =AX53*1.03/1000 -> 8624.70191 | AY62: =AY53/100000 -> 90.18827 | AZ62: =AZ53*1.015/1000 -> 32519.54491 | BA62: =BA53/100000 -> 4592.68733 | BB62: =BB53*1/1000 -> 22780.6959 | BC62: =BC53/100000 -> 7409.433875 | BD62: =BD53*1.03/1000 -> 9555.0628 | BE62: =BE53/100000 -> 279.35803 | BF62: =BF53*1.03/1000 -> 21012.27192 | BG62: =BG53/100000 -> 488.54468 | BH62: =BH53/1000 -> 84814.60567 | BI62: =BI53/100000 -> 3646.44345 | BJ62: =BJ53/1000 -> 45153.55759 | BK62: =BK53/100000 -> 2056.54999 | BL62: =BL53*1.03/1000 -> 8137.35123 | BM62: =BM53/100000 -> 138.28462 | BN62: =BN53/1000 -> 34317.01818 | BO62: =BO53/100000 -> 1942.46893 | BP62: =BP53/1000 -> 3327.674 | BQ62: =BQ53/100000 -> 181.61068 | BR62: =BR53/1000 -> 6861.852 | BS62: =BS53/100000 -> 551.81903 | BT62: =BT53/1000 -> 6.025 | BU62: =BU53/100000 -> 2.70564 | BV62: =BV53/1000 -> 12381.682 | BW62: =BW53/100000 -> 3284.63729 | BX62: =BX53/1000 -> 148.2 | BY62: =BY53/100000 -> 20.03926 | BZ62: =BZ53/1000 -> 25378.993 | CA62: =CA53/100000 -> 90.42572 | CB62: =CB53/1000 -> 148.625 | CC62: =CC53/100000 -> 0.05945 | CD62: =CD53/1000 -> 566.541 | CE62: =CE53/100000 -> 154.02613 | CF62: =CF53/1000 -> 23848.29696 | CG62: =CG53/100000 -> 20032.17509 | CH62: =CH53/1000 -> 0 | CI62: =CI53/100000 -> 0 | CJ62: =CJ53/1000 -> 0 | CK62: =CK53/100000 -> 0 | CL62: =CL53/1000 -> 227.24 | CM62: =CM53/100000 -> 150.20371 | CN62: =CN53/1000 -> 0 | CO62: =CO53/100000 -> 0 | CP62: =CP53/1000 -> 7486.3321 | CQ62: =CQ53/100000 -> 2847.44417 | CR62: =CR53/1000 -> 7922.4792 | CS62: =CS53/100000 -> 945.50907 | CT62: =CT53/1000 -> 121218.8241 | CU62: =CU53/100000 -> 21505.14466 | CV62: =CV53/1000 -> 0 | CW62: =CW53/1000 -> 2.878 | CX62: 0 | CY62: 13783.65093 | CZ62: =CZ53/100000 -> 3114.67768 | DA62: 307.96738 | DB62: =DB53/100000 -> 56.104824 | DC62: 40595.83418 | DD62: =DD53/100000 -> 9449.756255 | DE62: 8373.2525 | DF62: =DF53/100000 -> 2023.77795 | DG62: 9119.615 | DH62: =DH53/100000 -> 2640.26565 | DI62: 57475.75909 | DJ62: =DJ53/100000 -> 5249.029216 | DK62: 12652.12995 | DL62: =DL53/1000 -> 0 | DM62: =DM53/100000 -> 0 | DN62: =DN53*1.027/1000 -> 226554.2723 | DO62: =DO53*1.27/1000 -> 94580.67952 | DP62: =DP53/1000 -> 33247.53 | DQ62: =DQ53/1000 -> 0 | DR62: =DR53/1000 -> 0 | DS62: =DS53/1000 -> 2131.004 | DT62: =DT53/100000 -> 0.65866 | DU62: =DU53*1.03/1000 -> 79.37386 | DV62: =DV53/100000 -> 0.38661 | DW62: =DW53*1.027/1000 -> 184559.7021 | DX62: =DX53/100000 -> 6679.603039 | DY62: =DY53*1.027/1000 -> 184559.7021 | DZ62: =DZ53/100000 -> 6679.603039 | EA62: =EA53*1/1000 -> 7189.76625 | EB62: =EB53/100000 -> 2863.75508 | EC62: =EC53*1/1000 -> 7189.76625 | ED62: =ED53/100000 -> 2863.755086 | EE62: =EE53*1.027/1000 -> 60645.89974 | EF62: =EF53/100000 -> 1303.96605

Sheet Tab. B_EU (hidden)
A1: ANNUAL PRODUCTION AND UTILIZATION OF MILK
A2: ( all milk ) in dairies
A3: TABLE B
A4: Theme :4.01 - Agricultural statistics
A5: Domain :MILK
A6: Dataset :MILK_TABLEB_A
A7: Year :2015 Reference period :2014 Country :CZ
D9: 2014-Annual
D10: Quantities (1000 t) | F10: Milk Fat Content (t) | H10: Milk Proteins (t)
A11: Hierarchy structure | B11: Code | D11: PRO | F11: FAT | H11: PAT
A12: 1 | B12: NOCODE1 | C12: Availabilities | K12: Code
A13: 2 | B13: MC001 | C13: Cows' milk collected from farms: | D13: =Databáze!C62/1000 -> 2370.203804 | E13: F | F13: =Databáze!D62 -> 87855.134 | G13: F | H13: =Databáze!E62 -> 77329.23433 | I13: F | K13: PRO | L13: Field si mandatory, value must be >= 2200, value must be <= 2800
A14: 3 | B14: NOCODE2 | C14: Other availabilities collected: | K14: FAT | L14: Field si mandatory, value must be >= 80000, value must be <= 105000
A15: 4 | B15: MC002 | C15: Ewes' milk | D15: =Databáze!F62/1000 -> 0 | E15: F | F15: =Databáze!G62 -> 0 | G15: F | K15: PAT | L15: Field si mandatory, value must be >= 70000, value must be <= 100000
A16: 5 | B16: MC003 | C16: Goats' milk | D16: =Databáze!H62/1000 -> 0.026811675 | E16: C, F | F16: =Databáze!I62 -> 0.907 | G16: C,F
A17: 6 | B17: MC004 | C17: Buffalo milk | D17: 0 | E17: F | F17: 0 | G17: F
A18: 7 | B18: MC005 | C18: Cream | D18: =Databáze!J62/1000 -> 0 | E18: F | F18: =Databáze!K62 -> 0 | G18: F
A19: 8 | B19: MC006 | C19: Skimmed milk and buttermilk | D19: =Databáze!L62/1000 -> 0 | E19: F | F19: =Databáze!M62 -> 0 | G19: F
A20: 9 | B20: MC009 | C20: Other products (...specify ...) | D20: =Databáze!N62/1000 -> 0 | E20: F | F20: =Databáze!O62 -> 0 | G20: F
A21: 10 | B21: NOCODE3 | C21: Imports and intra-community arrivals from dairies outside the national territory:
A22: 11 | B22: MC010 | C22: Whole milk, including raw milk | D22: =Databáze!P62/1000 -> 1.211208882 | E22: F | F22: =Databáze!Q62 -> 46.41442 | G22: F
A23: 12 | B23: MC020 | C23: Of which Member States | D23: =Databáze!R62/1000 -> 1.211208882 | E23: F | F23: =Databáze!S62 -> 46.41442 | G23: F
A24: 13 | B24: MC014 | C24: Skimmed milk | D24: =Databáze!T62/1000 -> 17.48408518 | E24: C, F | F24: =Databáze!U62 -> 15.69646 | G24: C, F
A25: 14 | B25: MC024 | C25: Of which Member States | D25: =Databáze!V62/1000 -> 17.48408518 | E25: C, F | F25: =Databáze!W62 -> 15.69646 | G25: F
A26: 15 | B26: MC015 | C26: Cream | D26: =Databáze!X62/1000 -> 3.842916 | E26: F | F26: =Databáze!Y62 -> 1520.23742 | G26: F
A27: 16 | B27: MC025 | C27: Of which Member States | D27: =Databáze!Z62/1000 -> 1.759854 | E27: F | F27: =Databáze!AA62 -> 706.0645 | G27: F
A28: 17 | B28: MC019 | C28: Other products (curd, cheese,whey in the liquid state, butter, milk powder) | D28: =Databáze!AB62/1000 -> 104.9999228 | E28: C, F
A29: 18 | B29: MC029 | C29: Of which Member States | D29: =Databáze!AC62/1000 -> 104.9999228 | E29: C, F
D31: 2014-Annual
D32: Quantities (1000 t) | F32: Milk Fat Content (t) | H32: Whole milk (1000 t) | J32: Skimmed milk (1000 t)
A33: Hierarchy structure | B33: Code | D33: PRO | F33: FAT | H33: UWM | J33: USM
A34: 1 | B34: NOCODE1 | C34: Utilization
A35: 2 | B35: MC100 | C35: Fresh products | F35: =SUM(F36,F50:F51,F54,F57:F58) -> 30645.09182 | G35: F | H35: =SUM(H36,H50:H51,H54,H57:H58) -> 876.4604517 | I35: F | J35: =SUM(J36,J50:J51,J54,J57:J58) -> 21.94433913 | K35: F
A36: 2.1 | B36: MC110 | C36: Drinking milk | D36: =SUM(D37,D38,D42,D46) -> 624.0257195 | E36: F | F36: 11294.87 | G36: F | H36: 301.75 | I36: F | J36: =D36-H36 -> 322.2757195 | K36: F
A37: 2.1.1 | B37: MC111 | C37: Raw milk | D37: =Databáze!AD62/1000 -> 0 | E37: F
A38: 2.1.2 | B38: MC112 | C38: Whole milk | D38: =SUM(D39:D41) -> 113.793311 | E38: F
A39: 2.1.2.1 | B39: MC922 | C39: Pasteurized | D39: =Databáze!AF62/1000 -> 21.29890165 | E39: F
A40: 2.1.2.2 | B40: MC932 | C40: Sterilized | D40: =Databáze!AH62/1000 -> 0 | E40: F
A41: 2.1.2.3 | B41: MC942 | C41: Uperized | D41: =Databáze!AJ62/1000 -> 92.49440933 | E41: F
A42: 2.1.3 | B42: MC113 | C42: Semi-skimmed milk | D42: =SUM(D43:D45) -> 497.7966434 | E42: F
A43: 2.1.3.1 | B43: MC923 | C43: Pasteurized | D43: =Databáze!AL62/1000 -> 84.18022471 | E43: F
A44: 2.1.3.2 | B44: MC933 | C44: Sterilized | D44: =Databáze!AN62/1000 -> 0 | E44: F
A45: 2.1.3.3 | B45: MC943 | C45: Uperized | D45: =Databáze!AP62/1000 -> 413.6164187 | E45: F
A46: 2.1.4 | B46: MC114 | C46: Skimmed milk | D46: =SUM(D47:D49) -> 12.43576512 | E46: F
A47: 2.1.4.1 | B47: MC924 | C47: Pasteurized | D47: =Databáze!AR62/1000 -> 0.013956768 | E47: C, F
A48: 2.1.4.2 | B48: MC934 | C48: Sterilized | D48: =Databáze!AT62/1000 -> 0 | E48: F
A49: 2.1.4.3 | B49: MC944 | C49: Uperized | D49: =Databáze!AV62/1000 -> 12.42180835 | E49: F
A50: 2.2 | B50: MC120 | C50: Buttermilk | D50: =Databáze!AX62/1000 -> 8.62470191 | E50: F | F50: =Databáze!AY62 -> 90.18827 | G50: F | H50: =F50*SUM($D$13,$D$18,$D$19,$D$22,$D$24,$D$26,)/SUM($F$13,$F$18,$F$19,$F$22,$F$24,$F$26) -> 2.412828014 | I50: F | J50: =D50-H50 -> 6.211873896 | K50: F
A51: 2.3 | B51: MC130 | C51: Cream | D51: 53.93 | E51: F | F51: 11704.78 | G51: F | H51: =F51*SUM($D$13,$D$18,$D$19,$D$22,$D$24,$D$26,)/SUM($F$13,$F$18,$F$19,$F$22,$F$24,$F$26) -> 313.1407342 | I51: F | J51: =D51-H51 -> -259.2107342 | K51: F
A52: 2.3.1 | B52: MC135 | C52: of fat content not exceeding 29% | D52: =Databáze!AZ62/1000 -> 32.51954491 | E52: F
A53: 2.3.2 | B53: MC136 | C53: Over 29% | D53: 21.41 | E53: F
A54: 2.4 | B54: MC140 | C54: Acidified milk (Yoghurts drinking yoghurts and other) | D54: 169.37 | E54: F | F54: 5474.5 | G54: F | H54: 203.49 | I54: F | J54: =D54-H54 -> -34.12 | K54: F
A55: 2.4.1 | B55: MC141 | C55: With additives | D55: =SUM(Databáze!BD62,Databáze!BH62)/1000 -> 94.36966847 | E55: F
A56: 2.4.2 | B56: MC142 | C56: Without additives | D56: 75 | E56: F
A57: 2.5 | B57: MC150 | C57: Drinks with a milk base | D57: =Databáze!BL62/1000 -> 8.13735123 | E57: F | F57: =Databáze!BM62 -> 138.28462 | G57: F | H57: =F57*SUM($D$13,$D$18,$D$19,$D$22,$D$24,$D$26,)/SUM($F$13,$F$18,$F$19,$F$22,$F$24,$F$26) -> 3.699560986 | I57: F | J57: =D57-H57 -> 4.437790244 | K57: F
A58: 2.6 | B58: MC160 | C58: Other fresh products (Milk jelly and others) | D58: =Databáze!BN62/1000 -> 34.31701818 | E58: F | F58: =Databáze!BO62 -> 1942.46893 | G58: F | H58: =F58*SUM($D$13,$D$18,$D$19,$D$22,$D$24,$D$26,)/SUM($F$13,$F$18,$F$19,$F$22,$F$24,$F$26) -> 51.96732847 | I58: F | J58: =D58-H58 -> -17.65031029 | K58: F
A59: 3 | B59: MC200 | C59: Manufactured products | F59: =SUM(F60,F63,F71,F80,F94:F95,F101) -> 48431.66996 | G59: F | H59: =SUM(H60,H63,H71,H80,H94,H101) -> 1250.272908 | I59: F | J59: =SUM(J60,J63,J71,J80,J94,J101) -> -13.57004617 | K59: F
A60: 3.1 | B60: MC210 | C60: Concentrated milk | D60: =SUM(D61:D62) -> 10.189526 | E60: F | F60: =SUM(Databáze!BQ62,Databáze!BS62) -> 733.42971 | G60: F | H60: =F60*SUM($D$13,$D$18,$D$19,$D$22,$D$24,$D$26,)/SUM($F$13,$F$18,$F$19,$F$22,$F$24,$F$26) -> 19.62161765 | I60: F | J60: =(D61*2.9+D62*3.3)-H60 -> 12.67274855 | K60: F
A61: 3.1.1 | B61: MC211 | C61: Not sweetened | D61: =Databáze!BP62/1000 -> 3.327674 | E61: C, F
A62: 3.1.2 | B62: MC212 | C62: Sweetened | D62: =Databáze!BR62/1000 -> 6.861852 | E62: C, F
A63: 3.2 | B63: MC220 | C63: Powdered dairy products | D63: =SUM(D64:D66,D68:D70) -> 38.630066 | E63: F | F63: =SUM(F67:F70) -> 3551.89349 | G63: F | H63: =SUM(H67:H70) -> 95.02464252 | I63: F | J63: =SUM(J67:J70) -> 239.5430785 | K63: F
A64: 3.2.1 | B64: MC221 | C64: Cream milk powder | D64: =Databáze!BT62/1000 -> 0.006025 | E64: C, F
A65: 3.2.2 | B65: MC222 | C65: Whole milk powder | D65: =Databáze!BV62/1000 -> 12.381682 | E65: F
A66: 3.2.3 | B66: MC223 | C66: Partly skimmed-milk powder | D66: =Databáze!BX62/1000 -> 0.1482 | E66: C, F
A67: 3.2.4 | B67: MC226 | C67: MC221 MC222 MC223 | F67: =SUM(Databáze!BU62,Databáze!BW62,Databáze!BY62) -> 3307.38219 | G67: F | H67: =F67*SUM($D$13,$D$18,$D$19,$D$22,$D$24,$D$26,)/SUM($F$13,$F$18,$F$19,$F$22,$F$24,$F$26) -> 88.48317416 | I67: F | J67: =(SUM(D64:D65)*8+D66*9)-H67 -> 11.95228184 | K67: F
A68: 3.2.5 | B68: MC224 | C68: Skimmed-milk powder | D68: =Databáze!BZ62/1000 -> 25.378993 | E68: F | F68: =Databáze!CA62 -> 90.42572 | G68: F | H68: =F68*SUM($D$13,$D$18,$D$19,$D$22,$D$24,$D$26,)/SUM($F$13,$F$18,$F$19,$F$22,$F$24,$F$26) -> 2.41918057 | I68: F | J68: =D68*9-H68 -> 225.9917564 | K68: F
A69: 3.2.6 | B69: MC225 | C69: Buttermilk | D69: =Databáze!CB62/1000 -> 0.148625 | E69: C, F | F69: =Databáze!CC62 -> 0.05945 | G69: C, F | H69: =F69*SUM($D$13,$D$18,$D$19,$D$22,$D$24,$D$26,)/SUM($F$13,$F$18,$F$19,$F$22,$F$24,$F$26) -> 0.001590479842 | I69: C, F | J69: =D69*8-H69 -> 1.18740952 | K69: C, F
A70: 3.2.7 | B70: MC229 | C70: Other powder products | D70: =Databáze!CD62/1000 -> 0.566541 | E70: C, F | F70: =Databáze!CE62 -> 154.02613 | G70: C, F | H70: =F70*SUM($D$13,$D$18,$D$19,$D$22,$D$24,$D$26,)/SUM($F$13,$F$18,$F$19,$F$22,$F$24,$F$26) -> 4.120697308 | I70: C, F | J70: =D70*8-H70 -> 0.4116306924 | K70: C, F
A71: 3.3 | B71: MC203 | C71: Butter and other yellow fat dairy products (MC231+MC232+MC239) | D71: =SUM(F72,F76,F77)*1.22/1000 -> 26.79583995 | E71: F | F71: =SUM(F72,F76,F77) -> 21963.80324 | G71: F | H71: =SUM(H72,H76,H77) -> 587.6090268 | I71: F | J71: =SUM(J72,J76,J77) -> -550.5139862 | K71: F
A72: 3.3.1 | B72: MC231 | C72: Butter | D72: 21.68 | E72: F | F72: 18170.85 | G72: F | H72: =F72*SUM($D$13,$D$18,$D$19,$D$22,$D$24,$D$26,)/SUM($F$13,$F$18,$F$19,$F$22,$F$24,$F$26) -> 486.1290268 | I72: F | J72: =D72-H72 -> -464.4490268 | K72: F
A73: 3.3.1.1 | B73: MC2311 | C73: Traditional butter * | D73: =Databáze!CH62/1000 -> 0 | E73: F | F73: =Databáze!CI62 -> 0 | G73: F | H73: =F73*SUM($D$13,$D$18,$D$19,$D$22,$D$24,$D$26,)/SUM($F$13,$F$18,$F$19,$F$22,$F$24,$F$26) -> 0 | I73: F | J73: =D73-H73 -> 0 | K73: F
A74: 3.3.1.2 | B74: MC2312 | C74: Recombined butter * | D74: =Databáze!CJ62/1000 -> 0 | E74: F | F74: =Databáze!CK62 -> 0 | G74: F | H74: =F74*SUM($D$13,$D$18,$D$19,$D$22,$D$24,$D$26,)/SUM($F$13,$F$18,$F$19,$F$22,$F$24,$F$26) -> 0 | I74: F | J74: =D74-H74 -> 0 | K74: F
A75: 3.3.1.3 | B75: MC2313 | C75: Whey butter * | D75: =Databáze!CL62/1000 -> 0.22724 | E75: C, F | F75: =Databáze!CM62 -> 150.20371 | G75: C, F | H75: =F75*SUM($D$13,$D$18,$D$19,$D$22,$D$24,$D$26,)/SUM($F$13,$F$18,$F$19,$F$22,$F$24,$F$26) -> 4.018435206 | I75: C, F | J75: =D75-H75 -> -3.791195206 | K75: C, F
A76: 3.3.2 | B76: MC232 | C76: Rendered butter and butteroil | D76: =Databáze!CN62/1000 -> 0 | E76: F | F76: =Databáze!CO62 -> 0 | G76: F | H76: =F76*SUM($D$13,$D$18,$D$19,$D$22,$D$24,$D$26,)/SUM($F$13,$F$18,$F$19,$F$22,$F$24,$F$26) -> 0 | I76: F | J76: =D76-H76 -> 0 | K76: F
A77: 3.3.3 | B77: MC239 | C77: Other yellow fat dairy products (MC2391+MC2392) | D77: =SUM(D78:D79) -> 15.4088113 | E77: F | F77: =SUM(F78:F79) -> 3792.95324 | G77: F | H77: 101.48 | I77: F | J77: =SUM(J78:J79) -> -86.06495944 | K77: F
A78: 3.3.3.1 | B78: MC2391 | C78: Reduced-fat butter * | D78: =Databáze!CP62/1000 -> 7.4863321 | E78: F | F78: =Databáze!CQ62 -> 2847.44417 | G78: F | H78: =F78*SUM($D$13,$D$18,$D$19,$D$22,$D$24,$D$26,)/SUM($F$13,$F$18,$F$19,$F$22,$F$24,$F$26) -> 76.17834406 | I78: F | J78: =D78-H78 -> -68.69201196 | K78: F
A79: 3.3.3.2 | B79: MC2392 | C79: Other * | D79: =Databáze!CR62/1000 -> 7.9224792 | E79: F | F79: =Databáze!CS62 -> 945.50907 | G79: F | H79: =F79*SUM($D$13,$D$18,$D$19,$D$22,$D$24,$D$26,)/SUM($F$13,$F$18,$F$19,$F$22,$F$24,$F$26) -> 25.29542669 | I79: F | J79: =D79-H79 -> -17.37294749 | K79: F
A80: 3.4 | B80: MC240 | C80: Cheese (MC241+MC242+MC243+MC249) or (MC291+MC292+MC293+MC294+MC295+MC296) | D80: =SUM(D82:D85) -> 116.642878 | E80: F | F80: =F82 -> 20271.48 | G80: F | H80: =H82 -> 548 | I80: F | J80: =J82 -> 282.6147303 | K80: F
A81: 3.4.1 | B81: NOCODE2 | C81: Cheese by milk category:
A82: 3.4.1.1 | B82: MC241 | C82: Cheese from cows' milk (pure) | D82: 116.64 | E82: F | F82: 20271.48 | G82: F | H82: 548 | I82: F | J82: =(D87*7+D88*8+D89*9.53+D90*10+D91*14+D92*3)-H82 -> 282.6147303 | K82: F
A83: 3.4.1.2 | B83: MC242 | C83: Cheese from ewes' milk (pure) | D83: =Databáze!CV62/1000 -> 0 | E83: F
A84: 3.4.1.3 | B84: MC243 | C84: Cheese from goats' milk (pure) | D84: =Databáze!CW62/1000 -> 0.002878 | E84: C, F
A85: 3.4.1.4 | B85: MC249 | C85: Others (mixed or cheese from buffalos' milk (pure) | D85: =Databáze!CX62/1000 -> 0 | E85: F
A86: 3.4.2 | B86: NOCODE3 | C86: Cheese (all milks) by category:
A87: 3.4.2.1 | B87: MC291 | C87: Soft cheese | D87: =Databáze!CY62/1000 -> 13.78365093 | E87: F
A88: 3.4.2.2 | B88: MC292 | C88: Medium-soft cheese | D88: =Databáze!DA62/1000 -> 0.30796738 | E88: C, F
A89: 3.4.2.3 | B89: MC293 | C89: Medium-hard cheese | D89: =Databáze!DC62/1000 -> 40.59583418 | E89: F
A90: 3.4.2.4 | B90: MC294 | C90: Hard cheese | D90: =Databáze!DE62/1000 -> 8.3732525 | E90: F
A91: 3.4.2.5 | B91: MC295 | C91: Extra hard cheese | D91: =Databáze!DG62/1000 -> 9.119615 | E91: C, F
A92: 3.4.2.6 | B92: MC296 | C92: Fresh cheese | D92: 44.46 | E92: F
A93: 3.5 | B93: MC250 | C93: Processed cheese | D93: =Databáze!DK62/1000 -> 12.65212995 | E93: F
A94: 3.6 | B94: MC260 | C94: Casein and caseinates | D94: =Databáze!DL62/1000 -> 0 | E94: F | F94: =Databáze!DM62 -> 0 | G94: F | H94: =F94*SUM($D$13,$D$18,$D$19,$D$22,$D$24,$D$26,)/SUM($F$13,$F$18,$F$19,$F$22,$F$24,$F$26) -> 0 | I94: F | J94: =D94-H94 -> 0 | K94: F
A95: 3.7 | B95: MC270 | C95: Whey, total | D95: =D96+D97*6.9+D98*14.6 -> 1364.574899 | E95: F | F95: =D95*1.4 -> 1910.404859 | G95: F
A96: 3.7.1 | B96: MC271 | C96: Whey delivered in the liquid state | D96: =Databáze!DN62/1000 -> 226.5542723 | E96: F
A97: 3.7.2 | B97: MC272 | C97: Whey delivered in the concentrated state | D97: =Databáze!DO62/1000 -> 94.58067952 | E97: F
A98: 3.7.3 | B98: MC273 | C98: Whey in powder or block | D98: =Databáze!DP62/1000 -> 33.24753 | E98: F
A99: 3.7.4 | B99: MC274 | C99: Lactose (milk sugar) | D99: =Databáze!DQ62/1000 -> 0 | E99: F
A100: 3.7.5 | B100: MC275 | C100: Lactalbumin | D100: =Databáze!DR62/1000 -> 0 | E100: F
A101: 3.8 | B101: MC280 | C101: Other manufactured products (analogues, permeat, retentat) | D101: =Databáze!DS62/1000 -> 2.131004 | E101: F | F101: =Databáze!DT62 -> 0.65866 | G101: F | H101: =F101*SUM($D$13,$D$18,$D$19,$D$22,$D$24,$D$26,)/SUM($F$13,$F$18,$F$19,$F$22,$F$24,$F$26) -> 0.017621286 | I101: F | J101: =D101-H101 -> 2.113382714 | K101: F
A102: 4 | B102: MC320 | C102: Skimmed-milk and buttermilk returned to farms | D102: =Databáze!DU62/1000 -> 0.07937386 | E102: C, F | F102: =Databáze!DV62 -> 0.38661 | G102: F | J102: =D102 -> 0.07937386 | K102: F
A103: 5 | B103: MC400 | C103: Exports and dispatches of milk and cream in bulk | D103: =SUM(Databáze!DW62,Databáze!EA62)/1000 -> 191.7494684 | E103: C, F | F103: =SUM(Databáze!DX62,Databáze!EB62) -> 9543.358119 | G103: C, F | H103: 224.49 | I103: C, F | J103: =D103-H103 -> -32.74053163 | K103: C, F
A104: 5.1 | B104: MC410 | C104: Of which Member States | D104: =SUM(Databáze!DY62,Databáze!EC62)/1000 -> 191.7494684 | E104: C, F | F104: =SUM(Databáze!DZ62,Databáze!ED62) -> 9543.358125 | G104: C, F | H104: 224.49 | I104: C, F | J104: =D104-H104 -> -32.74053163 | K104: C, F
A105: 6 | B105: MC500 | C105: Other uses (drinking milk for gastronomy, 12 l pack) | D105: =Databáze!EE62/1000 -> 60.64589974 | E105: F | F105: 709.56 | G105: F | H105: =F105*SUM($D$13,$D$18,$D$19,$D$22,$D$24,$D$26,)/SUM($F$13,$F$18,$F$19,$F$22,$F$24,$F$26) -> 18.98302568 | I105: F | J105: =D105-H105 -> 41.66287406 | K105: F
A106: 7 | B106: MC600 | C106: Differences | F106: 108.32 | G106: F | H106: 5.07 | I106: F | J106: 0.1 | K106: F
A107: 8 | B107: MC900 | C107: Total | D107: =SUM(D36,D50,D51,D54,D57,D58,D60,D63,D71,D80,D93,D94,D95,D99,D100,D101,D102,D103,D105) -> 2722.495876 | E107: F | F107: =SUM(F35,F59,F102,F103,F105,F106) -> 89438.38651 | G107: F | H107: =SUM(H35,H59,H103,H105,H106) -> 2375.276386 | I107: F | J107: =SUM(J35,J59,J102,J103,J105,J106) -> 17.47600924 | K107: F
A109: FOOTER | F109: =F106/F107 -> 0.001211113083 | H109: =H106/H107 -> 0.002134488446 | J109: =J106/J107 -> 0.005722130185
A111: SPECIAL VALUES KEY
A112: C Confidential
A113: NA Not available | C113: nepoužívat pro položky požadované podle legislativy
A115: FLAGS KEY
A116: P Provisional
A117: F Final
A118: C Confidential
A119: R Revised
A120: E Estimated
A121: U Unreliable
A123: Comment

Sheet Tab.C_EU (hidden)
A1: ANNUAL PRODUCTION AND UTILIZATION OF MILK (ALL MILK) ON FARMS
A2: TABLE C
A3: 1000 tons
A4: Theme :4.01 - Agricultural statistics
A5: Domain :MILK
A6: Dataset :MILK_TABLEC_A
A7: Year :201x Reference period :201x Country :CZ
A9: Hierarchy level | B9: Code | D9: 201x-Annual
A10: 1 | B10: NOCODE1 | C10: AVAILABILITIES
A11: 1.1 | B11: MF001 PRO | C11: Cows' milk (whole milk) | H11: Field is mandatory, value =>2500, value = < 3000
A12: 1.1.1 | B12: MF009 PRO | C12: of which dairy cows' milk (wm) | D12: ='Tab. B_EU'!D13 -> 2370.203804 | H12: Field is mandatory, value <= cows milk
A13: 1.2 | B13: MF002 PRO | C13: Ewes' milk (wm)
A14: 1.3 | B14: MF003 PRO | C14: Goats' milk (wm) | D14: ='Tab. B_EU'!$D$16 -> 0.026811675
A15: 1.4 | B15: MF004 PRO | C15: Buffalo milk (wm)
A16: 1.5 | B16: MF000 PRO | C16: Total 1 (wm) | D16: =SUM(D11,D13:D15) -> 0.026811675
A17: 1.6 | B17: MF011 PRO | C17: Returned by dairies (Skimmed milk, buttermilk) | D17: ='Tab. B_EU'!D102 -> 0.07937386
A18: 1.7 | B18: MF012 PRO | C18: Balance of cream deliveries (sb)
A19: 1.8 | B19: MF013 PRO | C19: Farm butter and cream production (sb)
A20: 1.9 | B20: MF010 PRO | C20: Total 1 (sb) | D20: =SUM(D17:D19) -> 0.07937386
A21: 2 | B21: NOCODE2 | C21: UTILIZATION
A22: 2.1 | B22: MF110 UWM | C22: Drinking Milk (wm) | D22: =SUM(D23:D24) -> 0 | H22: Field si mandatory , total from home consumption (MF119 UWM) and direct sales (MF118 UWM)
A23: 2.1.1 | B23: MF119 UWM | C23: a: Home consumption (wm)
A24: 2.1.2 | B24: MF118 UWM | C24: b: Direct sales (wm)
A25: 2.2 | B25: MF030 UWM | C25: Farm butter and cream (wm)
A26: 2.3 | B26: MF240 UWM | C26: Farm cheese (wm)
A27: 2.4 | B27: MF290 UWM | C27: Other products (wm)
A28: 2.5 | B28: MF520 UWM | C28: Feed (wm)
A29: 2.6 | B29: MF400 UWM | C29: Delivered to dairies (wm) | D29: =SUM(D30:D32) -> 2370.203804
A30: 2.6.1 | B30: MF410 UWM | C30: a: Milk (wm) | D30: ='Tab. B_EU'!D13 -> 2370.203804
A31: 2.6.2 | B31: MF430 UWM | C31: b: Cream (in milk equivalent) (wm)
A32: 2.6.3 | B32: MF490 UWM | C32: c: Other products (wm)
A33: 2.7 | B33: MF600 UWM | C33: Difference and losses (wm)
A34: 2.8 | B34: MF000 UWM | C34: Total 2 (wm) | D34: =SUM(D22,D25:D29) -> 2370.203804
A35: 2.9 | B35: MF110 USM | C35: Drinking milk (skimmed milk and buttermilk)
A36: 2.10 | B36: MF240 USM | C36: Farm cheese (sb)
A37: 2.11 | B37: MF520 USM | C37: Feed (sb)
A38: 2.12 | B38: MF400 USM | C38: Delivered to dairies (sb)
A39: 2.13 | B39: MF010 USM | C39: Total 2 (sb) | D39: =SUM(D35:D38) -> 0
A40: 3 | B40: NOCODE3 | C40: PRODUCTS OBTAINED
A41: 3.1 | B41: MF110 PRO | C41: Drinking milk | D41: =SUM(D42:D43) -> 0
A42: 3.1.1 | B42: MF119 PRO | C42: a: Home consumption
A43: 3.1.2 | B43: MF118 PRO | C43: b: Direct sales
A44: 3.2 | B44: MF130 PRO | C44: Farm cream
A45: 3.2.1 | B45: MF131 PRO | C45: of which delivered to dairies
A46: 3.3 | B46: MF230 PRO | C46: Farm butter
A47: 3.3.1 | B47: MF231 PRO | C47: of which delivered to dairies
A48: 3.4 | B48: MF240 PRO | C48: Farm cheese
A49: 3.4.1 | B49: MF241 PRO | C49: of which delivered to dairies
A50: 3.5 | B50: MF290 PRO | C50: Other products
A51: 3.5.1 | B51: MF291 PRO | C51: of which delivered to dairies
A53: FOOTER
A55: SPECIAL VALUES KEY
A56: C Confidential
A57: NA Not available | C57: nepoužívat pro položky požadované podle legislativy
A59: FLAGS KEY
A60: P Provisional
A61: F Final
A62: C Confidential
A63: R Revised
A64: E Estimated
A65: U Unreliable
A68: Comment

Sheet Tab. H_EU (hidden)
A1: Dairies' Activities
A2: Protein content of cows' milk in the main milk products
A3: Table H
A4: Theme :4.01 - Agricultural statistics
A5: Domain :MILK
A6: Dataset :MILK_PROTEIN_A
A7: Year :2015 Reference period :2014 Country :CZ
C9: 2014-Annual | G9: Kontrolní propočet na % obsah bílkovin ve výrobku
C10: Quantity (1000 t) | E10: Protein content (1 t)
A11: Code | C11: PRO | E11: OUT
A12: PLV1100 | B12: FRESH PRODUCTS - Drinking milk | C12: ='Tab. B_EU'!D36 -> 624.0257195 | D12: F | E12: =SUM('Tab. B_EU'!H36,'Tab. B_EU'!J36)*'Tab. B_EU'!$H$13/'Tab. B_EU'!$D$13 -> 20359.19063 | F12: F | G12: =E12/(C12*1000) -> 0.03262556334
A13: PLV1120 | B13: Whole milk | C13: ='Tab. B_EU'!D38 -> 113.793311 | D13: F | E13: =SUM('Tab. B_ČR'!F32:G32)*'Tab. B_EU'!$H$13/'Tab. B_EU'!$D$13 -> 0 | F13: F | G13: =E13/(C13*1000) -> 0
A14: PLV1130 | B14: Semi-skimmed milk | C14: ='Tab. B_EU'!D42 -> 497.7966434 | D14: F | E14: =SUM('Tab. B_ČR'!F36:G36)*'Tab. B_EU'!$H$13/'Tab. B_EU'!$D$13 -> 0 | F14: F | G14: 0
A15: PLV1140 | B15: Skimmed milk | C15: ='Tab. B_EU'!D46 -> 12.43576512 | D15: F | E15: =SUM('Tab. B_ČR'!F40:G40)*'Tab. B_EU'!$H$13/'Tab. B_EU'!$D$13 -> 0 | F15: F | G15: 0
A16: PLV1200 | B16: Buttermilk | C16: ='Tab. B_EU'!D50 -> 8.62470191 | D16: F | E16: =SUM('Tab. B_EU'!H50,'Tab. B_EU'!J50)*'Tab. B_EU'!$H$13/'Tab. B_EU'!$D$13 -> 281.3857584 | F16: F | G16: 0.03262556334
A17: PLV1300 | B17: Cream | C17: ='Tab. B_EU'!D51 -> 53.93 | D17: F | E17: =SUM('Tab. B_EU'!H51,'Tab. B_EU'!J51)*'Tab. B_EU'!$H$13/'Tab. B_EU'!$D$13 -> 1759.496631 | F17: F | G17: 0.03262556334
A18: PLV2100 | B18: MANUFACTURED PRODUCTS - Concentrated milk | C18: ='Tab. B_EU'!D60 -> 10.189526 | D18: F | E18: =SUM('Tab. B_EU'!H60,'Tab. B_EU'!J60)*'Tab. B_EU'!$H$13/'Tab. B_EU'!$D$13 -> 1053.62189 | F18: F | G18: 0.1034024438
A19: PLV2210 | B19: Cream milk powder | C19: ='Tab. B_EU'!D64 -> 0.006025 | D19: C, F | E19: =SUM('Tab. B_ČR'!F58:G58)*'Tab. B_EU'!$H$13/'Tab. B_EU'!$D$13 -> 0 | F19: C, F | G19: 0
A20: PLV2220 | B20: Whole milk powder | C20: ='Tab. B_EU'!D65 -> 12.381682 | D20: F | E20: =SUM('Tab. B_ČR'!F59:G59)*'Tab. B_EU'!$H$13/'Tab. B_EU'!$D$13 -> 3231.674802 | F20: F | G20: 0.2610045067
A21: PLV2230 | B21: Partially skimmed-milk powder | C21: ='Tab. B_EU'!D66 -> 0.1482 | D21: C, F | E21: =SUM('Tab. B_ČR'!F60:G60)*'Tab. B_EU'!$H$13/'Tab. B_EU'!$D$13 -> 0 | F21: C, F | G21: 0
A22: PLV2240 | B22: Skimmed-milk powder | C22: ='Tab. B_EU'!D68 -> 25.378993 | D22: F | E22: =SUM('Tab. B_EU'!H68,'Tab. B_EU'!J68)*'Tab. B_EU'!$H$13/'Tab. B_EU'!$D$13 -> 7452.035492 | F22: F | G22: 0.29363007
A23: PLV2250 | B23: Buttermilk powder | C23: ='Tab. B_EU'!D69 -> 0.148625 | D23: C, F | E23: =SUM('Tab. B_EU'!H69,'Tab. B_EU'!J69)*'Tab. B_EU'!$H$13/'Tab. B_EU'!$D$13 -> 38.79179481 | F23: C, F | G23: 0.2610045067
A24: PLV2300 | B24: Butter and other yellow fat dairy products | C24: =SUM('Tab. B_EU'!D72,'Tab. B_EU'!D76,'Tab. B_EU'!D77) -> 37.0888113 | D24: F | E24: =SUM('Tab. B_EU'!H71,'Tab. B_EU'!J71)*'Tab. B_EU'!$H$13/'Tab. B_EU'!$D$13 -> 1210.246595 | F24: F | G24: 0.03263104297
A25: PLV2411 | B25: Cheese from cows' milk | C25: ='Tab. B_EU'!D82 -> 116.64 | D25: F | E25: =SUM('Tab. B_EU'!H82,'Tab. B_EU'!J82)*'Tab. B_EU'!$H$13/'Tab. B_EU'!$D$13 -> 27099.27349 | F25: F | G25: 0.2323325917
A26: PLV2500 | B26: Processed cheese | C26: ='Tab. B_EU'!D93 -> 12.65212995 | D26: F | E26: =C26*123.48 -> 1562.285006 | F26: F | G26: 0.12348
A27: PLV2600 | B27: Casein and caseinates | C27: ='Tab. B_EU'!D94 -> 0 | D27: F | E27: =SUM('Tab. B_EU'!H94,'Tab. B_EU'!J94)*'Tab. B_EU'!$H$13/'Tab. B_EU'!$D$13 -> 0 | F27: F | G27: 0
A28: PLV2700 | B28: Whey | C28: ='Tab. B_EU'!D95 -> 1364.574899 | D28: F | E28: =C28*6.9 -> 9415.566803 | F28: F | G28: 0.0069
A30: FOOTER | C30: Field is mandatory
A32: SPECIAL VALUES KEY
A33: C Confidential
A34: NA Not available | C34: nepoužívat pro položky požadované podle legislativy
A36: FLAGS KEY
A37: P Provisional
A38: F Final
A39: C Confidential
A40: R Revised
A41: E Estimated
A42: U Unreliable
A44: Comment

Sheet Tab. B_ČR (hidden)
A1: Tabulka B
A2: Roční produkce mléka a zpracování v mlékárnách za referenční rok 2014.
A3: Annual production and utilization of milk in dairies.
A5: Kód ČS: CZ | F5: Rok/Reference year: 2014
A7: Kód výrobku/ Product code | B7: Nákup/Avalabilities | D7: Množství/ Quantity (1000 t) | E7: Obsah mléčného tuku/ Milk fat content (t) | F7: Obsah bílkovin/ Protein content (t)
A9: MC001 | B9: Kravské mléko/Cow´s milk | D9: =Databáze!C62/1000 -> 2370.203804 | E9: =Databáze!D62 -> 87855.134 | F9: =Databáze!E62 -> 77329.23433
A10: MC002 | B10: Ovčí mléko/Ewe´s milk | D10: =Databáze!F62/1000 -> 0 | E10: =Databáze!G62 -> 0
A11: MC003 | B11: Kozí mléko/Goat´s milk | D11: x | E11: x
A12: MC004 | B12: Buvolí mléko/Buffalo milk | D12: 0 | E12: 0
A13: MC005 | B13: Smetana/Cream | D13: =Databáze!J62/1000 -> 0 | E13: =Databáze!K62 -> 0
A14: MC006 | B14: Odstředěné mléko a podmáslí/Skimmed milk and buttermilk | D14: =Databáze!L62/1000 -> 0 | E14: =Databáze!M62 -> 0
A15: MC009 | B15: Ostatní produkty/Other products | D15: x | E15: x
A16: Nákup mléka a ostatních produktů ze zahraničí/Imports:
A17: MC010 | B17: Plnotučné mléko, včetně syrového mléka/Whole milk including raw milk | D17: =Databáze!P62/1000 -> 1.211208882 | E17: =Databáze!Q62 -> 46.41442
A18: MC020 | B18: z toho členské země EU/Of which Member States | D18: =Databáze!R62/1000 -> 1.211208882 | E18: =Databáze!S62 -> 46.41442
A19: MC014 | B19: Odstředěné mléko/Skimmed milk | D19: x | E19: x
A20: MC024 | B20: z toho členské země EU/Of which Member States | D20: x | E20: x
A21: MC015 | B21: Smetana/Cream | D21: =Databáze!X62/1000 -> 3.842916 | E21: =Databáze!Y62 -> 1520.23742
A22: MC025 | B22: z toho členské země EU/Of which Member States | D22: =Databáze!Z62/1000 -> 1.759854 | E22: =Databáze!AA62 -> 706.0645
A23: MC019 | B23: Ostatní produkty/Other products | D23: x
A24: MC029 | B24: z toho členské země EU/Of which Member States | D24: x
A27: Kód výrobku/ Product code | B27: Mlékárenská výroba/Utilization | D27: Množství/ Quantity (1000 t) | E27: Obsah mléčného tuku/ Milk fat content (t) | F27: Zpracované mléko/Processed milk
F28: Plnotučné mléko/ Whole milk (1000 t) [UWM] | G28: Odstředěné mléko/ Skimmed milk (1000 t) [USM]
A29: MC100 | B29: Výrobky z čerstvého mléka celkem/Fresh products | E29: 30645.09 | F29: 876.46 | G29: 21.94
A30: MC110 | B30: Konzumní mléko celkem/Drinking milk | D30: =SUM(D31,D32,D36,D40) -> 624.0299543 | E30: 11294.87 | F30: 301.75 | G30: 322.28
A31: MC111 | B31: Syrové mléko/Raw milk | D31: =Databáze!AD62/1000 -> 0
A32: MC112 | B32: Plnotučné mléko celkem/Whole milk | D32: =SUM(D33:D35) -> 113.793311
A33: MC922 | B33: v tom | C33: pasterované/Pasteurised | D33: =Databáze!AF62/1000 -> 21.29890165
A34: MC932 | C34: sterilované/Sterilised | D34: =Databáze!AH62/1000 -> 0
A35: MC942 | C35: ošetřené UHT/Uperised | D35: =Databáze!AJ62/1000 -> 92.49440933
A36: MC113 | B36: Polotučné mléko celkem/Semi-skimmed milk | D36: =SUM(D37:D39) -> 497.7966434
A37: MC923 | B37: v tom | C37: pasterované/Pasteurised | D37: =Databáze!AL62/1000 -> 84.18022471
A38: MC933 | C38: sterilované/Sterilised | D38: =Databáze!AN62/1000 -> 0
A39: MC943 | C39: ošetřené UHT/Uperised | D39: =Databáze!AP62/1000 -> 413.6164187
A40: MC114 | B40: Odtučněné mléko celkem/Skimmed milk | D40: 12.44
A41: MC924 | B41: v tom | C41: pasterované/Pasteurised | D41: x
A42: MC934 | C42: sterilované/Sterilised | D42: =Databáze!AT62/1000 -> 0
A43: MC944 | C43: ošetřené UHT/Uperised | D43: =Databáze!AV62/1000 -> 12.42180835
A44: MC120 | B44: Podmáslí neochucené, bez přísad/Buttermilk | D44: =Databáze!AX62/1000 -> 8.62470191 | E44: 90.19 | F44: 2.41 | G44: 6.21
A45: MC130 | B45: Smetana celkem/Cream | D45: =SUM(D46:D47) -> 53.93 | E45: 11704.78 | F45: 313.14 | G45: -259.21
A46: MC135 | B46: v tom | C46: smetana o obsahu tuku nejvýše 29% hmotn./Of fat content by 29% | D46: 32.52
A47: MC136 | C47: smetana o obsahu tuku nad 29% hmotn./Over 29% | D47: 21.41
A48: MC140 | B48: Kysané výrobky celkem/Acidified milk | D48: =SUM(D49:D50) -> 169.3696685 | E48: 5474.5 | F48: 203.49 | G48: -34.12
A49: MC141 | B49: v tom | C49: s přísadami/With additives | D49: =SUM(Databáze!BD62,Databáze!BH62)/1000 -> 94.36966847
A50: MC142 | C50: bez přísad/Without additives | D50: 75
A51: MC150 | B51: Mléčné nápoje ostatní celkem/Drinks with a milk base | D51: =Databáze!BL62/1000 -> 8.13735123 | E51: =Databáze!BM62 -> 138.28462 | F51: 3.7 | G51: 4.44
A52: MC160 | B52: Ostatní čerstvé výrobky (dezerty, mléčná rýže, mléčná krupice, pudinky, mražené krémy)/Other fresh products | D52: =Databáze!BN62/1000 -> 34.31701818 | E52: =Databáze!BO62 -> 1942.46893 | F52: 51.97 | G52: =D52-F52 -> -17.65298182
A53: MC200 | B53: Výrobky z technologicky zpracovaného mléka celkem/Manufactured products | E53: 48431.67 | F53: 1250.27 | G53: -13.57
A54: MC210 | B54: Zahuštěné mléko celkem/Concentrated milk | D54: 10.19 | E54: 733.43 | F54: 19.62 | G54: 12.67
A55: MC211 | B55: v tom | C55: neslazené/Not sweetened | D55: x | E55: x | F55: x | G55: x
A56: MC212 | C56: slazené/Sweetened | D56: x | E56: x | F56: x | G56: x
A57: MC220 | B57: Výrobky ze sušeného mléka celkem/Powdered dairy products | D57: 38.63 | E57: 3551.89 | F57: 95.02 | G57: 239.54
A58: MC221 | B58: v tom | C58: sušená smetana/Cream milk powder | D58: x | E58: x | F58: x | G58: x
A59: MC222 | C59: sušené plnotučné mléko/Whole milk powder | D59: =Databáze!BV62/1000 -> 12.381682 | E59: =Databáze!BW62 -> 3284.63729 | F59: =E59*SUM($D$9:$D$14,$D$17,$D$19,$D$21)/SUM($E$9:$E$14,$E$17,$E$19,$E$21) -> 87.2478747 | G59: =D59*8-F59 -> 11.8055813
A60: MC223 | C60: sušené částečně odtučněné a polotučné mléko/Partly-skimmed milk powder | D60: x | E60: x | F60: x | G60: x
A61: MC224 | C61: sušené odtučněné mléko/Skimmed-milk powder | D61: =Databáze!BZ62/1000 -> 25.378993 | E61: =Databáze!CA62 -> 90.42572 | F61: 2.42 | G61: 225.99
A62: MC225 | C62: sušené podmáslí/Buttermilk | D62: x | E62: x | F62: x | G62: x
A63: MC229 | C63: ostatní výrobky ze sušeného mléka/Other powder products | D63: x | E63: x | F63: x | G63: x
A64: MC203 | B64: Máslo a ostatní výrobky z mléčného tuku vyjádřené v máselném ekvivalentu/Butter and other yellow fat dairy products in butter equivalent | D64: 26.8 | E64: 21963.8 | F64: 587.61 | G64: -550.51
A65: MC231 | B65: v tom | C65: máslo/Butter | D65: 21.68 | E65: 18170.85 | F65: 486.13 | G65: =D65-F65 -> -464.45
A66: MC2311 | C66: tradiční máslo/Traditional butter* | D66: =Databáze!CH62/1000 -> 0 | E66: =Databáze!CI62 -> 0 | F66: =E66*SUM($D$9:$D$14,$D$17,$D$19,$D$21)/SUM($E$9:$E$14,$E$17,$E$19,$E$21) -> 0 | G66: =D66-F66 -> 0
A67: MC2312 | C67: rekombinované máslo/Recombined butter* | D67: =Databáze!CJ62/1000 -> 0 | E67: =Databáze!CK62 -> 0 | F67: =E67*SUM($D$9:$D$14,$D$17,$D$19,$D$21)/SUM($E$9:$E$14,$E$17,$E$19,$E$21) -> 0 | G67: =D67-F67 -> 0
A68: MC2313 | C68: syrovátkové máslo/Whey butter* | D68: x | E68: x | F68: x | G68: x
A69: MC232 | C69: přepuštěné máslo a máselný olej/Rendered butter and butter oil | D69: =Databáze!CN62/1000 -> 0 | E69: =Databáze!CO62 -> 0 | F69: =E69*SUM($D$9:$D$14,$D$17,$D$19,$D$21)/SUM($E$9:$E$14,$E$17,$E$19,$E$21) -> 0 | G69: =D69-F69 -> 0
A70: MC239 | B70: Ostatní výrobky z mléčného tuku/Other yellow fat dairy products | D70: =SUM(D71:D72) -> 15.4088113 | E70: =SUM(E71:E72) -> 3792.95324 | F70: =SUM(F71:F72) -> 101.48 | G70: =SUM(G71:G72) -> -86.0636679
A71: MC2391 | B71: v tom | C71: máslo se sníženým obsahem mléčného tuku/Reduced-fat butter | D71: =Databáze!CP62/1000 -> 7.4863321 | E71: =Databáze!CQ62 -> 2847.44417 | F71: 76.18 | G71: =D71-F71 -> -68.6936679
A72: MC2392 | C72: ostatní/Other | D72: =Databáze!CR62/1000 -> 7.9224792 | E72: =Databáze!CS62 -> 945.50907 | F72: 25.3 | G72: -17.37
A73: MC240 | B73: Přírodní sýry celkem/Cheese by milk category | D73: =SUM(D74:D77) -> 116.64 | E73: =SUM(E74:E77) -> 20271.48 | F73: =SUM(F74:F77) -> 548 | G73: =SUM(G74:G77) -> 282.61
A74: MC241 | B74: v tom | C74: sýry vyrobené z kravského mléka/Cheese from cow´s milk (pure) | D74: 116.64 | E74: 20271.48 | F74: 548 | G74: 282.61
A75: MC242 | C75: sýry vyrobené z ovčího mléka/Cheese from ewe´s milk (pure) | D75: =Databáze!CV62/1000 -> 0
A76: MC243 | C76: sýry vyrobené z kozího mléka/Cheese from goat´s milk (pure) | D76: x
A77: MC249 | C77: ostatní sýry vyrobené ze směsného mléka nebo buvolího mléka/Others (mixed or cheese from buffalo´s milk (pure) | D77: =Databáze!CX62/1000 -> 0
A78: MC290 | B78: Skupiny přírodních sýrů podle tvrdosti/Cheeses subdivision into main hardness categories
A79: MC291 | B79: Měkké sýry/Soft cheese | D79: =Databáze!CY62/1000 -> 13.78365093
A80: MC292 | B80: Poloměkké sýry/Medium-soft cheese | D80: x
A81: MC293 | B81: Polotvrdé sýry/Medium-hard cheese | D81: =Databáze!DC62/1000 -> 40.59583418
A82: MC294 | B82: Tvrdé sýry/Hard cheese | D82: =Databáze!DE62/1000 -> 8.3732525
A83: MC295 | B83: Extra tvrdé sýry/Extra hard cheese | D83: x
A84: MC296 | B84: Čerstvé sýry/Fresh cheese | D84: 44.46
A85: MC250 | B85: Tavené sýry/Processed cheese | D85: =Databáze!DK62/1000 -> 12.65212995
A86: MC260 | B86: Kasein a kaseináty/Casein and casienates | D86: =Databáze!DL62/1000 -> 0 | E86: =Databáze!DM62 -> 0 | F86: =E86*SUM($D$9:$D$14,$D$17,$D$19,$D$21)/SUM($E$9:$E$14,$E$17,$E$19,$E$21) -> 0 | G86: =D86-F86 -> 0
A87: MC270 | B87: Syrovátka celkem vyjádřená v ekvivalentu tekuté syrovátky/Whey, total in the liquid equivalent | D87: =D88+D89*6.9+D90*14.6 -> 1364.574899 | E87: 1910.4
A88: MC271 | B88: v tom | C88: syrovátka dodaná v tekutém stavu/Whey delivered in the liquid state | D88: =Databáze!DN62/1000 -> 226.5542723
A89: MC272 | C89: zahuštěná syrovátka/Whey delivered in the concentrated state | D89: =Databáze!DO62/1000 -> 94.58067952
A90: MC273 | C90: sušená syrovátka/Whey in powder or block | D90: =Databáze!DP62/1000 -> 33.24753
A91: MC274 | B91: Laktóza/Lactose | D91: =Databáze!DQ62/1000 -> 0
A92: MC275 | B92: Laktalbumin/Lactalbumin | D92: =Databáze!DR62/1000 -> 0
A93: MC280 | B93: Ostatní výrobky na bázi mléka celkem/Other manufactured products | D93: =Databáze!DS62/1000 -> 2.131004 | E93: =Databáze!DT62 -> 0.65866 | F93: =E93*SUM($D$9:$D$14,$D$17,$D$19,$D$21)/SUM($E$9:$E$14,$E$17,$E$19,$E$21) -> 0.01749559543 | G93: =D93-F93 -> 2.113508405
A94: MC320 | B94: Odstředěné mléko a podmáslí vrácené zemědělcům/Skimmed milk and buttermilk returned to farms | D94: x | E94: x | G94: =D94 -> x
A95: MC400 | B95: Vývoz mléka a smetany do zahraničí/Exports and dispatches of milk and cream in bulk | D95: x | E95: x | F95: x | G95: x
A96: MC410 | B96: z toho členské země EU/Of which Member States | D96: x | E96: x | F96: x | G96: x
A97: MC500 | B97: Jiné použití (mléko v obalech o objemu nad 2 l pro velkoobchod a gastro)/Other uses | D97: =Databáze!EE62/1000 -> 60.64589974 | E97: 709.56 | F97: 18.98 | G97: 41.66
A98: MC600 | B98: Statistický rozdíl/Differences | E98: 108.32 | F98: 5.07 | G98: 0.1
A99: MC900 | B99: Celkem/Total | E99: 89438.39 | F99: 2375.28 | G99: 17.48
A101: * Sběr a předávání údajů jsou nepovinné.
A102: x Nelze zveřejnit z důvody ochrany důvěrných údajů.
E105: =E98/E99 -> 0.001211113035 | F105: =F98/F99 -> 0.002134485198 | G105: =G98/G99 -> 0.005720823799

Sheet Tab. H_ČR (hidden)
A1: TABULKA H
A2: Mléčné bílkoviny z kravského mléka v hlavních mléčných výrobcích.
A3: Protein content of cow´s milk in the main products.
A5: Kód ČS: CZ | D5: Rok/Reference year: 2014
A6: Kód výrobku/Product code | B6: Název výrobku/Product | C6: Vyrobené množství/Quantity (1000 t) | D6: Obsah bílkovin/ Protein content (t)
A7: Výrobky z čerstvého mléka/Fresh products
A8: PLV1100 | B8: Konzumní mléko/Drinking milk | C8: ='Tab. H_EU'!C12 -> 624.0257195 | D8: ='Tab. H_EU'!E12 -> 20359.19063
A9: PLV1120 | B9: Plnotučné mléko/Whole milk | C9: ='Tab. H_EU'!C13 -> 113.793311 | D9: ='Tab. H_EU'!E13 -> 0
A10: PLV1130 | B10: Polotučné mléko/Semi-skimmed milk | C10: ='Tab. H_EU'!C14 -> 497.7966434 | D10: ='Tab. H_EU'!E14 -> 0
A11: PLV1140 | B11: Odtučněné mléko/Skimmed milk | C11: ='Tab. H_EU'!C15 -> 12.43576512 | D11: ='Tab. H_EU'!E15 -> 0
A12: PLV1200 | B12: Podmáslí/Buttermilk | C12: ='Tab. H_EU'!C16 -> 8.62470191 | D12: ='Tab. H_EU'!E16 -> 281.3857584
A13: PLV1300 | B13: Smetana/Cream | C13: ='Tab. H_EU'!C17 -> 53.93 | D13: ='Tab. H_EU'!E17 -> 1759.496631
A14: Výrobky z technologicky zpracovaného mléka/Manufactured products
A15: PLV2100 | B15: Zahuštěné mléko/Concentrated milk | C15: ='Tab. H_EU'!C18 -> 10.189526 | D15: ='Tab. H_EU'!E18 -> 1053.62189
A16: PLV2210 | B16: Sušená smetana/Cream milk powder | C16: x | D16: x
A17: PLV2220 | B17: Sušené plnotučné mléko/Whole milk powder | C17: ='Tab. H_EU'!C20 -> 12.381682 | D17: ='Tab. H_EU'!E20 -> 3231.674802
A18: PLV2230 | B18: Sušené částečně odtučněné mléko/Partially-skimmed milk powder | C18: x | D18: x
A19: PLV2240 | B19: Sušené odtučněné mléko/Skimmed milk powder | C19: ='Tab. H_EU'!C22 -> 25.378993 | D19: ='Tab. H_EU'!E22 -> 7452.035492
A20: PLV2250 | B20: Sušené podmáslí/Buttermilk powder | C20: x | D20: x
A21: PLV2300 | B21: Máslo a ostatní výrobky z mléčného tuku/Butter and other yellow fat dairy products | C21: ='Tab. H_EU'!C24 -> 37.0888113 | D21: ='Tab. H_EU'!E24 -> 1210.246595
A22: PLV2411 | B22: Přírodní sýry z kravského mléka/Cheese from cow´s milk | C22: ='Tab. H_EU'!C25 -> 116.64 | D22: ='Tab. H_EU'!E25 -> 27099.27349
A23: PLV2500 | B23: Tavené sýry/Processed cheese | C23: ='Tab. H_EU'!C26 -> 12.65212995 | D23: ='Tab. H_EU'!E26 -> 1562.285006
A24: PLV2600 | B24: Kasein a kaseináty/Casein and caseinates | C24: ='Tab. H_EU'!C27 -> 0 | D24: ='Tab. H_EU'!E27 -> 0
A25: PLV2700 | B25: Syrovátka vyjádřená v ekvivalentu tekuté syrovátky/Whey, total in the liquid equivalent | C25: ='Tab. H_EU'!C28 -> 1364.574899 | D25: ='Tab. H_EU'!E28 -> 9415.566803
A27: x Nelze zveřejnit z důvodu ochrany důvěrných údajů

Sheet Zdroj-grafy ČR (hidden)
A3: Srovnání nákupu mléka, smetany a ostatních produktů mlékárnami - časová řada 2010 - 2014
C4: 2010 | D4: 2011 | E4: 2012 | F4: 2013 | G4: 2014
C5: (1000 t) | D5: (1000 t) | E5: (1000 t) | F5: (1000 t) | G5: (1000 t)
A6: Kravské mléko nakoupené od zemědělců v ČR | C6: 2312.226 | D6: 2366.104 | E6: 2428.77427 | F6: 2358.416466 | G6: 2370.203804
A7: Nákup plnotučného mléka, včetně syrového mléka z EU a třetích zemí | C7: 30.314 | D7: 13.967 | E7: 4.0567 | F7: 3.37692 | G7: 1.211208882
A8: Nákup smetany z EU a třetích zemí | C8: 2.962 | D8: 0 | E8: 1.98768 | F8: 1.62093 | G8: 3.842916
A9: Nákup ostatních produktů (odstředěné mléko, máslo, tvaroh,sýry přírodní, sušené mléko, tekutá syrovátka) z EU a třetích zemí | C9: 0 | D9: 0 | E9: 2.58 | F9: 13.31 | G9: 122.48
Z22: 2010 | AA22: 2011 | AB22: 2012 | AC22: 2013 | AD22: 2014
Z23: (1000 t) | AA23: (1000 t) | AB23: (1000 t) | AC23: (1000 t) | AD23: (1000 t)
X24: Kravské mléko nakoupené od zemědělců v ČR | Z24: 2312.226 | AA24: 2366.104 | AB24: 2428.77427 | AC24: 2358.416466 | AD24: 2370.203804 | AP24: Kravské mléko nakoupené od zemědělců v ČR | AR24: 2010 | AS24: 2011 | AV24: 2012 | AY24: 2013 | BB24: 2014 | BE24: bazický index 2014/2010 | BF24: nárůst/ pokles
X25: Nákup plnotučného mléka, včetně syrového mléka z EU a třetích zemí | Z25: 30.314 | AA25: 13.967 | AB25: 4.0567 | AC25: 3.37692 | AD25: 1.211208882 | AR25: (1000 t) | AS25: (1000 t) | AT25: meziroční index | AU25: nárůst/ pokles | AV25: (1000 t) | AW25: meziroční index | AX25: nárůst /pokles | AY25: (1000 t) | AZ25: meziroční index | BA25: nárůst /pokles | BB25: (1000 t) | BC25: meziroční index | BD25: nárůst/ pokles
X26: Nákup smetany z EU a třetích zemí | Z26: 2.962 | AA26: 0 | AB26: 1.98768 | AC26: 1.62093 | AD26: 3.842916 | AR26: 2312.226 | AS26: 2366.104 | AT26: =AS26/AR26 -> 1.023301355 | AU26: =AT26-1 -> 0.02330135549 | AV26: 2428.77427 | AW26: =AV26/AS26 -> 1.026486693 | AX26: =AW26-1 -> 0.02648669289 | AY26: 2358.416466 | AZ26: =AY26/AV26 -> 0.9710315591 | BA26: =AZ26-1 -> -0.02896844094 | BB26: 2370.203804 | BC26: =BB26/AY26 -> 1.004997988 | BD26: =BC26-1 -> 0.004997988318 | BE26: =BB26/AR26 -> 1.025074454 | BF26: =BE26-1 -> 0.02507445377
X27: Nákup ostatních produktů (odstředěné mléko, máslo, tvaroh, sýry přírodní, sušené mléko, tekutá syrovátka) z EU a třetích zemí | Z27: 0 | AA27: 0 | AB27: 2.58 | AC27: 13.31 | AD27: 122.48 | AP27: báze= srovnávací rok 2010
Z29: =SUM(Z24:Z28) -> 2345.502 | AA29: =SUM(AA24:AA28) -> 2380.071 | AB29: =SUM(AB24:AB28) -> 2437.39865 | AC29: =SUM(AC24:AC28) -> 2376.724316 | AD29: =SUM(AD24:AD28) -> 2497.737929
X30: Procentické vyjádření : % z objemu nakoupené mléčné suroviny celkem | Z30: 2010 | AA30: 2011 | AB30: 2012 | AC30: 2013 | AD30: 2014
Z31: % | AA31: % | AB31: % | AC31: % | AD31: %
X32: Kravské mléko nakoupené od zemědělců v ČR | Z32: 0.9858128452 | AA32: 0.9941316877 | AB32: 0.9964612573 | AC32: 0.9922949909 | AD32: 0.9489401496
X33: Nákup plnotučného mléka, včetně syrového mléka z EU a třetích zemí | Z33: 0.01292431215 | AA33: 0.005868312332 | AB33: 0.001664355734 | AC33: 0.00142082658 | AD33: 0.0004849223243
X34: Nákup smetany z EU a třetích zemí | Z34: 0.001262842667 | AA34: 0 | AB34: 0.0008154920514 | AC34: 0.0006820002925 | AD34: 0.00699833229
X35: Nákup ostatních produktů (odstředěné mléko, máslo, tvaroh,sýry přírodní, sušené mléko tekutá syrovátka) z EU a třetích zemí | Z35: 0 | AA35: 0 | AB35: 0.0011 | AC35: 0.0056 | AD35: 0.049
A57: Srovnání objemu výroby mlékárenských výrobků v tis. tun - časová řada 2010 - 2014, meziroční index 2014/2013, bazický index 2014/2010
A58: Druh výrobku | C58: 2010 množství (1000 t) | D58: 2011 množství (1000 t) | E58: 2012 množství (1000 t) | F58: 2013 množství (1000 t) | G58: 2014 množství (1000 t) | H58: Meziroční index 2014/2013 (2013=100) | I58: nárůst /pokles výroby v % | J58: Bazický index 2014/2010 (2010=100) | K58: nárůst /pokles výroby v %
A59: Konzumní mléko | C59: 627.18 | D59: 648.01 | E59: 609.23014 | F59: 619.49622 | G59: ='Tab. B_ČR'!$D$30 -> 624.0299543 | H59: =G59/F59 -> 1.007318421 | I59: =H59-1 -> 0.007318421317 | J59: =G59/C59 -> 0.9949774456 | K59: =J59-1 -> -0.005022554383
A60: Plnotučné mléko celkem | C60: 84.22 | D60: 83.17 | E60: 92.58047 | F60: 99.29 | G60: ='Tab. B_ČR'!$D$32 -> 113.793311 | H60: =G60/F60 -> 1.146070208 | I60: =H60-1 -> 0.1460702083 | J60: =G60/C60 -> 1.351143564 | K60: =J60-1 -> 0.3511435643
A61: Polotučné mléko celkem | C61: 511.65 | D61: 537.55 | E61: 498.71553 | F61: 504.06622 | G61: ='Tab. B_ČR'!$D$36 -> 497.7966434 | H61: 0.987561998 | I61: -0.01243800198 | J61: 0.9729241539 | K61: -0.02707584607
A62: Odtučněné mléko celkem | C62: 31.31 | D62: 27.29 | E62: 17.93414 | F62: 16.14 | G62: ='Tab. B_ČR'!$D$40 -> 12.44 | H62: 0.770755886 | I62: -0.229244114 | J62: 0.3973171511 | K62: -0.6026828489
A63: Podmáslí neochucené, bez přísad | C63: 9.59 | D63: 8.79 | E63: 8.47 | F63: 9.5986 | G63: ='Tab. B_ČR'!$D$44 -> 8.62470191 | H63: 0.8985374857 | I63: -0.1014625143 | J63: 0.8993432649 | K63: -0.1006567351
A64: Smetana celkem | C64: 46.62 | D64: 46.62 | E64: 47.34834 | F64: 46.496808 | G64: ='Tab. B_ČR'!$D$45 -> 53.93 | H64: 1.159864565 | I64: 0.1598645653 | J64: 1.156799657 | K64: 0.1567996568
A65: Kysané výrobky celkem | C65: 171.22 | D65: 163.41 | E65: 167.50877 | F65: 147.409987 | G65: ='Tab. B_ČR'!$D$48 -> 169.3696685 | H65: 1.148970107 | I65: 0.1489701066 | J65: 0.9891932512 | K65: -0.0108067488
A66: Mléčné nápoje ostatní celkem | C66: 20.13 | D66: 18.87 | E66: 4.70376 | F66: 4.38771 | G66: ='Tab. B_ČR'!$D$51 -> 8.13735123 | H66: 1.854578181 | I66: 0.8545781809 | J66: 0.4042400015 | K66: -0.5957599985
A67: Ostatní čerstvé výrobky (dezerty, mléčná rýže, mléčná krupice, pudinky, mražené krémy) | C67: 36.24 | D67: 35.54 | E67: 33.23536 | F67: 28.81788 | G67: ='Tab. B_ČR'!$D$52 -> 34.31701818 | H67: 1.190823828 | I67: 0.1908238281 | J67: 0.9469375877 | K67: -0.05306241225
A68: Zahuštěné mléko celkem | C68: 15.3 | D68: 13.31 | E68: 15.2141 | F68: 11.26 | G68: ='Tab. B_ČR'!$D$54 -> 10.19 | H68: 0.904973357 | I68: -0.09502664298 | J68: 0.6660130719 | K68: -0.3339869281
A69: Sušená smetana, sušené plnotučné mléko, sušené částečně odtučněné mléko | C69: 10.16 | D69: 13.29 | E69: 11.80116 | F69: =SUM('[1]Tab. B_ČR'!D58:D60) -> 12.180325 | G69: 12.54 | H69: 1.029529179 | I69: 0.02952917923 | J69: 1.234251969 | K69: 0.2342519685
A70: Sušené odtučněné mléko | C70: 14.83 | D70: 14.54 | E70: 17.62273 | F70: ='[1]Tab. B_ČR'!D61 -> 17.46949 | G70: x | H70: x | I70: x | J70: x | K70: x
A71: Máslo a ostatní výrobky z mléčného tuku vyjádřené v máselném ekvivalentu | C71: 28.58 | D71: 26.86 | E71: 27.3043686 | F71: 29.49 | G71: ='Tab. B_ČR'!$D$64 -> 26.8 | H71: 0.9087826382 | I71: -0.09121736182 | J71: 0.9377186844 | K71: -0.06228131561
A72: Máslo | C72: 23.38 | D72: 21.89 | E72: 23.02 | F72: 23.9829 | G72: ='Tab. B_ČR'!$D$65 -> 21.68 | H72: 0.9039774172 | I72: -0.09602258276 | J72: 0.9272882806 | K72: -0.07271171942
A73: Přírodní sýry celkem | C73: 115.16 | D73: 113.12 | E73: 111.54693 | F73: 117.79 | G73: ='Tab. B_ČR'!$D$73 -> 116.64 | H73: 0.9902368622 | I73: -0.009763137788 | J73: 1.012851685 | K73: 0.01285168461
A74: Měkké sýry | C74: 14.33 | D74: 12.61 | E74: 12.98875 | F74: 12.19744 | G74: ='Tab. B_ČR'!$D$79 -> 13.78365093 | H74: 1.130044577 | I74: 0.1300445774 | J74: 0.9618737565 | K74: -0.03812624355
A75: Polotvrdé sýry | C75: 47.97 | D75: 43.36 | E75: 48.01117 | F75: 43.85888 | G75: ='Tab. B_ČR'!$D$81 -> 40.59583418 | H75: 0.9256012506 | I75: -0.07439874935 | J75: 0.8462754676 | K75: -0.1537245324
A76: Čerstvé sýry | C76: 39.7 | D76: 42.51 | E76: 39.0711 | F76: 42.88529 | G76: ='Tab. B_ČR'!$D$84 -> 44.46 | H76: 1.036719117 | I76: 0.03671911744 | J76: 1.119899244 | K76: 0.1198992443
A77: Tavené sýry | C77: 13.95 | D77: 13.62 | E77: 14.56658 | F77: 23.79 | G77: ='Tab. B_ČR'!$D$85 -> 12.65212995 | H77: 0.5318255549 | I77: -0.4681744451 | J77: 0.9069627204 | K77: -0.09303727957
A78: Vývoz mléka a smetany do zahraničí | C78: 131.59 | D78: 209.08 | E78: 287.85724 | F78: 191.98 | G78: x | H78: x | I78: x | J78: x | K78: x
A79: Zdroj: Roční statistické zjišťování Mlék (MZE) 6 - 01
F85: 191.98249
F86: 26.61089

Sheet Nákup_Grafy č.1,2
A2: Graf č. 1
A3: Nákup mléka, meziroční srovnání, bazický index - časová řada 2010 - 2014.
C5: 2010 | D5: 2011 | G5: 2012 | J5: 2013 | M5: 2014 | P5: bazický index 2014/2010 | Q5: nárůst/ pokles
A6: Kravské mléko nakoupené od zemědělců v ČR | C6: (1000 t) | D6: (1000 t) | E6: meziroční index | F6: nárůst/ pokles | G6: (1000 t) | H6: meziroční index | I6: nárůst /pokles | J6: (1000 t) | K6: meziroční index | L6: nárůst /pokles | M6: (1000 t) | N6: meziroční index | O6: nárůst/ pokles
C7: 2312.226 | D7: 2366.104 | E7: =D7/C7 -> 1.023301355 | F7: =E7-1 -> 0.02330135549 | G7: 2428.77427 | H7: =G7/D7 -> 1.026486693 | I7: =H7-1 -> 0.02648669289 | J7: 2358.416466 | K7: =J7/G7 -> 0.9710315591 | L7: =K7-1 -> -0.02896844094 | M7: 2370.203804 | N7: =M7/J7 -> 1.004997988 | O7: =N7-1 -> 0.004997988318 | P7: =M7/C7 -> 1.025074454 | Q7: =P7-1 -> 0.02507445377
A8: báze= srovnávací rok 2010
A9: Zdroj: Roční statistické zjišťování Mlék (MZE) 6 - 01
A35: Graf č. 2
A36: Srovnání nákupu mléka, smetany a ostatních produktů mlékárnami - časová řada 2010 - 2014.
C38: 2010 | D38: 2011 | E38: 2012 | F38: 2013 | G38: 2014
C39: (1000 t) | D39: (1000 t) | E39: (1000 t) | F39: (1000 t) | G39: (1000 t)
A40: Kravské mléko nakoupené od zemědělců v ČR | C40: 2312.226 | D40: 2366.104 | E40: 2428.77427 | F40: 2358.416466 | G40: 2370.203804
A41: Nákup plnotučného mléka, včetně syrového mléka z EU a třetích zemí | C41: 30.314 | D41: 13.967 | E41: 4.0567 | F41: 3.37692 | G41: 1.211208882
A42: Nákup smetany z EU a třetích zemí | C42: 2.962 | D42: 0 | E42: 1.98768 | F42: 1.62093 | G42: 3.842916
A43: Nákup ostatních produktů z EU a třetích zemí (odstředěné mléko, máslo, tvaroh,sýry přírodní, sušené mléko, tekutá syrovátka) | C43: 0 | D43: 0 | E43: 2.58 | F43: 13.31 | G43: 122.48
A44: Zdroj: Roční statistické zjišťování Mlék (MZE) 6 - 01
A46: 2a
A62: * skupinová agregace z důvodu ochrany důvěrných údajů
A64: 2b
A84: * skupinová agregace z důvodu ochrany důvěrných údajů

Sheet Výroba_Grafy č.3,4
A2: Graf č. 3, graf č. 4
A3: Srovnání objemu výroby mlékárenských výrobků v tis. tun - časová řada 2010 - 2014, meziroční index 2014/2013, bazický index 2014/2010
A4: Druh výrobku | B4: 2010 množství (1000 t) | C4: 2011 množství (1000 t) | D4: 2012 množství (1000 t) | E4: 2013 množství (1000 t) | F4: 2014 množství (1000 t) | G4: Meziroční index 2014/2013 (2013=100) | H4: nárůst /pokles výroby v % | I4: Bazický index 2014/2010 (2010=100) | J4: nárůst /pokles výroby v %
A5: Konzumní mléko | B5: 627.18 | C5: 648.01 | D5: 609.23014 | E5: 619.49622 | F5: ='Tab. B_ČR'!$D$30 -> 624.0299543 | G5: =F5/E5 -> 1.007318421 | H5: =G5-1 -> 0.007318421317 | I5: =F5/B5 -> 0.9949774456 | J5: =I5-1 -> -0.005022554383
A6: Plnotučné mléko celkem | B6: 84.22 | C6: 83.17 | D6: 92.58047 | E6: 99.29 | F6: ='Tab. B_ČR'!$D$32 -> 113.793311 | G6: =F6/E6 -> 1.146070208 | H6: =G6-1 -> 0.1460702083 | I6: =F6/B6 -> 1.351143564 | J6: =I6-1 -> 0.3511435643
A7: Polotučné mléko celkem | B7: 511.65 | C7: 537.55 | D7: 498.71553 | E7: 504.06622 | F7: ='Tab. B_ČR'!$D$36 -> 497.7966434 | G7: 0.987561998 | H7: -0.01243800198 | I7: 0.9729241539 | J7: -0.02707584607
A8: Odtučněné mléko celkem | B8: 31.31 | C8: 27.29 | D8: 17.93414 | E8: 16.14 | F8: ='Tab. B_ČR'!$D$40 -> 12.44 | G8: 0.770755886 | H8: -0.229244114 | I8: 0.3973171511 | J8: -0.6026828489
A9: Podmáslí neochucené, bez přísad | B9: 9.59 | C9: 8.79 | D9: 8.47 | E9: 9.5986 | F9: ='Tab. B_ČR'!$D$44 -> 8.62470191 | G9: 0.8985374857 | H9: -0.1014625143 | I9: 0.8993432649 | J9: -0.1006567351
A10: Smetana celkem | B10: 46.62 | C10: 46.62 | D10: 47.34834 | E10: 46.496808 | F10: ='Tab. B_ČR'!$D$45 -> 53.93 | G10: 1.159864565 | H10: 0.1598645653 | I10: 1.156799657 | J10: 0.1567996568
A11: Kysané výrobky celkem | B11: 171.22 | C11: 163.41 | D11: 167.50877 | E11: 147.409987 | F11: ='Tab. B_ČR'!$D$48 -> 169.3696685 | G11: 1.148970107 | H11: 0.1489701066 | I11: 0.9891932512 | J11: -0.0108067488
A12: Mléčné nápoje ostatní celkem | B12: 20.13 | C12: 18.87 | D12: 4.70376 | E12: 4.38771 | F12: ='Tab. B_ČR'!$D$51 -> 8.13735123 | G12: 1.854578181 | H12: 0.8545781809 | I12: 0.4042400015 | J12: -0.5957599985
A13: Ostatní čerstvé výrobky (dezerty, mléčná rýže, mléčná krupice, pudinky, mražené krémy) | B13: 36.24 | C13: 35.54 | D13: 33.23536 | E13: 28.81788 | F13: ='Tab. B_ČR'!$D$52 -> 34.31701818 | G13: 1.190823828 | H13: 0.1908238281 | I13: 0.9469375877 | J13: -0.05306241225
A14: Zahuštěné mléko celkem | B14: 15.3 | C14: 13.31 | D14: 15.2141 | E14: 11.26 | F14: ='Tab. B_ČR'!$D$54 -> 10.19 | G14: 0.904973357 | H14: -0.09502664298 | I14: 0.6660130719 | J14: -0.3339869281
A15: Sušená smetana, sušené plnotučné mléko, sušené částečně odtučněné mléko | B15: 10.16 | C15: 13.29 | D15: 11.80116 | E15: =SUM('[1]Tab. B_ČR'!D58:D60) -> 12.180325 | F15: 12.54 | G15: 1.029529179 | H15: 0.02952917923 | I15: 1.234251969 | J15: 0.2342519685
A16: Sušené odtučněné mléko | B16: 14.83 | C16: 14.54 | D16: 17.62273 | E16: ='[1]Tab. B_ČR'!D61 -> 17.46949 | F16: x | G16: x | H16: x | I16: x | J16: x
A17: Máslo a ostatní výrobky z mléčného tuku vyjádřené v máselném ekvivalentu | B17: 28.58 | C17: 26.86 | D17: 27.3043686 | E17: 29.49 | F17: ='Tab. B_ČR'!$D$64 -> 26.8 | G17: 0.9087826382 | H17: -0.09121736182 | I17: 0.9377186844 | J17: -0.06228131561
A18: Máslo | B18: 23.38 | C18: 21.89 | D18: 23.02 | E18: 23.9829 | F18: ='Tab. B_ČR'!$D$65 -> 21.68 | G18: 0.9039774172 | H18: -0.09602258276 | I18: 0.9272882806 | J18: -0.07271171942
A19: Přírodní sýry celkem | B19: 115.16 | C19: 113.12 | D19: 111.54693 | E19: 117.79 | F19: ='Tab. B_ČR'!$D$73 -> 116.64 | G19: 0.9902368622 | H19: -0.009763137788 | I19: 1.012851685 | J19: 0.01285168461
A20: Měkké sýry | B20: 14.33 | C20: 12.61 | D20: 12.98875 | E20: 12.19744 | F20: ='Tab. B_ČR'!$D$79 -> 13.78365093 | G20: 1.130044577 | H20: 0.1300445774 | I20: 0.9618737565 | J20: -0.03812624355
A21: Polotvrdé sýry | B21: 47.97 | C21: 43.36 | D21: 48.01117 | E21: 43.85888 | F21: ='Tab. B_ČR'!$D$81 -> 40.59583418 | G21: 0.9256012506 | H21: -0.07439874935 | I21: 0.8462754676 | J21: -0.1537245324
A22: Čerstvé sýry | B22: 39.7 | C22: 42.51 | D22: 39.0711 | E22: 42.88529 | F22: ='Tab. B_ČR'!$D$84 -> 44.46 | G22: 1.036719117 | H22: 0.03671911744 | I22: 1.119899244 | J22: 0.1198992443
A23: Tavené sýry | B23: 13.95 | C23: 13.62 | D23: 14.56658 | E23: 23.79 | F23: ='Tab. B_ČR'!$D$85 -> 12.65212995 | G23: 0.5318255549 | H23: -0.4681744451 | I23: 0.9069627204 | J23: -0.09303727957
A24: Vývoz mléka a smetany do zahraničí | B24: 131.59 | C24: 209.08 | D24: 287.85724 | E24: 191.98 | F24: x | G24: x | H24: x | I24: x | J24: x
A25: Zdroj: Roční statistické zjišťování Mlék (MZE) 6 - 01
A26: báze =srovnávací rok 2010
A29: 3
E31: 191.98249
E32: 26.61089
A69: 4

Sheet Bilance_zahr.obchod_Graf č.5
A2: Graf č. 5
A3: Obchodní bilance vybraných druhů mlékárenských výrobků, časová řada 2010 - 2014.
A4: Období : | B4: 1.1.2010 – 31.12.2014
A5: Nomenklatura zboží : | B5: Harmonizovaný systém HS(6)
A6: Data: | B6: bez dopočtů
A7: Zdroj: Databáze zahraničního obchodu, Český statistický úřad
A8: Druh výrobku | C8: Saldo obchodní bilance
C9: 2010 | D9: 2011 | E9: 2012 | F9: 2013 | G9: 2014
C10: tis. Kč | D10: tis. Kč | E10: tis. Kč | F10: tis. Kč | G10: tis. Kč
A11: Mléko nezahuštěné,neslazené, tuk 1-6%, celkem | C11: 4027008 | D11: 4954181 | E11: 5327149 | F11: 6032722 | G11: 7103821
A12: z toho | B12: Belgie | C12: -1304 | D12: -1300 | E12: -15429 | F12: -4312 | G12: -11150
B13: Německo | C13: 3057635 | D13: 3432653 | E13: 3472203 | F13: 3643165 | G13: 4936092
B14: Chorvatsko | C14: 38102 | D14: 95940 | E14: 109290 | F14: 170932 | G14: 31714
B15: Maďarsko | C15: 288595 | D15: 501265 | E15: 388719 | F15: 309293 | G15: 247455
B16: Itálie | C16: 303823 | D16: 329936 | E16: 485780 | F16: 660815 | G16: 584172
B17: Polsko | C17: 123657 | D17: 139715 | E17: 136818 | F17: 205562 | G17: 213175
B18: Slovensko | C18: 225190 | D18: 455464 | E18: 451038 | F18: 906258 | G18: 879113
A19: Máslo celkem | C19: -1185500 | D19: -1129597 | E19: -1180083 | F19: -1372808 | G19: -1355914
A20: z toho | B20: Belgie | C20: -343415 | D20: -286265 | E20: -194390 | F20: -217385 | G20: -184323
B21: Německo | C21: -787913 | D21: -665972 | E21: -748742 | F21: -783841 | G21: -781120
B22: Maďarsko | C22: 65096 | D22: 46982 | E22: 14565 | F22: 13578 | G22: 15488
B23: Itálie | C23: 40145 | D23: 129848 | E23: 70484 | F23: 107557 | G23: 100955
B24: Polsko | C24: -297629 | D24: -403631 | E24: -314690 | F24: -368429 | G24: -503871
B25: Slovensko | C25: 105408 | D25: 1234 | E25: 13058 | F25: -80908 | G25: 105171
A26: Sýry čerstvé a tvarohy celkem | C26: -981802 | D26: -709490 | E26: -540975 | F26: -660872 | G26: -612607
A27: z toho | B27: Belgie | C27: -3138 | D27: -10201 | E27: -7040 | F27: 35 | G27: -295
B28: Německo | C28: -598930 | D28: -452740 | E28: -655693 | F28: -797603 | G28: -713622
B29: Maďarsko | C29: 105 | D29: 317 | E29: 697 | F29: -161 | G29: 1926
B30: Itálie | C30: -47119 | D30: -40737 | E30: -80022 | F30: -83799 | G30: -118178
B31: Polsko | C31: -321534 | D31: -188263 | E31: -63061 | F31: -120915 | G31: -12854
B32: Slovensko | C32: 39731 | D32: 11487 | E32: 199586 | F32: 225010 | G32: 251447
A33: Sýry tavené celkem | C33: -510693 | D33: -588160 | E33: -553195 | F33: -423011 | G33: -461281
A34: z toho | B34: Německo | C34: -153233 | D34: -155079 | E34: -133095 | F34: -159891 | G34: -156138
B35: Maďarsko | C35: 2312 | D35: -7948 | E35: -2058 | F35: 5275 | G35: 11612
B36: Itálie | C36: -4339 | D36: -3565 | E36: -3252 | F36: -966 | G36: -180
B37: Polsko | C37: -269285 | D37: -328056 | E37: -383585 | F37: -452993 | G37: -426703
B38: Slovensko | C38: -76762 | D38: -109968 | E38: -82136 | F38: 156539 | G38: 129277
A39: Sýry ostatní celkem | C39: -1689662 | D39: -1726862 | E39: -1711155 | F39: -1804735 | G39: -2060157
A40: z toho | B40: Belgie | C40: 3035 | D40: -1514 | E40: -650 | F40: -1399 | G40: 8671
B41: Německo | C41: -1384596 | D41: -1614284 | E41: -1677316 | F41: -1984013 | G41: -2339229
B42: Maďarsko | C42: 25388 | D42: 23818 | E42: 9639 | F42: 7592 | G42: 44769
B43: Itálie | C43: 647439 | D43: 1141713 | E43: 1118016 | F43: 1152779 | G43: 1142740
B44: Polsko | C44: -1381509 | D44: -1490830 | E44: -1441965 | F44: -1401908 | G44: -1384753
B45: Slovensko | C45: 189584 | D45: 54889 | E45: 109819 | F45: 149196 | G45: 265206

Sheet List5
